Workbook

Sheet ANALIZA (hidden)
A1: A/K/T | B1: IZV | C1: FP | D1: KTO | E1: NAZIV AKTIVNOSTI ILI PROJEKTA | F1: NAZIV PROGRAMA | G1: Izvorni plan 2013. | H1: Izvorni plan u limitu 2013. (11,12,83) | I1: Tekući plan (nakon rebalansa i preraspodjela) 2013. | J1: Tekući plan u limitu 2013. (11,12,83) | K1: Izvršenje 2013. do 30.9.2013. | L1: Indeks izvršenja 2013. | M1: Usvojena projekcija 2014. | N1: Usvojena projekcija u limitu 2014. | O1: Prijedlog plana 2014. | P1: Prijedlog plana 2014. u limitu (11,12,83) | Q1: Usvojena projekcija 2015. | R1: Prijedlog projekcije 2015. | S1: Prijedlog projekcije 2015. u limitu (11,12,83) | T1: Prijedlog projekcije 2016. | U1: Prijedlog projekcije 2016. u limitu (11,12,83) | V1: Zadani limit 2014. | W1: Zadani limit 2015. | X1: Zadani limit 2016.
A2: 065 MINISTARSTVO POMORSTVA, PROMETA I INFRASTRUKTURE | G2: =G3+G882+G942+G1073+G1138+G1273 -> 5913645238 | H2: =H3+H882+H942+H1073+H1138+H1273 -> 5629557815 | I2: =I3+I882+I942+I1073+I1138+I1273+I1205 -> 5832235736 | J2: =J3+J882+J942+J1073+J1138+J1273+J1205 -> 5548148313 | K2: =K3+K882+K942+K1073+K1138+K1273+K1205 -> 4847989737 | L2: =IF(I2=0, "-", K2/I2*100) -> 83.12403608 | M2: =M3+M882+M942+M1073+M1138+M1273 -> 6286351889 | N2: =N3+N882+N942+N1073+N1138+N1273 -> 5680154058 | O2: =O3+O882+O942+O1073+O1138+O1273+O1205 -> 6186582758 | P2: 5829157589 | Q2: 10391326109 | R2: 6725437793 | S2: 5692576768 | T2: 7155784873 | U2: 5914659085 | V2: 5886829000 | W2: 6184769000 | X2: 6505729000
A3: Glava 05 Ministarstvo pomorstva, prometa i infrastrukture | G3: =G4+G110+G466+G592 -> 5505620462 | H3: =H4+H110+H466+H592 -> 5226718599 | I3: =I4+I110+I466+I592 -> 5424210960 | J3: =J4+J110+J466+J592 -> 5145309097 | K3: =K4+K110+K466+K592 -> 4561239582 | L3: =IF(I3=0, "-", K3/I3*100) -> 84.09037952 | M3: =M4+M110+M466+M592 -> 5852152673 | N3: 5246054842 | O3: 5778886758 | P3: 5425842589 | Q3: 9954359893 | R3: 6322022793 | S3: 5289261768 | T3: 6752369873 | U3: 5511344085 | V3: =V2-P2 -> 57671411.48 | W3: =W2-S2 -> 492192232.3 | X3: =X2-U2 -> 591069915 | Y3: RAZLIKA
A4: Glavno tajništvo | G4: =G5+G64+G73+G90+G95+G105 -> 89990603 | H4: =H5+H64+H73+H90+H95+H105 -> 89990603 | I4: =I5+I64+I73+I90+I95+I105 -> 93320603 | J4: =J5+J64+J73+J90+J95+J105 -> 93320603 | K4: =K5+K64+K73+K90+K95+K105 -> 65156433.72 | L4: 69.8199879 | M4: =M5+M64+M73+M90+M95+M105 -> 84712169 | N4: 84712169 | O4: 112851000 | P4: 112851000 | Q4: 88758998 | R4: 128120150 | S4: 128120150 | T4: 124129000 | U4: 124129000
A5: A570000 | E5: Administracija i upravljanje | F5: 3101 UPRAVLJANJE NA PODRUČJU PROMETNE POLITIKE - 31 PROMET, PROMETNA INFRASTRUKTURA I KOMUNIKACIJE | G5: =G6+G10+G12+G16+G21+G28+G38+G40+G47+G51+G53+G55+G57 -> 72027000 | H5: =H6+H10+H12+H16+H21+H28+H38+H40+H47+H51+H53+H55+H57 -> 72027000 | I5: =I6+I10+I12+I16+I21+I28+I38+I40+I47+I51+I53+I55+I57+I62 -> 74357000 | J5: =J6+J10+J12+J16+J21+J28+J38+J40+J47+J51+J53+J55+J57+J62 -> 74357000 | K5: =K6+K10+K12+K16+K21+K28+K38+K40+K47+K51+K53+K55+K57+K62 -> 55999727.75 | L5: 75.31197836 | M5: =M6+M10+M12+M16+M21+M28+M38+M40+M47+M51+M53+M55+M57 -> 70081442 | N5: =N6+N10+N12+N16+N21+N28+N38+N40+N47+N51+N53+N55+N57 -> 70081442 | O5: =O6+O10+O12+O16+O21+O28+O38+O40+O47+O51+O53+O55+O57+O62 -> 72741000 | P5: 72741000 | Q5: 73740044 | R5: 74730150 | S5: 74730150 | T5: 76579000 | U5: 76579000
A6: A570000 | B6: 11 | C6: 0490 | D6: 311 | G6: =SUM(G7:G9) -> 36000000 | H6: =SUM(H7:H9) -> 36000000 | I6: 36000000 | J6: 36000000 | K6: 27793459.98 | L6: 77.2040555 | M6: 36000000 | N6: 36000000 | O6: 36150000 | P6: 36150000 | Q6: 37900000 | R6: 37300000 | S6: 37300000 | T6: 38200000 | U6: 38200000 | V6: 103811000 | W6: 108987000 | X6: 111379000 | Y6: limit plaća 065
A7: A570000 | B7: 11 | C7: 0490 | D7: 3111 | E7: Plaće za redovan rad | G7: 35100000 | H7: 35100000 | I7: 35100000 | J7: 35100000 | K7: 27212038.78 | L7: 77.52717601 | M7: 35100000 | N7: 35100000 | O7: 35200000 | P7: =O7 -> 35200000 | Q7: 37000000 | R7: 36300000 | S7: =R7 -> 36300000 | T7: 37200000 | U7: =T7 -> 37200000 | V7: 18120000 | Y7: limit plaća ostalih glava
A8: A570000 | B8: 11 | C8: 0490 | D8: 3113 | E8: Plaće za prekovremeni rad | G8: 300000 | H8: 300000 | I8: 300000 | J8: 300000 | K8: 115525.95 | L8: 38.50865 | M8: 350000 | N8: 350000 | O8: 300000 | P8: =O8 -> 300000 | Q8: 350000 | R8: 300000 | S8: =R8 -> 300000 | T8: 300000 | U8: =T8 -> 300000
A9: A570000 | B9: 11 | C9: 0490 | D9: 3114 | E9: Plaće za posebne uvjete rada | G9: 600000 | H9: 600000 | I9: 600000 | J9: 600000 | K9: 465895.25 | L9: 77.64920833 | M9: 550000 | N9: 550000 | O9: 650000 | P9: 650000 | Q9: 550000 | R9: 700000 | S9: 700000 | T9: 700000 | U9: 700000
A10: A570000 | B10: 11 | C10: 0490 | D10: 312 | G10: =SUM(G11) -> 500000 | H10: =SUM(H11) -> 500000 | I10: 500000 | J10: 500000 | K10: 126244.41 | L10: 25.248882 | M10: 476527 | N10: 476527 | O10: 400000 | P10: 400000 | Q10: 476527 | R10: 500000 | S10: 500000 | T10: 500000 | U10: 500000 | V10: =#REF! ->  | W10: =#REF! ->  | X10: =#REF! ->  | Y10: 31 065
A11: A570000 | B11: 11 | C11: 0490 | D11: 3121 | E11: Ostali rashodi za zaposlene | G11: 500000 | H11: 500000 | I11: 500000 | J11: 500000 | K11: 126244.41 | L11: 25.248882 | M11: 476527 | N11: 476527 | O11: 400000 | P11: 400000 | Q11: 476527 | R11: 500000 | S11: 500000 | T11: 500000 | U11: 500000 | V11: =V6-V10 ->  | W11: =W6-W10 ->  | X11: =X6-X10 ->  | Y11: RAZLIKA
A12: A570000 | B12: 11 | C12: 0490 | D12: 313 | G12: =SUM(G13:G15) -> 5800000 | H12: =SUM(H13:H15) -> 5800000 | I12: 5800000 | J12: 5800000 | K12: 4199826.97 | L12: 72.41080983 | M12: 5850000 | N12: 5850000 | O12: =SUM(O13:O15) -> 5541000 | P12: 5541000 | Q12: 6300000 | R12: 6887150 | S12: 6887150 | T12: 7309000 | U12: 7309000
A13: A570000 | B13: 11 | C13: 0490 | D13: 3131 | E13: Doprinosi za mirovinsko osiguranje | G13: 0 | H13: 0 | I13: 0 | J13: 0 | K13: 0 | L13: - | O13: 0 | P13: =O13 -> 0 | S13: 0 | U13: 0
A14: A570000 | B14: 11 | C14: 0490 | D14: 3132 | E14: Doprinosi za obvezno zdravstveno osiguranje | G14: 5100000 | H14: 5100000 | I14: 5100000 | J14: 5100000 | K14: 3705729.26 | L14: 72.66135804 | M14: 5100000 | N14: 5100000 | O14: 4900000 | P14: =O14 -> 4900000 | Q14: 5500000 | R14: 5900000 | S14: 5900000 | T14: 6200000 | U14: 6200000
A15: A570000 | B15: 11 | C15: 0490 | D15: 3133 | E15: Doprinosi za obvezno osiguranje u slučaju nezaposlenosti | G15: 700000 | H15: 700000 | I15: 700000 | J15: 700000 | K15: 494097.71 | L15: 70.58538714 | M15: 750000 | N15: 750000 | O15: 641000 | P15: =O15 -> 641000 | Q15: 800000 | R15: 987150 | S15: 987150 | T15: 1109000 | U15: 1109000
A16: A570000 | B16: 11 | C16: 0490 | D16: 321 | G16: =SUM(G17:G20) -> 3950000 | H16: =SUM(H17:H20) -> 3950000 | I16: 3950000 | J16: 3950000 | K16: 2657377.86 | L16: 67.27538886 | M16: 3989250 | N16: 3989250 | O16: 4300000 | P16: 4300000 | Q16: 4049090 | R16: 4370000 | S16: 4370000 | T16: 4480000 | U16: 4480000
A17: A570000 | B17: 11 | C17: 0490 | D17: 3211 | E17: Službena putovanja | G17: 1780000 | H17: 1780000 | I17: 1780000 | J17: 1780000 | K17: 1566005.58 | L17: 87.97784157 | M17: 1753300 | N17: 1753300 | O17: 2200000 | P17: 2200000 | Q17: 1779600 | R17: 2250000 | S17: 2250000 | T17: 2300000 | U17: 2300000
A18: A570000 | B18: 11 | C18: 0490 | D18: 3212 | E18: Naknade za prijevoz, za rad na terenu i odvojeni život | G18: 1950000 | H18: 1950000 | I18: 1950000 | J18: 1950000 | K18: 991879.65 | L18: 50.86562308 | M18: 2019250 | N18: 2019250 | O18: 1700000 | P18: 1700000 | Q18: 2049539 | R18: 1700000 | S18: 1700000 | T18: 1700000 | U18: 1700000
A19: A570000 | B19: 11 | C19: 0490 | D19: 3213 | E19: Stručno usavršavanje zaposlenika | G19: 100000 | H19: 100000 | I19: 100000 | J19: 100000 | K19: 88356.43 | L19: 88.35643 | M19: 98500 | N19: 98500 | O19: 250000 | P19: 250000 | Q19: 99978 | R19: 270000 | S19: 270000 | T19: 300000 | U19: 300000
A20: A570000 | B20: 11 | C20: 0490 | D20: 3214 | E20: Ostale naknade troškova zaposlenima | G20: 120000 | H20: 120000 | I20: 120000 | J20: 120000 | K20: 11136.2 | L20: 9.280166667 | M20: 118200 | N20: 118200 | O20: 150000 | P20: 150000 | Q20: 119973 | R20: 150000 | S20: 150000 | T20: 180000 | U20: 180000
A21: A570000 | B21: 11 | C21: 0490 | D21: 322 | G21: =SUM(G22:G27) -> 7266000 | H21: =SUM(H22:H27) -> 7266000 | I21: 7266000 | J21: 7266000 | K21: 5081068.59 | L21: 69.92937779 | M21: 5575010 | N21: 5575010 | O21: 7100000 | P21: 7100000 | Q21: 6514636 | R21: 7170000 | S21: 7170000 | T21: 7340000 | U21: 7340000
A22: A570000 | B22: 11 | C22: 0490 | D22: 3221 | E22: Uredski materijal i ostali mater. rash. | G22: 1440000 | H22: 1440000 | I22: 1440000 | J22: 1440000 | K22: 1251065.55 | L22: 86.87955208 | M22: 1218400 | N22: 1218400 | O22: 1500000 | P22: 1500000 | Q22: 1239676 | R22: 1500000 | S22: 1500000 | T22: 1600000 | U22: 1600000
A23: A570000 | B23: 11 | C23: 0490 | D23: 3222 | E23: Materijal i sirovine | G23: 16000 | H23: 16000 | I23: 16000 | J23: 16000 | K23: 0 | L23: 0 | M23: 15760 | N23: 15760 | O23: 0 | P23: 0 | Q23: 15996 | R23: 0 | S23: 0 | T23: 0 | U23: 0
A24: A570000 | B24: 11 | C24: 0490 | D24: 3223 | E24: Energija | G24: 5500000 | H24: 5500000 | I24: 5500000 | J24: 5500000 | K24: 3583285.45 | L24: 65.15064455 | M24: 4035500 | N24: 4035500 | O24: 5000000 | P24: 5000000 | Q24: 4949033 | R24: 5000000 | S24: 5000000 | T24: 5000000 | U24: 5000000
A25: A570000 | B25: 11 | C25: 0490 | D25: 3224 | E25: Materijal i dijelovi za tekuće i inv.odr. | G25: 110000 | H25: 110000 | I25: 110000 | J25: 110000 | K25: 123585.69 | L25: 112.3506273 | M25: 108350 | N25: 108350 | O25: 200000 | P25: 200000 | Q25: 109975 | R25: 200000 | S25: 200000 | T25: 200000 | U25: 200000
A26: A570000 | B26: 11 | C26: 0490 | D26: 3225 | E26: Sitni inventar i auto-gume | G26: 100000 | H26: 100000 | I26: 100000 | J26: 100000 | K26: 23131.9 | L26: 23.1319 | M26: 98500 | N26: 98500 | O26: 100000 | P26: 100000 | Q26: 99978 | R26: 120000 | S26: 120000 | T26: 150000 | U26: 150000
A27: A570000 | B27: 11 | C27: 0490 | D27: 3227 | E27: Službena, radna i zaštitna odjeća i obuća | G27: 100000 | H27: 100000 | I27: 100000 | J27: 100000 | K27: 100000 | L27: 100 | M27: 98500 | N27: 98500 | O27: 300000 | P27: 300000 | Q27: 99978 | R27: 350000 | S27: 350000 | T27: 390000 | U27: 390000
A28: A570000 | B28: 11 | C28: 0490 | D28: 323 | G28: =SUM(G29:G37) -> 15600000 | H28: =SUM(H29:H37) -> 15600000 | I28: 17930000 | J28: 17930000 | K28: 11255575.7 | L28: 62.77510151 | M28: 15156750 | N28: 15156750 | O28: 15300000 | P28: 15300000 | Q28: 15395601 | R28: 15495000 | S28: 15495000 | T28: 15800000 | U28: 15800000
A29: A570000 | B29: 11 | C29: 0490 | D29: 3231 | E29: Usluge telefona, pošte i prijevoza | G29: 5200000 | H29: 5200000 | I29: 5200000 | J29: 5200000 | K29: 1746094.51 | L29: 33.57874058 | M29: 4825000 | N29: 4825000 | O29: 4000000 | P29: 4000000 | Q29: 4898875 | R29: 4100000 | S29: 4100000 | T29: 4200000 | U29: 4200000
A30: A570000 | B30: 11 | C30: 0490 | D30: 3232 | E30: Usluge tekućeg i investicijskog održavanja | G30: 300000 | H30: 300000 | I30: 300000 | J30: 300000 | K30: 334653.14 | L30: 111.5510467 | M30: 591000 | N30: 591000 | O30: 400000 | P30: 400000 | Q30: 599865 | R30: 425000 | S30: 425000 | T30: 450000 | U30: 450000
A31: A570000 | B31: 11 | C31: 0490 | D31: 3233 | E31: Usluge promidžbe i informiranja | G31: 600000 | H31: 600000 | I31: 600000 | J31: 600000 | K31: 512350.42 | L31: 85.39173667 | M31: 591000 | N31: 591000 | O31: 700000 | P31: 700000 | Q31: 599865 | R31: 700000 | S31: 700000 | T31: 700000 | U31: 700000
A32: A570000 | B32: 11 | C32: 0490 | D32: 3234 | E32: Komunalne usluge | G32: 800000 | H32: 800000 | I32: 800000 | J32: 800000 | K32: 500613.89 | L32: 62.57673625 | M32: 541750 | N32: 541750 | O32: 800000 | P32: 800000 | Q32: 549876 | R32: 850000 | S32: 850000 | T32: 900000 | U32: 900000
A33: A570000 | B33: 11 | C33: 0490 | D33: 3235 | E33: Zakupnine i najamnine | G33: 550000 | H33: 550000 | I33: 550000 | J33: 550000 | K33: 1337961.01 | L33: 243.2656382 | M33: 541750 | N33: 541750 | O33: 700000 | P33: 700000 | Q33: 549876 | R33: 720000 | S33: 720000 | T33: 750000 | U33: 750000
A34: A570000 | B34: 11 | C34: 0490 | D34: 3236 | E34: Zdravstvene i veterinarske usluge | G34: 150000 | H34: 150000 | I34: 150000 | J34: 150000 | K34: 53991.19 | L34: 35.99412667 | M34: 147750 | N34: 147750 | O34: 300000 | P34: 300000 | Q34: 149966 | R34: 200000 | S34: 200000 | T34: 200000 | U34: 200000
A35: A570000 | B35: 11 | C35: 0490 | D35: 3237 | E35: Intelektualne i osobne usluge | G35: 3900000 | H35: 3900000 | I35: 5900000 | J35: 5900000 | K35: 3452511.91 | L35: 58.51715102 | M35: 3811500 | N35: 3811500 | O35: 4200000 | P35: 4200000 | Q35: 3848673 | R35: 4250000 | S35: 4250000 | T35: 4300000 | U35: 4300000
A36: A570000 | B36: 11 | C36: 0490 | D36: 3238 | E36: Računalne usluge | G36: 0 | H36: 0 | I36: 330000 | J36: 330000 | K36: 330000 | L36: 100 | O36: 0 | P36: 0 | R36: 0 | S36: 0 | T36: 0 | U36: 0
A37: A570000 | B37: 11 | C37: 0490 | D37: 3239 | E37: Ostale usluge | G37: 4100000 | H37: 4100000 | I37: 4100000 | J37: 4100000 | K37: 2987399.63 | L37: 72.86340561 | M37: 4107000 | N37: 4107000 | O37: 4200000 | P37: 4200000 | Q37: 4198605 | R37: 4250000 | S37: 4250000 | T37: 4300000 | U37: 4300000
A38: A570000 | B38: 11 | C38: 0490 | D38: 324 | G38: =SUM(G39) -> 95000 | H38: =SUM(H39) -> 95000 | I38: 95000 | J38: 95000 | K38: 787 | L38: 0.8284210526 | M38: 93575 | N38: 93575 | O38: 50000 | P38: 50000 | Q38: 94979 | R38: 60000 | S38: 60000 | T38: 70000 | U38: 70000
A39: A570000 | B39: 11 | C39: 0490 | D39: 3241 | E39: Naknada troškova osobama izvan radnog odnosa | G39: 95000 | H39: 95000 | I39: 95000 | J39: 95000 | K39: 787 | L39: 0.8284210526 | M39: 93575 | N39: 93575 | O39: 50000 | P39: 50000 | Q39: 94979 | R39: 60000 | S39: 60000 | T39: 70000 | U39: 70000
A40: A570000 | B40: 11 | C40: 0490 | D40: 329 | G40: =SUM(G41:G46) -> 1463000 | H40: =SUM(H41:H46) -> 1463000 | I40: 1463000 | J40: 1463000 | K40: 771406.32 | L40: 52.72770472 | M40: 1441055 | N40: 1441055 | O40: 1500000 | P40: 1500000 | Q40: 1462671 | R40: 1575000 | S40: 1575000 | T40: 1670000 | U40: 1670000
A41: A570000 | B41: 11 | C41: 0490 | D41: 3291 | E41: Naknade za rad predstavničkih i izvršnih tijela, povjerenstava i sl. | G41: 700000 | H41: 700000 | I41: 700000 | J41: 700000 | K41: 416878.25 | L41: 59.55403571 | M41: 689500 | N41: 689500 | O41: 700000 | P41: 700000 | Q41: 699843 | R41: 750000 | S41: 750000 | T41: 800000 | U41: 800000
A42: A570000 | B42: 11 | C42: 0490 | D42: 3292 | E42: Premije osiguranja | G42: 100000 | H42: 100000 | I42: 100000 | J42: 100000 | K42: 0 | L42: 0 | M42: 98500 | N42: 98500 | O42: 100000 | P42: 100000 | Q42: 99977 | R42: 100000 | S42: 100000 | T42: 100000 | U42: 100000
A43: A570000 | B43: 11 | C43: 0490 | D43: 3293 | E43: Reprezentacija | G43: 220000 | H43: 220000 | I43: 220000 | J43: 220000 | K43: 141434.08 | L43: 64.28821818 | M43: 216700 | N43: 216700 | O43: 290000 | P43: 290000 | Q43: 219951 | R43: 300000 | S43: 300000 | T43: 330000 | U43: 330000
A44: A570000 | B44: 11 | C44: 0490 | D44: 3294 | E44: Članarine | G44: 300000 | H44: 300000 | I44: 300000 | J44: 300000 | K44: 167209.52 | L44: 55.73650667 | M44: 295500 | N44: 295500 | O44: 300000 | P44: 300000 | Q44: 299933 | R44: 300000 | S44: 300000 | T44: 300000 | U44: 300000
A45: A570000 | B45: 11 | C45: 0490 | D45: 3295 | E45: Pristojbe i naknade | G45: 23000 | H45: 23000 | I45: 23000 | J45: 23000 | K45: 3620 | L45: 15.73913043 | M45: 22655 | N45: 22655 | O45: 10000 | P45: 10000 | Q45: 22994 | R45: 15000 | S45: 15000 | T45: 20000 | U45: 20000
A46: A570000 | B46: 11 | C46: 0490 | D46: 3299 | E46: Ostali nespomenuti rashodi poslovanja | G46: 120000 | H46: 120000 | I46: 120000 | J46: 120000 | K46: 42264.47 | L46: 35.22039167 | M46: 118200 | N46: 118200 | O46: 100000 | P46: 100000 | Q46: 119973 | R46: 110000 | S46: 110000 | T46: 120000 | U46: 120000
A47: A570000 | B47: 11 | C47: 0490 | D47: 343 | G47: =SUM(G48:G50) -> 388000 | H47: =SUM(H48:H50) -> 388000 | I47: 388000 | J47: 388000 | K47: 45682.91 | L47: 11.77394588 | M47: 388000 | N47: 388000 | O47: 250000 | P47: 250000 | Q47: 388000 | R47: 240000 | S47: 240000 | T47: 230000 | U47: 230000
A48: A570000 | B48: 11 | C48: 0490 | D48: 3431 | E48: Bankarske usluge i usluge platnog prometa | G48: 40000 | H48: 40000 | I48: 40000 | J48: 40000 | K48: 30634.36 | L48: 76.5859 | M48: 40000 | N48: 40000 | O48: 50000 | P48: 50000 | Q48: 40000 | R48: 60000 | S48: 60000 | T48: 70000 | U48: 70000
A49: A570000 | B49: 11 | C49: 0490 | D49: 3433 | E49: Zatezne kamate | G49: 268000 | H49: 268000 | I49: 268000 | J49: 268000 | K49: 14620.81 | L49: 5.455526119 | M49: 268000 | N49: 268000 | O49: 150000 | P49: 150000 | Q49: 268000 | R49: 130000 | S49: 130000 | T49: 110000 | U49: 110000
A50: A570000 | B50: 11 | C50: 0490 | D50: 3434 | E50: Ostali nespomenuti financijski rashodi | G50: 80000 | H50: 80000 | I50: 80000 | J50: 80000 | K50: 427.74 | L50: 0.534675 | M50: 80000 | N50: 80000 | O50: 50000 | P50: 50000 | Q50: 80000 | R50: 50000 | S50: 50000 | T50: 50000 | U50: 50000
A51: A570000 | B51: 11 | C51: 0490 | D51: 363 | G51: =SUM(G52) -> 5000 | H51: =SUM(H52) -> 5000 | I51: 5000 | J51: 5000 | K51: 0 | L51: 0 | M51: 5050 | N51: 5050 | O51: 5000 | P51: 5000 | Q51: 5303 | R51: 7500 | S51: 7500 | T51: 10000 | U51: 10000
A52: A570000 | B52: 11 | C52: 0490 | D52: 3631 | E52: Tekuće pomoći unutar općeg proračuna | G52: 5000 | H52: 5000 | I52: 5000 | J52: 5000 | K52: 0 | L52: 0 | M52: 5050 | N52: 5050 | O52: 5000 | P52: 5000 | Q52: 5303 | R52: 7500 | S52: 7500 | T52: 10000 | U52: 10000
A53: A570000 | B53: 11 | C53: 0490 | D53: 372 | G53: =SUM(G54) -> 130000 | H53: =SUM(H54) -> 130000 | I53: 130000 | J53: 130000 | K53: 25772.5 | L53: 19.825 | M53: 166000 | N53: 166000 | O53: 140000 | P53: 140000 | Q53: 166000 | R53: 150000 | S53: 150000 | T53: 160000 | U53: 160000
A54: A570000 | B54: 11 | C54: 0490 | D54: 3721 | E54: Naknade građanima i kućanstvu u novcu | G54: 130000 | H54: 130000 | I54: 130000 | J54: 130000 | K54: 25772.5 | L54: 19.825 | M54: 166000 | N54: 166000 | O54: 140000 | P54: 140000 | Q54: 166000 | R54: 150000 | S54: 150000 | T54: 160000 | U54: 160000
A55: A570000 | B55: 11 | C55: 0490 | D55: 381 | G55: =SUM(G56) -> 5000 | H55: =SUM(H56) -> 5000 | I55: 5000 | J55: 5000 | K55: 0 | L55: 0 | M55: 5050 | N55: 5050 | O55: 5000 | P55: 5000 | Q55: 5303 | R55: 5500 | S55: 5500 | T55: 10000 | U55: 10000
A56: A570000 | B56: 11 | C56: 0490 | D56: 3811 | E56: Tekuće donacije u novcu | G56: 5000 | H56: 5000 | I56: 5000 | J56: 5000 | K56: 0 | L56: 0 | M56: 5050 | N56: 5050 | O56: 5000 | P56: 5000 | Q56: 5303 | R56: 5500 | S56: 5500 | T56: 10000 | U56: 10000
A57: A570000 | B57: 11 | C57: 0490 | D57: 422 | G57: =SUM(G58:G61) -> 825000 | H57: =SUM(H58:H61) -> 825000 | I57: 825000 | J57: 825000 | K57: 100251.13 | L57: 12.15165212 | M57: 935175 | N57: 935175 | O57: 2000000 | P57: 2000000 | Q57: 981934 | R57: 970000 | S57: 970000 | T57: 800000 | U57: 800000
A58: A570000 | B58: 11 | C58: 0490 | D58: 4221 | E58: Uredska oprema i namještaj | G58: 345000 | H58: 345000 | I58: 345000 | J58: 345000 | K58: 31543.75 | L58: 9.143115942 | M58: 348795 | N58: 348795 | O58: 300000 | P58: 300000 | Q58: 366235 | R58: 350000 | S58: 350000 | T58: 400000 | U58: 400000
A59: A570000 | B59: 11 | C59: 0490 | D59: 4222 | E59: Komunikacijska oprema | G59: 150000 | H59: 150000 | I59: 150000 | J59: 150000 | K59: 9005.22 | L59: 6.00348 | M59: 151650 | N59: 151650 | O59: 1200000 | P59: 1200000 | Q59: 159233 | R59: 300000 | S59: 300000 | T59: 150000 | U59: 150000
A60: A570000 | B60: 11 | C60: 0490 | D60: 4223 | E60: Oprema za održavanje i zaštitu | G60: 170000 | H60: 170000 | I60: 170000 | J60: 170000 | K60: 46907.76 | L60: 27.5928 | M60: 171870 | N60: 171870 | O60: 100000 | P60: 100000 | Q60: 180463 | R60: 120000 | S60: 120000 | T60: 150000 | U60: 150000
A61: A570000 | B61: 11 | C61: 0490 | D61: 4227 | E61: Uređaji, strojevi i oprema za ostale namjene | G61: 160000 | H61: 160000 | I61: 160000 | J61: 160000 | K61: 12794.4 | L61: 7.9965 | M61: 262860 | N61: 262860 | O61: 400000 | P61: 400000 | Q61: 276003 | R61: 200000 | S61: 200000 | T61: 100000 | U61: 100000
A62: A570000 | B62: 61 | C62: 0490 | D62: 326 | I62: =I63 -> 0 | J62: =J63 -> 0 | K62: =K63 -> 3942274.38 | L62: - | O62: =O63 -> 0 | P62: =P63 -> 0 | Q62: 0 | R62: 0 | S62: 0 | T62: 0 | U62: 0
A63: A570000 | B63: 61 | C63: 0490 | D63: 3237 | E63: Intelektualne i osobne usluge | I63: 0 | K63: 3942274.38 | L63: -
A64: K570319 | E64: Obnova voznog parka | F64: 3101 UPRAVLJANJE NA PODRUČJU PROMETNE POLITIKE - 31 PROMET, PROMETNA INFRASTRUKTURA I KOMUNIKACIJE | G64: =G65+G67+G71 -> 1740000 | H64: =H65+H67+H71 -> 1740000 | I64: 2740000 | J64: 2740000 | K64: 1388852.35 | L64: 50.68804197 | M64: 1713900 | N64: 1713900 | O64: 2300000 | P64: 2300000 | Q64: 1739610 | R64: 2400000 | S64: 2400000 | T64: 2670000 | U64: 2670000
A65: K570319 | B65: 11 | C65: 0490 | D65: 322 | G65: =SUM(G66) -> 180000 | H65: =SUM(H66) -> 180000 | I65: 180000 | J65: 180000 | K65: 79131.96 | L65: 43.9622 | M65: 177300 | N65: 177300 | O65: 150000 | P65: 150000 | Q65: 179960 | R65: 150000 | S65: 150000 | T65: 150000 | U65: 150000
A66: K570319 | B66: 11 | C66: 0490 | D66: 3225 | E66: Sitni inventar i auto-gume | G66: 180000 | H66: 180000 | I66: 180000 | J66: 180000 | K66: 79131.96 | L66: 43.9622 | M66: 177300 | N66: 177300 | O66: 150000 | P66: =O66 -> 150000 | Q66: 179960 | R66: 150000 | S66: =R66 -> 150000 | T66: 150000 | U66: =T66 -> 150000
A67: K570319 | B67: 11 | C67: 0490 | D67: 323 | G67: =SUM(G68:G70) -> 1360000 | H67: =SUM(H68:H70) -> 1360000 | I67: 2360000 | J67: 2360000 | K67: 1112993.15 | L67: 47.16072669 | M67: 1339600 | N67: 1339600 | O67: 1800000 | P67: 1800000 | Q67: 1359695 | R67: 1900000 | S67: 1900000 | T67: 2200000 | U67: 2200000
A68: K570319 | B68: 11 | C68: 0490 | D68: 3232 | E68: Usluge tekućeg i investicijskog održavanja | G68: 680000 | H68: 680000 | I68: 680000 | J68: 680000 | K68: 416406.75 | L68: 61.23628676 | M68: 669800 | N68: 669800 | O68: 600000 | P68: =O68 -> 600000 | Q68: 679847 | R68: 500000 | S68: =R68 -> 500000 | T68: 500000 | U68: =T68 -> 500000
A69: K570319 | B69: 11 | C69: 0490 | D69: 3235 | E69: Zakupnine i najamnine | G69: 500000 | H69: 500000 | I69: 1500000 | J69: 1500000 | K69: 599764.25 | L69: 39.98428333 | M69: 492500 | N69: 492500 | O69: 1000000 | P69: =O69 -> 1000000 | Q69: 499888 | R69: 1200000 | S69: =R69 -> 1200000 | T69: 1500000 | U69: =T69 -> 1500000
A70: K570319 | B70: 11 | C70: 0490 | D70: 3239 | E70: Ostale usluge | G70: 180000 | H70: 180000 | I70: 180000 | J70: 180000 | K70: 96822.15 | L70: 53.79008333 | M70: 177300 | N70: 177300 | O70: 200000 | P70: =O70 -> 200000 | Q70: 179960 | R70: 200000 | S70: =R70 -> 200000 | T70: 200000 | U70: =T70 -> 200000
A71: K570319 | B71: 11 | C71: 0490 | D71: 329 | G71: =SUM(G72) -> 200000 | H71: =SUM(H72) -> 200000 | I71: 200000 | J71: 200000 | K71: 196727.24 | L71: 98.36362 | M71: 197000 | N71: 197000 | O71: 350000 | P71: 350000 | Q71: 199955 | R71: 350000 | S71: 350000 | T71: 320000 | U71: 320000
A72: K570319 | B72: 11 | C72: 0490 | D72: 3292 | E72: Premije osiguranja | G72: 200000 | H72: 200000 | I72: 200000 | J72: 200000 | K72: 196727.24 | L72: 98.36362 | M72: 197000 | N72: 197000 | O72: 350000 | P72: =O72 -> 350000 | Q72: 199955 | R72: 350000 | S72: =R72 -> 350000 | T72: 320000 | U72: =T72 -> 320000
A73: PROMJENA FP K570321 | E73: Informatizacija | F73: 3101 UPRAVLJANJE NA PODRUČJU PROMETNE POLITIKE - 31 PROMET, PROMETNA INFRASTRUKTURA I KOMUNIKACIJE | G73: =G74+G76+G81+G84+G88 -> 10257603 | H73: =H74+H76+H81+H84+H88 -> 10257603 | I73: 10257603 | J73: 10257603 | K73: 6550421.83 | L73: 63.8591865 | M73: 9035873 | N73: 9035873 | O73: 15610000 | P73: 15610000 | Q73: 9345822 | R73: 16220000 | S73: 16220000 | T73: 16730000 | U73: 16730000
A74: K570321 | B74: 11 | C74: 0490 | D74: 322 | G74: =SUM(G75) -> 122000 | H74: =SUM(H75) -> 122000 | I74: 122000 | J74: 122000 | K74: 12258.74 | L74: 10.04814754 | M74: 120170 | N74: 120170 | O74: 50000 | P74: 50000 | Q74: 121973 | R74: 50000 | S74: 50000 | T74: 50000 | U74: 50000
A75: K570321 | B75: 11 | C75: 0490 | D75: 3224 | E75: Materijal i dijelovi za tekuće i inv.odr. | G75: 122000 | H75: 122000 | I75: 122000 | J75: 122000 | K75: 12258.74 | L75: 10.04814754 | M75: 120170 | N75: 120170 | O75: 50000 | P75: =O75 -> 50000 | Q75: 121973 | R75: 50000 | S75: =R75 -> 50000 | T75: 50000 | U75: =T75 -> 50000
A76: K570321 | B76: 11 | C76: 0490 | D76: 323 | G76: =SUM(G77:G80) -> 5868000 | H76: =SUM(H77:H80) -> 5868000 | I76: 5868000 | J76: 5868000 | K76: 4703463.39 | L76: 80.1544545 | M76: 4575480 | N76: 4575480 | O76: 10950000 | P76: 10950000 | Q76: 4666613 | R76: 12620000 | S76: 12620000 | T76: 12980000 | U76: 12980000
A77: K570321 | B77: 11 | C77: 0490 | D77: 3232 | E77: Usluge tekućeg i investicijskog održavanja | G77: 362000 | H77: 362000 | I77: 362000 | J77: 362000 | K77: 253139.62 | L77: 69.92807182 | M77: 356570 | N77: 356570 | O77: 400000 | P77: =O77 -> 400000 | Q77: 361919 | R77: 350000 | S77: =R77 -> 350000 | T77: 350000 | U77: =T77 -> 350000
A78: K570321 | B78: 11 | C78: 0490 | D78: 3235 | E78: Zakupnine i najamnine | G78: 20000 | H78: 20000 | I78: 20000 | J78: 20000 | K78: 1950 | L78: 9.75 | M78: 19700 | N78: 19700 | O78: 3000000 | P78: 3000000 | Q78: 19996 | R78: 4400000 | S78: 4400000 | T78: 4500000 | U78: 4500000
A79: K570321 | B79: 11 | C79: 0490 | D79: 3237 | E79: Intelektualne i osobne usluge | G79: 86000 | H79: 86000 | I79: 86000 | J79: 86000 | K79: 0 | L79: 0 | M79: 84710 | N79: 84710 | O79: 50000 | P79: 50000 | Q79: 85980 | R79: 70000 | S79: 70000 | T79: 80000 | U79: 80000
A80: K570321 | B80: 11 | C80: 0490 | D80: 3238 | E80: Računalne usluge | G80: 5400000 | H80: 5400000 | I80: 5400000 | J80: 5400000 | K80: 4448373.77 | L80: 82.37729204 | M80: 4114500 | N80: 4114500 | O80: 7500000 | P80: 7500000 | Q80: 4198718 | R80: 7800000 | S80: 7800000 | T80: 8050000 | U80: 8050000
A81: K570321 | B81: 11 | C81: 0490 | D81: 412 | G81: =SUM(G82:G83) -> 1351000 | H81: =SUM(H82:H83) -> 1351000 | I81: 1351000 | J81: 1351000 | K81: 877362.33 | L81: 64.94169726 | M81: 1365861 | N81: 1365861 | O81: 1610000 | P81: 1610000 | Q81: 1434155 | R81: 400000 | S81: 400000 | T81: 450000 | U81: 450000
A82: K570321 | B82: 11 | C82: 0490 | D82: 4123 | E82: Licence | G82: 1350000 | H82: 1350000 | I82: 1350000 | J82: 1350000 | K82: 877362.33 | L82: 64.98980222 | M82: 1364850 | N82: 1364850 | O82: 1610000 | P82: 1610000 | Q82: 1433093 | R82: 400000 | S82: 400000 | T82: 450000 | U82: 450000
A83: K570321 | B83: 11 | C83: 0490 | D83: 4126 | E83: Ostala nematerijalna imovina | G83: 1000 | H83: 1000 | I83: 1000 | J83: 1000 | K83: 0 | L83: 0 | M83: 1011 | N83: 1011 | P83: 0 | Q83: 1062 | S83: 0 | U83: 0
A84: K570321 | B84: 11 | C84: 0490 | D84: 422 | G84: =SUM(G85:G87) -> 2066603 | H84: =SUM(H85:H87) -> 2066603 | I84: 2066603 | J84: 2066603 | K84: 895087.37 | L84: 43.31201348 | M84: 2115012 | N84: 2115012 | O84: 2100000 | P84: 2100000 | Q84: 2220763 | R84: 2200000 | S84: 2200000 | T84: 2250000 | U84: 2250000
A85: K570321 | B85: 11 | C85: 0490 | D85: 4221 | E85: Uredska oprema i namještaj | G85: 1800000 | H85: 1800000 | I85: 1800000 | J85: 1800000 | K85: 811476.83 | L85: 45.08204611 | M85: 1819800 | N85: 1819800 | O85: 1850000 | P85: 1850000 | Q85: 1910790 | R85: 2000000 | S85: 2000000 | T85: 2000000 | U85: 2000000
A86: K570321 | B86: 11 | C86: 0490 | D86: 4222 | E86: Komunikacijska oprema | G86: 252603 | H86: 252603 | I86: 252603 | J86: 252603 | K86: 83610.54 | L86: 33.09958314 | M86: 281058 | N86: 281058 | O86: 250000 | P86: 250000 | Q86: 295111 | R86: 200000 | S86: 200000 | T86: 250000 | U86: 250000
A87: K570321 | B87: 11 | C87: 0490 | D87: 4225 | E87: Instrumenti, uređaji i strojevi | G87: 14000 | H87: 14000 | I87: 14000 | J87: 14000 | K87: 0 | L87: 0 | M87: 14154 | N87: 14154 | P87: 0 | Q87: 14862 | S87: 0 | U87: 0
A88: K570321 | B88: 11 | C88: 0490 | D88: 426 | G88: =SUM(G89) -> 850000 | H88: =SUM(H89) -> 850000 | I88: 850000 | J88: 850000 | K88: 62250 | L88: 7.323529412 | M88: 859350 | N88: 859350 | O88: 900000 | P88: 900000 | Q88: 902318 | R88: 950000 | S88: 950000 | T88: 1000000 | U88: 1000000
A89: K570321 | B89: 11 | C89: 0490 | D89: 4262 | E89: Ulaganja u računalne programe | G89: 850000 | H89: 850000 | I89: 850000 | J89: 850000 | K89: 62250 | L89: 7.323529412 | M89: 859350 | N89: 859350 | O89: 900000 | P89: 900000 | Q89: 902318 | R89: 950000 | S89: 950000 | T89: 1000000 | U89: 1000000
A90: A250997 | E90: Obveze po sudskim sporovima | F90: 3101 UPRAVLJANJE NA PODRUČJU PROMETNE POLITIKE - 31 PROMET, PROMETNA INFRASTRUKTURA I KOMUNIKACIJE | G90: =G91+G93 -> 4400000 | H90: =H91+H93 -> 4400000 | I90: 4400000 | J90: 4400000 | K90: 32664.5 | L90: 0.742375 | M90: 2724800 | N90: 2724800 | O90: 3850000 | P90: 3850000 | Q90: 2749622 | R90: 4070000 | S90: 4070000 | T90: 4000000 | U90: 4000000
A91: A250997 | B91: 11 | C91: 0490 | D91: 329 | G91: =SUM(G92) -> 2000000 | H91: =SUM(H92) -> 2000000 | I91: 2000000 | J91: 2000000 | K91: 32664.5 | L91: =IF(I91=0, "-", K91/I91*100) -> 1.633225 | M91: 654800 | N91: 654800 | O91: 1850000 | P91: 1850000 | Q91: 679622 | R91: 2000000 | S91: 2000000 | T91: 2000000 | U91: 2000000
A92: A250997 | B92: 11 | C92: 0490 | D92: 3299 | E92: Ostali nespomenuti rashodi poslovanja | G92: 2000000 | H92: 2000000 | I92: 2000000 | J92: 2000000 | K92: 32664.5 | L92: 1.633225 | M92: 654800 | N92: 654800 | O92: 1850000 | P92: =O92 -> 1850000 | Q92: 679622 | R92: 2000000 | S92: =R92 -> 2000000 | T92: 2000000 | U92: =T92 -> 2000000
A93: A250997 | B93: 11 | C93: 0490 | D93: 343 | G93: =SUM(G94) -> 2400000 | H93: =SUM(H94) -> 2400000 | I93: 2400000 | J93: 2400000 | K93: 0 | L93: 0 | M93: 2070000 | N93: 2070000 | O93: 2000000 | P93: 2000000 | Q93: 2070000 | R93: 2070000 | S93: 2070000 | T93: 2000000 | U93: 2000000
A94: A250997 | B94: 11 | C94: 0490 | D94: 3433 | E94: Zatezne kamate | G94: 2400000 | H94: 2400000 | I94: 2400000 | J94: 2400000 | K94: 0 | L94: 0 | M94: 2070000 | N94: 2070000 | O94: 2000000 | P94: =O94 -> 2000000 | Q94: 2070000 | R94: 2070000 | S94: =R94 -> 2070000 | T94: 2000000 | U94: =T94 -> 2000000
A95: K810016 | E95: Rekonstrukcija, obnova i održavanje poslovnih zgrada Ministarstva | F95: 3101 UPRAVLJANJE NA PODRUČJU PROMETNE POLITIKE - 31 PROMET, PROMETNA INFRASTRUKTURA I KOMUNIKACIJE | G95: =G96+G99+G101+G103 -> 1566000 | H95: =H96+H99+H101+H103 -> 1566000 | I95: 1566000 | J95: 1566000 | K95: 1184767.29 | L95: 75.65563793 | M95: 1156154 | N95: 1156154 | O95: 18100000 | P95: 18100000 | Q95: 1183900 | R95: 30000000 | S95: 30000000 | T95: 23650000 | U95: 23650000
A96: K810016 | B96: 11 | C96: 0490 | D96: 323 | G96: =SUM(G97:G98) -> 872000 | H96: =SUM(H97:H98) -> 872000 | I96: 872000 | J96: 872000 | K96: 809983.26 | L96: 92.88798853 | M96: 858920 | N96: 858920 | O96: 4000000 | P96: 4000000 | Q96: 871804 | R96: 4000000 | S96: 4000000 | T96: 3500000 | U96: 3500000
A97: K810016 | B97: 11 | C97: 0490 | D97: 3232 | E97: Usluge tekućeg i investicijskog održavanja | G97: 855000 | H97: 855000 | I97: 855000 | J97: 855000 | K97: 807483.26 | L97: 94.44248655 | M97: 842175 | N97: 842175 | O97: 2000000 | P97: =O97 -> 2000000 | Q97: 854808 | R97: 1000000 | S97: =R97 -> 1000000 | T97: 1000000 | U97: =T97 -> 1000000
A98: K810016 | B98: 11 | C98: 0490 | D98: 3237 | E98: Intelektualne i osobne usluge | G98: 17000 | H98: 17000 | I98: 17000 | J98: 17000 | K98: 2500 | L98: 14.70588235 | M98: 16745 | N98: 16745 | O98: 2000000 | P98: =O98 -> 2000000 | Q98: 16996 | R98: 3000000 | S98: =R98 -> 3000000 | T98: 2500000 | U98: =T98 -> 2500000
A99: K810016 | B99: 11 | C99: 0490 | D99: 412 | G99: =SUM(G100) -> 18000 | H99: =SUM(H100) -> 18000 | I99: 18000 | J99: 18000 | K99: 0 | L99: 0 | M99: 18198 | N99: 18198 | O99: 2000000 | P99: 2000000 | Q99: 19108 | R99: 3500000 | S99: 3500000 | T99: 50000 | U99: 50000
A100: K810016 | B100: 11 | C100: 0490 | D100: 4126 | E100: Ostala nematerijalna imovina | G100: 18000 | H100: 18000 | I100: 18000 | J100: 18000 | L100: 0 | M100: 18198 | N100: 18198 | O100: 2000000 | P100: =O100 -> 2000000 | Q100: 19108 | R100: 3500000 | S100: =R100 -> 3500000 | T100: 50000 | U100: =T100 -> 50000
A101: K810016 | B101: 11 | C101: 0490 | D101: 451 | G101: =SUM(G102) -> 484000 | H101: =SUM(H102) -> 484000 | I101: 484000 | J101: 484000 | K101: 374784.03 | L101: 77.43471694 | M101: 186024 | N101: 186024 | O101: 12000000 | P101: 12000000 | Q101: 195325 | R101: 22000000 | S101: 22000000 | T101: 20000000 | U101: 20000000
A102: K810016 | B102: 11 | C102: 0490 | D102: 4511 | E102: Dodatna ulaganja na građevinskim objektima | G102: 484000 | H102: 484000 | I102: 484000 | J102: 484000 | K102: 374784.03 | L102: 77.43471694 | M102: 186024 | N102: 186024 | O102: 12000000 | P102: =O102 -> 12000000 | Q102: 195325 | R102: 22000000 | S102: =R102 -> 22000000 | T102: 20000000 | U102: =T102 -> 20000000
A103: K810016 | B103: 11 | C103: 0490 | D103: 452 | G103: =SUM(G104) -> 192000 | H103: =SUM(H104) -> 192000 | I103: 192000 | J103: 192000 | K103: 0 | L103: 0 | M103: 93012 | N103: 93012 | O103: 100000 | P103: 100000 | Q103: 97663 | R103: 500000 | S103: 500000 | T103: 100000 | U103: 100000
A104: K810016 | B104: 11 | C104: 0490 | D104: 4521 | E104: Dodatna ulaganja na postrojenjima i opremi | G104: 192000 | H104: 192000 | I104: 192000 | J104: 192000 | L104: 0 | M104: 93012 | N104: 93012 | O104: 100000 | P104: =O104 -> 100000 | Q104: 97663 | R104: 500000 | S104: =R104 -> 500000 | T104: 100000 | U104: =T104 -> 100000
A105: NOVO | E105: Provedba Projekta e-građani | F105: 3101 UPRAVLJANJE NA PODRUČJU PROMETNE POLITIKE - 31 PROMET, PROMETNA INFRASTRUKTURA I KOMUNIKACIJE | G105: =SUM(G108) -> 0 | H105: =SUM(H108) -> 0 | I105: =SUM(I108+I106) -> 0 | J105: =SUM(J108+J106) -> 0 | K105: 0 | L105: - | M105: 0 | N105: 0 | O105: 250000 | P105: 250000 | Q105: 0 | R105: 700000 | S105: 700000 | T105: 500000 | U105: 500000
B106: 11 | C106: 0490 | D106: 323 | I106: =I107 -> 0 | J106: =J107 -> 0 | K106: 0 | L106: - | M106: 0 | N106: 0 | O106: 100000 | P106: 100000 | Q106: 0 | R106: 200000 | S106: 200000 | T106: 200000 | U106: 200000
B107: 11 | C107: 0490 | D107: 3238 | E107: Računalne usluge | L107: - | O107: 100000 | P107: =O107 -> 100000 | R107: 200000 | S107: =R107 -> 200000 | T107: 200000 | U107: =T107 -> 200000
B108: 11 | C108: 0490 | D108: 426 | G108: =SUM(G109) -> 0 | H108: =SUM(H109) -> 0 | I108: 0 | J108: 0 | K108: 0 | L108: - | M108: 0 | N108: 0 | O108: 150000 | P108: 150000 | Q108: 0 | R108: 500000 | S108: 500000 | T108: 300000 | U108: 300000
B109: 11 | C109: 0490 | D109: 4262 | E109: Ulaganja u računalne programe | L109: - | O109: 150000 | P109: =O109 -> 150000 | R109: 500000 | S109: =R109 -> 500000 | T109: 300000 | U109: =T109 -> 300000
A110: POMORSTVO | G110: =G111+G355 -> 326771633 | H110: =H111+H355 -> 320019633 | I110: =I111+I355 -> 510057895 | J110: =J111+J355 -> 503305895 | K110: =K111+K355 -> 450658077.8 | L110: 88.35429904 | M110: =M111+M355 -> 294503132 | N110: 290273132 | O110: 615538763 | P110: 612411263 | Q110: 288672766 | R110: 538737182 | S110: 535737182 | T110: 508683395 | U110: 505683395
A111: Uprava pomorske i unutarnje plovidbe, brodarstva, luka i pomorskog dobra | G111: =G112+G115+G118+G121+G126+G129+G134+G137+G142+G145+G154+G157+G160+G168+G171+G175+G181+G186+G189+G194+G202+G236+G240+G248+G251+G266+G276+G290+G296+G309+G312+G317+G332+G339+G342+G349+G352+G207+G210+G233 -> 236063709 | H111: =H112+H115+H118+H121+H126+H129+H134+H137+H142+H145+H154+H157+H160+H168+H171+H175+H181+H186+H189+H194+H202+H236+H240+H248+H251+H266+H276+H290+H296+H309+H312+H317+H332+H339+H342+H349+H352+H207+H210+H233 -> 232311709 | I111: =I112+I115+I118+I121+I126+I129+I134+I137+I142+I145+I154+I157+I160+I168+I171+I175+I181+I186+I189+I194+I202+I236+I240+I248+I251+I266+I276+I290+I296+I309+I312+I317+I332+I339+I342+I349+I352+I207+I210+I233+I245 -> 420089473 | J111: 416337473 | K111: 389121511.2 | L111: 92.62824618 | M111: 202795559 | N111: 201565559 | O111: =O112+O115+O118+O121+O126+O129+O134+O137+O142+O145+O154+O157+O160+O168+O171+O175+O181+O186+O189+O194+O202+O236+O240+O248+O251+O266+O276+O290+O296+O309+O312+O317+O332+O339+O342+O349+O352+O207+O210+O233+O245 -> 519592183 | P111: =P112+P115+P118+P121+P126+P129+P134+P137+P142+P145+P154+P157+P160+P168+P171+P175+P181+P186+P189+P194+P202+P236+P240+P248+P251+P266+P276+P290+P296+P309+P312+P317+P332+P339+P342+P349+P352+P207+P210+P233+P245 -> 519464683 | Q111: 194402220 | R111: 440491773 | S111: 440491773 | T111: 409400409 | U111: 409400409
A112: PROMJENA PRIPRADNOSTI A570503 | E112: Potpora Lučkoj upravi Ploče za realizaciju Projekta integracije trgovine i transporta | F112: NOVI PROGRAM - RAZVOJ SUSTAVA POMORSKOG PROMETA, POMORSKOG DOBRA I LUKA, TE ZAŠTITA MORSKOG OKOLIŠA OD ONEČIŠĆENJA S POMORSKIH OBJEKATA - 31 PROMET, PROMETNA INFRASTRUKTURA I KOMUNIKACIJE | G112: =SUM(G113) -> 1000000 | H112: =SUM(H113) -> 1000000 | I112: 31000000 | J112: 31000000 | K112: 31000000 | L112: 100 | M112: 1972000 | N112: 1972000 | O112: 44392500 | P112: 44392500 | Q112: 0 | R112: 6000000 | S112: 6000000 | T112: 0 | U112: 0
A113: A570503 | B113: 11 | C113: 0452 | D113: 382 | G113: =SUM(G114) -> 1000000 | H113: 1000000 | I113: 31000000 | J113: 31000000 | K113: 31000000 | L113: 100 | M113: 1972000 | N113: 1972000 | O113: 44392500 | P113: 44392500 | Q113: 0 | R113: 6000000 | S113: 6000000 | T113: 0 | U113: 0
A114: A570503 | B114: 11 | C114: 0452 | D114: 3821 | E114: Kapitalne donacije neprofitnim organizacijama | G114: 1000000 | H114: 1000000 | I114: 31000000 | J114: 31000000 | K114: 31000000 | L114: 100 | M114: 1972000 | N114: 1972000 | O114: 44392500 | P114: =O114 -> 44392500 | Q114: 0 | R114: 6000000 | S114: =R114 -> 6000000 | T114: 0 | U114: =T114 -> 0
A115: PROMJENA PRIPRADNOSTI A810034 | E115: Potpora Lučkoj upravi Ploče za otplatu Zajma Svjetske banke (IBRD) -Projekt integracije trgovine i transporta | F115: NOVI PROGRAM - RAZVOJ SUSTAVA POMORSKOG PROMETA, POMORSKOG DOBRA I LUKA, TE ZAŠTITA MORSKOG OKOLIŠA OD ONEČIŠĆENJA S POMORSKIH OBJEKATA - 31 PROMET, PROMETNA INFRASTRUKTURA I KOMUNIKACIJE | G115: =SUM(G116) -> 20000000 | H115: =SUM(H116) -> 20000000 | I115: 20000000 | J115: 20000000 | K115: 20000000 | L115: 100 | M115: 22000000 | N115: 22000000 | O115: 35000000 | P115: 35000000 | Q115: 21650000 | R115: 43000000 | S115: 43000000 | T115: 51000000 | U115: 51000000
A116: A810034 | B116: 11 | C116: 0452 | D116: 381 | G116: =SUM(G117) -> 20000000 | H116: 20000000 | I116: 20000000 | J116: 20000000 | K116: 20000000 | L116: 100 | M116: 22000000 | N116: 22000000 | O116: 35000000 | P116: 35000000 | Q116: 21650000 | R116: 43000000 | S116: 43000000 | T116: 51000000 | U116: 51000000
A117: A810034 | B117: 11 | C117: 0452 | D117: 3811 | E117: Tekuće donacije u novcu | G117: 20000000 | H117: 20000000 | I117: 20000000 | J117: 20000000 | K117: 20000000 | L117: 100 | M117: 22000000 | N117: 22000000 | O117: 35000000 | P117: =O117 -> 35000000 | Q117: 21650000 | R117: 43000000 | S117: =R117 -> 43000000 | T117: 51000000 | U117: =T117 -> 51000000
A118: ZATVORITI A570288 | E118: Poticanje gradnje brodova za hrvatske brodare te izgradnja i rekonstrukcija plovnih objekata u hrvatskim brodogradilištima-Obveze iz prethodnog razdoblja | F118: NOVI PROGRAM - RAZVOJ SUSTAVA POMORSKOG PROMETA, POMORSKOG DOBRA I LUKA, TE ZAŠTITA MORSKOG OKOLIŠA OD ONEČIŠĆENJA S POMORSKIH OBJEKATA - 31 PROMET, PROMETNA INFRASTRUKTURA I KOMUNIKACIJE | G118: =SUM(G119) -> 9500000 | H118: =SUM(H119) -> 9500000 | I118: 136095764 | J118: 136095764 | K118: 136095764 | L118: 100 | M118: 0 | N118: 0 | O118: 0 | P118: 0 | Q118: 0 | R118: 0 | S118: 0 | T118: 0 | U118: 0
A119: A570288 | B119: 11 | C119: 0452 | D119: 386 | G119: =SUM(G120) -> 9500000 | H119: 9500000 | I119: 136095764 | J119: 136095764 | K119: 136095764 | L119: 100 | M119: 0 | N119: 0 | O119: 0 | P119: 0 | Q119: 0 | R119: 0 | S119: 0 | T119: 0 | U119: 0
A120: A570288 | B120: 11 | C120: 0452 | D120: 3862 | E120: Kapitalne pomoći kreditnim i ostalim financijskim institucijama te trgovačkim društvima izvan javnog sektora | G120: 9500000 | H120: 9500000 | I120: 136095764 | J120: 136095764 | K120: 136095764 | L120: 100 | M120: 0 | N120: 0 | P120: =O120 -> 0 | Q120: 0 | S120: =R120 -> 0 | U120: =T120 -> 0
A121: PROMJENA PRIPADNOSTI A819003 | E121: Promocija pomorstva i intermodalnosti | F121: NOVI PROGRAM - RAZVOJ SUSTAVA POMORSKOG PROMETA, POMORSKOG DOBRA I LUKA, TE ZAŠTITA MORSKOG OKOLIŠA OD ONEČIŠĆENJA S POMORSKIH OBJEKATA - 31 PROMET, PROMETNA INFRASTRUKTURA I KOMUNIKACIJE | G121: =G122+G124 -> 120000 | H121: =H122+H124 -> 120000 | I121: 120000 | J121: 120000 | K121: 0 | L121: 0 | M121: 0 | N121: 0 | O121: 50000 | P121: 50000 | Q121: 0 | R121: 50000 | S121: 50000 | T121: 50000 | U121: 50000
A122: A819003 | B122: 11 | C122: 0452 | D122: 323 | G122: =SUM(G123) -> 60000 | H122: =SUM(H123) -> 60000 | I122: 60000 | J122: 60000 | K122: 0 | L122: 0 | M122: 0 | N122: 0 | O122: 50000 | P122: 50000 | Q122: 0 | R122: 50000 | S122: 50000 | T122: 50000 | U122: 50000
A123: A819003 | B123: 11 | C123: 0452 | D123: 3233 | E123: Usluge promidžbe i informiranja | G123: 60000 | H123: 60000 | I123: 60000 | J123: 60000 | K123: 0 | L123: 0 | M123: 0 | N123: 0 | O123: 50000 | P123: =O123 -> 50000 | Q123: 0 | R123: 50000 | S123: 50000 | T123: 50000 | U123: =T123 -> 50000
A124: A819003 | B124: 11 | C124: 0452 | D124: 363 | G124: =SUM(G125) -> 60000 | H124: =SUM(H125) -> 60000 | I124: 60000 | J124: 60000 | K124: 0 | L124: 0 | M124: 0 | N124: 0 | O124: 0 | P124: 0 | Q124: 0 | R124: 0 | S124: 0 | T124: 0 | U124: 0
A125: A819003 | B125: 11 | C125: 0452 | D125: 3631 | E125: Tekuće pomoći unutar općeg proračuna | G125: 60000 | H125: 60000 | I125: 60000 | J125: 60000 | K125: 0 | L125: 0 | M125: 0 | N125: 0 | P125: =O125 -> 0 | Q125: 0 | S125: =R125 -> 0 | U125: =T125 -> 0
A126: PROMJENA PRIPADNOSTI A570293 | E126: Potpora Lučkoj upravi Rijeka za vraćanje obveza po zajmu EDCF - Projekt "Samsung" | F126: NOVI PROGRAM - RAZVOJ SUSTAVA POMORSKOG PROMETA, POMORSKOG DOBRA I LUKA, TE ZAŠTITA MORSKOG OKOLIŠA OD ONEČIŠĆENJA S POMORSKIH OBJEKATA - 31 PROMET, PROMETNA INFRASTRUKTURA I KOMUNIKACIJE | G126: =SUM(G127) -> 3000000 | H126: =SUM(H127) -> 3000000 | I126: 3000000 | J126: 3000000 | K126: 3000000 | L126: 100 | M126: 5000000 | N126: 5000000 | O126: 4000000 | P126: 4000000 | Q126: 5000000 | R126: 4000000 | S126: 4000000 | T126: 4000000 | U126: 4000000
A127: A570293 | B127: 11 | C127: 0452 | D127: 381 | G127: =SUM(G128) -> 3000000 | H127: 3000000 | I127: 3000000 | J127: 3000000 | K127: 3000000 | L127: 100 | M127: 5000000 | N127: 5000000 | O127: 4000000 | P127: 4000000 | Q127: 5000000 | R127: 4000000 | S127: 4000000 | T127: 4000000 | U127: 4000000
A128: A570293 | B128: 11 | C128: 0452 | D128: 3811 | E128: Tekuće donacije u novcu | G128: 3000000 | H128: 3000000 | I128: 3000000 | J128: 3000000 | K128: 3000000 | L128: 100 | M128: 5000000 | N128: 5000000 | O128: 4000000 | P128: =O128 -> 4000000 | Q128: 5000000 | R128: 4000000 | S128: =R128 -> 4000000 | T128: 4000000 | U128: =T128 -> 4000000
A129: PROMJENA PRIPADNOSTI A570294 | E129: Potpora Lučkoj upravi Rijeka za realizaciju zajma Svjetske banke (IBRD) -Projekt obnove riječkog prometnog pravca | F129: NOVI PROGRAM - RAZVOJ SUSTAVA POMORSKOG PROMETA, POMORSKOG DOBRA I LUKA, TE ZAŠTITA MORSKOG OKOLIŠA OD ONEČIŠĆENJA S POMORSKIH OBJEKATA - 31 PROMET, PROMETNA INFRASTRUKTURA I KOMUNIKACIJE | G129: =G130+G132 -> 52900000 | H129: =H130+H132 -> 52900000 | I129: 53900000 | J129: 53900000 | K129: 52900000 | L129: 98.14471243 | M129: 51400000 | N129: 51400000 | O129: 105900000 | P129: 105900000 | Q129: 48000000 | R129: 108900000 | S129: 108900000 | T129: 105900000 | U129: 105900000
A130: A570294 | B130: 11 | C130: 0452 | D130: 381 | G130: =SUM(G131) -> 35900000 | H130: =SUM(H131) -> 35900000 | I130: 35900000 | J130: 35900000 | K130: 35900000 | L130: 100 | M130: 34400000 | N130: 34400000 | O130: 45900000 | P130: 45900000 | Q130: 31000000 | R130: 45400000 | S130: 45400000 | T130: 43900000 | U130: 43900000
A131: A570294 | B131: 11 | C131: 0452 | D131: 3811 | E131: Tekuće donacije u novcu | G131: 35900000 | H131: 35900000 | I131: 35900000 | J131: 35900000 | K131: 35900000 | L131: 100 | M131: 34400000 | N131: 34400000 | O131: 45900000 | P131: =O131 -> 45900000 | Q131: 31000000 | R131: 45400000 | S131: =R131 -> 45400000 | T131: 43900000 | U131: =T131 -> 43900000
A132: A570294 | B132: 11 | C132: 0452 | D132: 382 | G132: =SUM(G133) -> 17000000 | H132: =SUM(H133) -> 17000000 | I132: 18000000 | J132: 18000000 | K132: 17000000 | L132: 94.44444444 | M132: 17000000 | N132: 17000000 | O132: 60000000 | P132: 60000000 | Q132: 17000000 | R132: 63500000 | S132: 63500000 | T132: 62000000 | U132: 62000000
A133: A570294 | B133: 11 | C133: 0452 | D133: 3821 | E133: Kapitalne donacije neprofitnim organizacijama | G133: 17000000 | H133: 17000000 | I133: 18000000 | J133: 18000000 | K133: 17000000 | L133: 94.44444444 | M133: 17000000 | N133: 17000000 | O133: 60000000 | P133: =O133 -> 60000000 | Q133: 17000000 | R133: 63500000 | S133: =R133 -> 63500000 | T133: 62000000 | U133: =T133 -> 62000000
A134: PROMJENA PRIPADNOSTI A570219 | E134: Sanacija i rekonstrukcija objekata podgradnje u lukama otvorenim za javni promet od županijskog i lokalnog značaja te modernizacija, obnova i izgradnja ribarske infrastrukture | F134: NOVI PROGRAM - RAZVOJ SUSTAVA POMORSKOG PROMETA, POMORSKOG DOBRA I LUKA, TE ZAŠTITA MORSKOG OKOLIŠA OD ONEČIŠĆENJA S POMORSKIH OBJEKATA - 31 PROMET, PROMETNA INFRASTRUKTURA I KOMUNIKACIJE | G134: =SUM(G135) -> 26500000 | H134: =SUM(H135) -> 26500000 | I134: 26500000 | J134: 26500000 | K134: 17430000 | L134: 65.77358491 | M134: 26500000 | N134: 26500000 | O134: 27000000 | P134: 27000000 | Q134: 26500000 | R134: 27000000 | S134: 27000000 | T134: 27000000 | U134: 27000000
A135: A570219 | B135: 11 | C135: 0452 | D135: 382 | G135: =SUM(G136) -> 26500000 | H135: 26500000 | I135: 26500000 | J135: 26500000 | K135: 17430000 | L135: 65.77358491 | M135: 26500000 | N135: 26500000 | O135: 27000000 | P135: 27000000 | Q135: 26500000 | R135: 27000000 | S135: 27000000 | T135: 27000000 | U135: 27000000
A136: A570219 | B136: 11 | C136: 0452 | D136: 3821 | E136: Kapitalne donacije neprofitnim organizacijama | G136: 26500000 | H136: 26500000 | I136: 26500000 | J136: 26500000 | K136: 17430000 | L136: 65.77358491 | M136: 26500000 | N136: 26500000 | O136: 27000000 | P136: =O136 -> 27000000 | Q136: 26500000 | R136: 27000000 | S136: =R136 -> 27000000 | T136: 27000000 | U136: =T136 -> 27000000
A137: PROMJENA PRIPADNOSTI K587039 | E137: Izgradnja trajektne luke Gaženica | F137: NOVI PROGRAM - RAZVOJ SUSTAVA POMORSKOG PROMETA, POMORSKOG DOBRA I LUKA, TE ZAŠTITA MORSKOG OKOLIŠA OD ONEČIŠĆENJA S POMORSKIH OBJEKATA - 31 PROMET, PROMETNA INFRASTRUKTURA I KOMUNIKACIJE | G137: =G138+G140 -> 48257709 | H137: =H138+H140 -> 48257709 | I137: 73257709 | J137: 73257709 | K137: 73257709 | L137: 100 | M137: 25980000 | N137: 25980000 | O137: 223060000 | P137: 223060000 | Q137: 28680000 | R137: 176000000 | S137: 176000000 | T137: 152000000 | U137: 152000000
A138: K587039 | B138: 11 | C138: 0452 | D138: 381 | G138: =SUM(G139) -> 33250000 | H138: =SUM(H139) -> 33250000 | I138: 33250000 | J138: 33250000 | K138: 33250000 | L138: 100 | M138: 25980000 | N138: 25980000 | O138: 161500000 | P138: 161500000 | Q138: 28680000 | R138: 175000000 | S138: 175000000 | T138: 151000000 | U138: 151000000
A139: K587039 | B139: 11 | C139: 0452 | D139: 3811 | E139: Tekuće donacije u novcu | G139: 33250000 | H139: 33250000 | I139: 33250000 | J139: 33250000 | K139: 33250000 | L139: 100 | M139: 25980000 | N139: 25980000 | O139: 161500000 | P139: =O139 -> 161500000 | Q139: 28680000 | R139: 175000000 | S139: =R139 -> 175000000 | T139: 151000000 | U139: =T139 -> 151000000
A140: K587039 | B140: 11 | C140: 0452 | D140: 382 | G140: =SUM(G141) -> 15007709 | H140: =SUM(H141) -> 15007709 | I140: 40007709 | J140: 40007709 | K140: 40007709 | L140: 100 | M140: 0 | N140: 0 | O140: 61560000 | P140: 61560000 | Q140: 0 | R140: 1000000 | S140: 1000000 | T140: 1000000 | U140: 1000000
A141: K587039 | B141: 11 | C141: 0452 | D141: 3821 | E141: Kapitalne donacije neprofitnim organizacijama | G141: 15007709 | H141: 15007709 | I141: 40007709 | J141: 40007709 | K141: 40007709 | L141: 100 | M141: 0 | N141: 0 | O141: 61560000 | P141: =O141 -> 61560000 | Q141: 0 | R141: 1000000 | S141: =R141 -> 1000000 | T141: 1000000 | U141: =T141 -> 1000000
A142: PROMJENA PRIPADNOSTI A570464 | E142: Potpora Lučkoj upravi Dubrovnik za otplatu Zajma EBRD-Projekt izgradnje lučke infrastrukture-domaća komponenta | F142: NOVI PROGRAM - RAZVOJ SUSTAVA POMORSKOG PROMETA, POMORSKOG DOBRA I LUKA, TE ZAŠTITA MORSKOG OKOLIŠA OD ONEČIŠĆENJA S POMORSKIH OBJEKATA - 31 PROMET, PROMETNA INFRASTRUKTURA I KOMUNIKACIJE | G142: =SUM(G143) -> 12000000 | H142: =SUM(H143) -> 12000000 | I142: 12000000 | J142: 12000000 | K142: 12000000 | L142: 100 | M142: 12000000 | N142: 12000000 | O142: 15000000 | P142: 15000000 | Q142: 12000000 | R142: 22000000 | S142: 22000000 | T142: 22000000 | U142: 22000000
A143: A570464 | B143: 11 | C143: 0452 | D143: 381 | G143: =SUM(G144) -> 12000000 | H143: 12000000 | I143: 12000000 | J143: 12000000 | K143: 12000000 | L143: 100 | M143: 12000000 | N143: 12000000 | O143: 15000000 | P143: 15000000 | Q143: 12000000 | R143: 22000000 | S143: 22000000 | T143: 22000000 | U143: 22000000
A144: A570464 | B144: 11 | C144: 0452 | D144: 3811 | E144: Tekuće donacije u novcu | G144: 12000000 | H144: 12000000 | I144: 12000000 | J144: 12000000 | K144: 12000000 | L144: 100 | M144: 12000000 | N144: 12000000 | O144: 15000000 | P144: =O144 -> 15000000 | Q144: 12000000 | R144: 22000000 | S144: =R144 -> 22000000 | T144: 22000000 | U144: =T144 -> 22000000
A145: PROMJENA PRIPADNOSTI A570348 | E145: Utvrđivanje i provedba granica pomorskog dobra s izvlaštenjem | F145: NOVI PROGRAM - RAZVOJ SUSTAVA POMORSKOG PROMETA, POMORSKOG DOBRA I LUKA, TE ZAŠTITA MORSKOG OKOLIŠA OD ONEČIŠĆENJA S POMORSKIH OBJEKATA - 31 PROMET, PROMETNA INFRASTRUKTURA I KOMUNIKACIJE | G145: =G146+G148+G150+G152 -> 2500000 | H145: =H146+H148+H150+H152 -> 2500000 | I145: 2500000 | J145: 2500000 | K145: 160283.95 | L145: 6.411358 | M145: 4000000 | N145: 4000000 | O145: 1500000 | P145: 1500000 | Q145: 4000000 | R145: 1500000 | S145: 1500000 | T145: 1500000 | U145: 1500000
A146: A570348 | B146: 11 | C146: 0452 | D146: 323 | G146: =SUM(G147) -> 200000 | H146: =SUM(H147) -> 200000 | I146: 200000 | J146: 200000 | K146: 160283.95 | L146: 80.141975 | M146: 200000 | N146: 200000 | O146: 800000 | P146: 800000 | Q146: 200000 | R146: 800000 | S146: 800000 | T146: 800000 | U146: 800000
A147: A570348 | B147: 11 | C147: 0452 | D147: 3237 | E147: Intelektualne i osobne usluge | G147: 200000 | H147: 200000 | I147: 200000 | J147: 200000 | K147: 160283.95 | L147: 80.141975 | M147: 200000 | N147: 200000 | O147: 800000 | P147: =O147 -> 800000 | Q147: 200000 | R147: 800000 | S147: =R147 -> 800000 | T147: 800000 | U147: =T147 -> 800000
A148: A570348 | B148: 11 | C148: 0452 | D148: 363 | G148: =SUM(G149) -> 1000000 | H148: =SUM(H149) -> 1000000 | I148: 1000000 | J148: 1000000 | K148: 0 | L148: 0 | M148: 1000000 | N148: 1000000 | O148: 200000 | P148: 200000 | Q148: 1000000 | R148: 200000 | S148: 200000 | T148: 200000 | U148: 200000
A149: A570348 | B149: 11 | C149: 0452 | D149: 3631 | E149: Tekuće pomoći unutar općeg proračuna | G149: 1000000 | H149: 1000000 | I149: 1000000 | J149: 1000000 | K149: 0 | L149: 0 | M149: 1000000 | N149: 1000000 | O149: 200000 | P149: =O149 -> 200000 | Q149: 1000000 | R149: 200000 | S149: =R149 -> 200000 | T149: 200000 | U149: =T149 -> 200000
A150: A570348 | B150: 11 | C150: 0452 | D150: 383 | G150: =SUM(G151) -> 1000000 | H150: =SUM(H151) -> 1000000 | I150: 1000000 | J150: 1000000 | K150: 0 | L150: 0 | M150: 2500000 | N150: 2500000 | O150: 200000 | P150: 200000 | Q150: 2500000 | R150: 200000 | S150: 200000 | T150: 200000 | U150: 200000
A151: A570348 | B151: 11 | C151: 0452 | D151: 3831 | E151: Naknade šteta pravnim i fizičkim osobama | G151: 1000000 | H151: 1000000 | I151: 1000000 | J151: 1000000 | K151: 0 | L151: 0 | M151: 2500000 | N151: 2500000 | O151: 200000 | P151: =O151 -> 200000 | Q151: 2500000 | R151: 200000 | S151: =R151 -> 200000 | T151: 200000 | U151: =T151 -> 200000
A152: A570348 | B152: 11 | C152: 0452 | D152: 412 | G152: =SUM(G153) -> 300000 | H152: =SUM(H153) -> 300000 | I152: 300000 | J152: 300000 | K152: 0 | L152: 0 | M152: 300000 | N152: 300000 | O152: 300000 | P152: 300000 | Q152: 300000 | R152: 300000 | S152: 300000 | T152: 300000 | U152: 300000
A153: A570348 | B153: 11 | C153: 0452 | D153: 4126 | E153: Ostala nematerijalna imovina | G153: 300000 | H153: 300000 | I153: 300000 | J153: 300000 | K153: 0 | L153: 0 | M153: 300000 | N153: 300000 | O153: 300000 | P153: =O153 -> 300000 | Q153: 300000 | R153: 300000 | S153: =R153 -> 300000 | T153: 300000 | U153: =T153 -> 300000
A154: PROMJENA PRIPADNOSTI A570350 | E154: Dodjela koncesija na pomorskom dobru | F154: NOVI PROGRAM - RAZVOJ SUSTAVA POMORSKOG PROMETA, POMORSKOG DOBRA I LUKA, TE ZAŠTITA MORSKOG OKOLIŠA OD ONEČIŠĆENJA S POMORSKIH OBJEKATA - 31 PROMET, PROMETNA INFRASTRUKTURA I KOMUNIKACIJE | G154: =SUM(G155) -> 65000 | H154: =SUM(H155) -> 65000 | I154: 65000 | J154: 65000 | K154: 2000 | L154: 3.076923077 | M154: 65000 | N154: 65000 | O154: 65000 | P154: 65000 | Q154: 65000 | R154: 65000 | S154: 65000 | T154: 65000 | U154: 65000
A155: A570350 | B155: 11 | C155: 0452 | D155: 323 | G155: =SUM(G156) -> 65000 | H155: 65000 | I155: 65000 | J155: 65000 | K155: 2000 | L155: 3.076923077 | M155: 65000 | N155: 65000 | O155: 65000 | P155: 65000 | Q155: 65000 | R155: 65000 | S155: 65000 | T155: 65000 | U155: 65000
A156: A570350 | B156: 11 | C156: 0452 | D156: 3237 | E156: Intelektualne i osobne usluge | G156: 65000 | H156: 65000 | I156: 65000 | J156: 65000 | K156: 2000 | L156: 3.076923077 | M156: 65000 | N156: 65000 | O156: 65000 | P156: =O156 -> 65000 | Q156: 65000 | R156: 65000 | S156: =R156 -> 65000 | T156: 65000 | U156: =T156 -> 65000
A157: PROMJENA PRIPADNOSTI A570482 | E157: Stipendiranje redovnih učenika i studenata srednjih pomorskih škola i pomorskih fakulteta, te vježbeničkog staža pomoraca | F157: NOVI PROGRAM - RAZVOJ SUSTAVA POMORSKOG PROMETA, POMORSKOG DOBRA I LUKA, TE ZAŠTITA MORSKOG OKOLIŠA OD ONEČIŠĆENJA S POMORSKIH OBJEKATA - 31 PROMET, PROMETNA INFRASTRUKTURA I KOMUNIKACIJE | G157: =SUM(G158) -> 5000000 | H157: =SUM(H158) -> 5000000 | I157: 5000000 | J157: 5000000 | K157: 3468000 | L157: =IF(I157=0, "-", K157/I157*100) -> 69.36 | M157: 5000000 | N157: 5000000 | O157: 6254559 | P157: 6254559 | Q157: 5000000 | R157: 6233220 | S157: 6233220 | T157: 6233220 | U157: 6233220
A158: A570482 | B158: 11 | C158: 0452 | D158: 372 | G158: =SUM(G159) -> 5000000 | H158: 5000000 | I158: 5000000 | J158: 5000000 | K158: 3468000 | L158: 69.36 | M158: 5000000 | N158: 5000000 | O158: 6254559 | P158: 6254559 | Q158: 5000000 | R158: 6233220 | S158: 6233220 | T158: 6233220 | U158: 6233220
A159: A570482 | B159: 11 | C159: 0452 | D159: 3721 | E159: Naknade građanima i kućanstvima u novcu | G159: 5000000 | H159: 5000000 | I159: 5000000 | J159: 5000000 | K159: 3468000 | L159: 69.36 | M159: 5000000 | N159: 5000000 | O159: 6254559 | P159: =O159 -> 6254559 | Q159: 5000000 | R159: 6233220 | S159: =R159 -> 6233220 | T159: 6233220 | U159: =T159 -> 6233220
A160: ZATVORITI A570501 | E160: IPA I 2009-Sudjelovanje u programu Unije-Marco Polo II | F160: NOVI PROGRAM - RAZVOJ SUSTAVA POMORSKOG PROMETA, POMORSKOG DOBRA I LUKA, TE ZAŠTITA MORSKOG OKOLIŠA OD ONEČIŠĆENJA S POMORSKIH OBJEKATA - 31 PROMET, PROMETNA INFRASTRUKTURA I KOMUNIKACIJE | G160: =G161+G164+G166 -> 1770000 | H160: =H161+H164+H166 -> 900000 | I160: 1770000 | J160: 900000 | K160: 815836.14 | L160: 46.09243729 | M160: 0 | N160: 0 | O160: 0 | P160: 0 | Q160: 0 | R160: 0 | S160: 0 | T160: 0 | U160: 0
A161: A570501 | B161: 11 | C161: 0485 | D161: 323 | G161: =SUM(G162:G163) -> 120000 | H161: =SUM(H162:H163) -> 120000 | I161: 120000 | J161: 120000 | K161: 0 | L161: 0 | M161: 0 | N161: 0 | O161: 0 | P161: 0 | Q161: 0 | R161: 0 | S161: 0 | T161: 0 | U161: 0
A162: A570501 | B162: 11 | C162: 0485 | D162: 3233 | E162: Usluge promidžbe i informiranja | G162: 50000 | H162: 50000 | I162: 50000 | J162: 50000 | K162: 0 | L162: 0 | M162: 0 | N162: 0 | P162: =O162 -> 0 | Q162: 0 | S162: =R162 -> 0 | U162: =T162 -> 0
A163: A570501 | B163: 11 | C163: 0485 | D163: 3237 | E163: Intelektualne i osobne usluge | G163: 70000 | H163: 70000 | I163: 70000 | J163: 70000 | K163: 0 | L163: 0 | M163: 0 | N163: 0 | P163: =O163 -> 0 | Q163: 0 | S163: =R163 -> 0 | U163: =T163 -> 0
A164: A570501 | B164: 12 | C164: 0485 | D164: 329 | G164: =SUM(G165) -> 780000 | H164: =SUM(H165) -> 780000 | I164: 780000 | J164: 780000 | K164: 366162.13 | L164: 46.94386282 | M164: 0 | N164: 0 | O164: 0 | P164: 0 | Q164: 0 | R164: 0 | S164: 0 | T164: 0 | U164: 0
A165: A570501 | B165: 12 | C165: 0485 | D165: 3294 | E165: Međunarodne članarine | G165: 780000 | H165: 780000 | I165: 780000 | J165: 780000 | K165: 366162.13 | L165: 46.94386282 | M165: 0 | N165: 0 | P165: =O165 -> 0 | Q165: 0 | S165: =R165 -> 0 | U165: =T165 -> 0
A166: A570501 | B166: 51 | C166: 0485 | D166: 329 | G166: =SUM(G167) -> 870000 | H166: =SUM(H167) -> 0 | I166: 870000 | J166: 0 | K166: 449674.01 | L166: 51.68666782 | M166: 0 | N166: 0 | O166: 0 | P166: 0 | Q166: 0 | R166: 0 | S166: 0 | T166: 0 | U166: 0
A167: A570501 | B167: 51 | C167: 0485 | D167: 3294 | E167: Međunarodne članarine | G167: 870000 | I167: 870000 | K167: 449674.01 | L167: 51.68666782 | M167: 0
A168: PROMJENA PRIPADNOSTI A587040 | E168: Potpora Lučkoj upravi Zadar za otplatu kredita Fonda za razvoj i zapošljavanje (HPB-a Zagreb) | F168: NOVI PROGRAM - RAZVOJ SUSTAVA POMORSKOG PROMETA, POMORSKOG DOBRA I LUKA, TE ZAŠTITA MORSKOG OKOLIŠA OD ONEČIŠĆENJA S POMORSKIH OBJEKATA - 31 PROMET, PROMETNA INFRASTRUKTURA I KOMUNIKACIJE | G168: =SUM(G169) -> 3240000 | H168: =SUM(H169) -> 3240000 | I168: 3240000 | J168: 3240000 | K168: 3240000 | L168: 100 | M168: 1620000 | N168: 1620000 | O168: 1620000 | P168: 1620000 | Q168: 0 | R168: 0 | S168: 0 | T168: 0 | U168: 0
A169: A587040 | B169: 11 | C169: 0452 | D169: 381 | G169: =SUM(G170) -> 3240000 | H169: 3240000 | I169: 3240000 | J169: 3240000 | K169: 3240000 | L169: 100 | M169: 1620000 | N169: 1620000 | O169: 1620000 | P169: 1620000 | Q169: 0 | R169: 0 | S169: 0 | T169: 0 | U169: 0
A170: A587040 | B170: 11 | C170: 0452 | D170: 3811 | E170: Tekuće donacije u novcu | G170: 3240000 | H170: 3240000 | I170: 3240000 | J170: 3240000 | K170: 3240000 | L170: 100 | M170: 1620000 | N170: 1620000 | O170: 1620000 | P170: =O170 -> 1620000 | Q170: 0 | R170: 0 | S170: 0 | T170: 0 | U170: 0
A171: ZATVORITI A587041 | E171: Poticanje brodara u nacionalnoj plovidbi | F171: NOVI PROGRAM - RAZVOJ SUSTAVA POMORSKOG PROMETA, POMORSKOG DOBRA I LUKA, TE ZAŠTITA MORSKOG OKOLIŠA OD ONEČIŠĆENJA S POMORSKIH OBJEKATA - 31 PROMET, PROMETNA INFRASTRUKTURA I KOMUNIKACIJE | G171: =SUM(G172) -> 6000000 | H171: =SUM(H172) -> 6000000 | I171: 6000000 | J171: 6000000 | K171: 108632.94 | L171: 1.810549 | M171: 6000000 | N171: 6000000 | O171: 0 | P171: 0 | Q171: 10000000 | R171: 0 | S171: 0 | T171: 0 | U171: 0
A172: A587041 | B172: 11 | C172: 0452 | D172: 352 | G172: =SUM(G173:G174) -> 6000000 | H172: =SUM(H173:H174) -> 6000000 | I172: 6000000 | J172: 6000000 | K172: 108632.94 | L172: 1.810549 | M172: 6000000 | N172: 6000000 | O172: 0 | P172: 0 | Q172: 10000000 | R172: 0 | S172: 0 | T172: 0 | U172: 0
A173: A587041 | B173: 11 | C173: 0452 | D173: 3522 | E173: Subvencije trgovačkim društvima izvan javnog sektora | G173: 6000000 | H173: 6000000 | I173: 6000000 | J173: 6000000 | K173: 37682.94 | L173: 0.628049 | M173: 6000000 | N173: 6000000 | P173: =O173 -> 0 | Q173: 10000000 | S173: =R173 -> 0 | U173: =T173 -> 0
A174: A587041 | B174: 11 | C174: 0452 | D174: 3523 | E174: Subvencije poljoprivrednicima i obrtnicima | G174: 0 | H174: 0 | I174: 0 | J174: 0 | K174: 70950 | L174: - | M174: 0 | N174: 0 | P174: =O174 -> 0 | Q174: 0 | S174: =R174 -> 0 | U174: 0
A175: PROMJENA PRIPADNOSTI A820026 | E175: Tehničko održavanje i upravljanje školskim brodom | F175: NOVI PROGRAM - RAZVOJ SUSTAVA POMORSKOG PROMETA, POMORSKOG DOBRA I LUKA, TE ZAŠTITA MORSKOG OKOLIŠA OD ONEČIŠĆENJA S POMORSKIH OBJEKATA - 31 PROMET, PROMETNA INFRASTRUKTURA I KOMUNIKACIJE | G175: =G176+G178 -> 2000000 | H175: =H176+H178 -> 2000000 | I175: 2800000 | J175: 2800000 | K175: 1533017.21 | L175: 54.75061464 | M175: 2000000 | N175: 2000000 | O175: 2600000 | P175: 2600000 | Q175: 2000000 | R175: 2600000 | S175: 2600000 | T175: 2600000 | U175: 2600000
A176: A820026 | B176: 11 | C176: 0452 | D176: 322 | G176: =SUM(G177) -> 200000 | H176: =SUM(H177) -> 200000 | I176: 200000 | J176: 200000 | K176: 239.06 | L176: 0.11953 | M176: 200000 | N176: 200000 | O176: 100000 | P176: 100000 | Q176: 200000 | R176: 100000 | S176: 100000 | T176: 100000 | U176: 100000
A177: A820026 | B177: 11 | C177: 0452 | D177: 3224 | E177: Materijal i dijelovi za tekuće i investicijsko održavanje | G177: 200000 | H177: 200000 | I177: 200000 | J177: 200000 | K177: 239.06 | L177: 0.11953 | M177: 200000 | N177: 200000 | O177: 100000 | P177: =O177 -> 100000 | Q177: 200000 | R177: 100000 | S177: =R177 -> 100000 | T177: 100000 | U177: =T177 -> 100000
A178: A820026 | B178: 11 | C178: 0452 | D178: 323 | G178: =SUM(G179:G180) -> 1800000 | H178: =SUM(H179:H180) -> 1800000 | I178: 2600000 | J178: 2600000 | K178: 1532778.15 | L178: 58.95300577 | M178: 1800000 | N178: 1800000 | O178: 2500000 | P178: 2500000 | Q178: 1800000 | R178: 2500000 | S178: 2500000 | T178: 2500000 | U178: 2500000
A179: A820026 | B179: 11 | C179: 0452 | D179: 3232 | E179: Usluge tekućeg i investicijskog održavanja | G179: 1700000 | H179: 1700000 | I179: 2500000 | J179: 2500000 | K179: 1532778.15 | L179: 61.311126 | M179: 1700000 | N179: 1700000 | O179: 2500000 | P179: =O179 -> 2500000 | Q179: 1700000 | R179: 2500000 | S179: =R179 -> 2500000 | T179: 2500000 | U179: =T179 -> 2500000
A180: A820026 | B180: 11 | C180: 0452 | D180: 3239 | E180: Ostale usluge | G180: 100000 | H180: 100000 | I180: 100000 | J180: 100000 | K180: 0 | L180: 0 | M180: 100000 | N180: 100000 | P180: =O180 -> 0 | Q180: 100000 | S180: =R180 -> 0 | U180: =T180 -> 0
A181: PROMJENA PRIPADNOSTI A810019 | E181: Potpora Lučkoj upravi Šibenik za realizaciju Zajma EBRD-Projekt modernizacije lučke infrastrukture luke Šibenik-domaća komponenta | F181: NOVI PROGRAM - RAZVOJ SUSTAVA POMORSKOG PROMETA, POMORSKOG DOBRA I LUKA, TE ZAŠTITA MORSKOG OKOLIŠA OD ONEČIŠĆENJA S POMORSKIH OBJEKATA - 31 PROMET, PROMETNA INFRASTRUKTURA I KOMUNIKACIJE | G181: =G182+G184 -> 5000000 | H181: =H182+H184 -> 5000000 | I181: 5000000 | J181: 5000000 | K181: 5000000 | L181: 100 | M181: 1000000 | N181: 1000000 | O181: 12850000 | P181: 12850000 | Q181: 1000000 | R181: 8200000 | S181: 8200000 | T181: 6800000 | U181: 6800000
A182: A810019 | B182: 11 | C182: 0452 | D182: 381 | G182: =SUM(G183) -> 800000 | H182: =SUM(H183) -> 800000 | I182: 800000 | J182: 800000 | K182: 800000 | L182: 100 | M182: 1000000 | N182: 1000000 | O182: 8200000 | P182: 8200000 | Q182: 1000000 | R182: 8200000 | S182: 8200000 | T182: 6800000 | U182: 6800000
A183: A810019 | B183: 11 | C183: 0452 | D183: 3811 | E183: Tekuće donacije u novcu | G183: 800000 | H183: 800000 | I183: 800000 | J183: 800000 | K183: 800000 | L183: 100 | M183: 1000000 | N183: 1000000 | O183: 8200000 | P183: =O183 -> 8200000 | Q183: 1000000 | R183: 8200000 | S183: =R183 -> 8200000 | T183: 6800000 | U183: =T183 -> 6800000
A184: A810019 | B184: 11 | C184: 0452 | D184: 382 | G184: =SUM(G185) -> 4200000 | H184: =SUM(H185) -> 4200000 | I184: 4200000 | J184: 4200000 | K184: 4200000 | L184: 100 | M184: 0 | N184: 0 | O184: 4650000 | P184: 4650000 | Q184: 0 | R184: 0 | S184: 0 | T184: 0 | U184: 0
A185: A810019 | B185: 11 | C185: 0452 | D185: 3821 | E185: Kapitalne donacije neprofitnim organizacijama | G185: 4200000 | H185: 4200000 | I185: 4200000 | J185: 4200000 | K185: 4200000 | L185: 100 | M185: 0 | N185: 0 | O185: 4650000 | P185: =O185 -> 4650000 | Q185: 0 | R185: 0 | S185: =R185 -> 0 | T185: 0 | U185: =T185 -> 0
A186: PROMJENA PRIPADNOSTI T810018 | E186: Upravljanje i nadzor balastnih voda i taloga | F186: NOVI PROGRAM - RAZVOJ SUSTAVA POMORSKOG PROMETA, POMORSKOG DOBRA I LUKA, TE ZAŠTITA MORSKOG OKOLIŠA OD ONEČIŠĆENJA S POMORSKIH OBJEKATA - 31 PROMET, PROMETNA INFRASTRUKTURA I KOMUNIKACIJE | G186: =SUM(G187) -> 400000 | H186: =SUM(H187) -> 400000 | I186: 400000 | J186: 400000 | K186: 400000 | L186: 100 | M186: 535000 | N186: 535000 | O186: 200000 | P186: 200000 | Q186: 535000 | R186: 200000 | S186: 200000 | T186: 200000 | U186: 200000
A187: T810018 | B187: 11 | C187: 0530 | D187: 426 | G187: =SUM(G188) -> 400000 | H187: 400000 | I187: 400000 | J187: 400000 | K187: 400000 | L187: 100 | M187: 535000 | N187: 535000 | O187: 200000 | P187: 200000 | Q187: 535000 | R187: 200000 | S187: 200000 | T187: 200000 | U187: 200000
A188: T810018 | B188: 11 | C188: 0530 | D188: 4263 | E188: Umjetnička, literarna i znanstvena djela | G188: 400000 | H188: 400000 | I188: 400000 | J188: 400000 | K188: 400000 | L188: 100 | M188: 535000 | N188: 535000 | O188: 200000 | P188: =O188 -> 200000 | Q188: 535000 | R188: 200000 | S188: =R188 -> 200000 | T188: 200000 | U188: =T188 -> 200000
A189: ZATVORITI T810031 | E189: IPA I 2008 TAIB FPPRAC 2008 Strategija pomorskog razvitka | F189: NOVI PROGRAM - RAZVOJ SUSTAVA POMORSKOG PROMETA, POMORSKOG DOBRA I LUKA, TE ZAŠTITA MORSKOG OKOLIŠA OD ONEČIŠĆENJA S POMORSKIH OBJEKATA - 31 PROMET, PROMETNA INFRASTRUKTURA I KOMUNIKACIJE | G189: =G190+G192 -> 525000 | H189: =H190+H192 -> 55000 | I189: 525000 | J189: 55000 | K189: 0 | L189: 0 | M189: 0 | N189: 0 | O189: 0 | P189: 0 | Q189: 0 | R189: 0 | S189: 0 | T189: 0 | U189: 0
A190: T810031 | B190: 12 | C190: 0485 | D190: 412 | G190: =SUM(G191) -> 55000 | H190: =SUM(H191) -> 55000 | I190: 55000 | J190: 55000 | K190: 0 | L190: 0 | M190: 0 | N190: 0 | O190: 0 | P190: 0 | Q190: 0 | R190: 0 | S190: 0 | T190: 0 | U190: 0
A191: T810031 | B191: 12 | C191: 0485 | D191: 4126 | E191: Ostala nematerijalna imovina | G191: 55000 | H191: 55000 | I191: 55000 | J191: 55000 | K191: 0 | L191: 0 | M191: 0 | N191: 0 | P191: =O191 -> 0 | Q191: 0 | S191: =R191 -> 0 | U191: =T191 -> 0
A192: T810031 | B192: 51 | C192: 0485 | D192: 412 | G192: =SUM(G193) -> 470000 | H192: =SUM(H193) -> 0 | I192: 470000 | J192: 0 | K192: 0 | L192: 0 | M192: 0 | N192: 0 | O192: 0 | P192: 0 | Q192: 0 | R192: 0 | S192: 0 | T192: 0 | U192: 0
A193: T810031 | B193: 51 | C193: 0485 | D193: 4126 | E193: Ostala nematerijalna imovina | G193: 470000 | I193: 470000 | K193: 0 | L193: 0 | M193: 0 | Q193: 0
A194: PROMJENA PRIPADNOSTI T810033 | E194: IPA ADRIATIC - Projekt razvoja autocesta mora na Jadranu (Adriatic MoS) | F194: NOVI PROGRAM - RAZVOJ SUSTAVA POMORSKOG PROMETA, POMORSKOG DOBRA I LUKA, TE ZAŠTITA MORSKOG OKOLIŠA OD ONEČIŠĆENJA S POMORSKIH OBJEKATA - 31 PROMET, PROMETNA INFRASTRUKTURA I KOMUNIKACIJE | G194: =G195+G197+G200 -> 562000 | H194: =H195+H197+H200 -> 0 | I194: 562000 | J194: 0 | K194: 0 | L194: 0 | M194: 0 | N194: 0 | O194: 127500 | P194: 0 | Q194: 0 | R194: 0 | S194: 0 | T194: 0 | U194: 0
A195: T810033 | B195: 51 | C195: 0452 | D195: 311 | G195: =SUM(G196) -> 350000 | H195: =SUM(H196) -> 0 | I195: 350000 | J195: 0 | K195: 0 | L195: 0 | M195: 0 | N195: 0 | O195: 100000 | P195: 0 | Q195: 0 | R195: 0 | S195: 0 | T195: 0 | U195: 0
A196: T810033 | B196: 51 | C196: 0452 | D196: 3111 | E196: Plaće za redovan rad | G196: 350000 | I196: 350000 | K196: 0 | L196: 0 | M196: 0 | O196: 100000 | Q196: 0
A197: T810033 | B197: 51 | C197: 0452 | D197: 313 | G197: =SUM(G198:G199) -> 62000 | H197: =SUM(H198:H199) -> 0 | I197: 62000 | J197: 0 | K197: 0 | L197: 0 | M197: 0 | N197: 0 | O197: 27500 | P197: 0 | Q197: 0 | R197: 0 | S197: 0 | T197: 0 | U197: 0
A198: T810033 | B198: 51 | C198: 0452 | D198: 3132 | E198: Doprinosi za obvezno zdravstveno osiguranje | G198: 55000 | I198: 55000 | K198: 0 | L198: 0 | M198: 0 | O198: 27500 | Q198: 0
A199: T810033 | B199: 51 | C199: 0452 | D199: 3133 | E199: Doprinosi za obvezno osiguranje u slučaju nezaposlenosti | G199: 7000 | I199: 7000 | K199: 0 | L199: 0 | M199: 0 | Q199: 0
A200: T810033 | B200: 51 | C200: 0452 | D200: 323 | G200: =SUM(G201) -> 150000 | H200: =SUM(H201) -> 0 | I200: 150000 | J200: 0 | K200: 0 | L200: 0 | M200: 0 | N200: 0 | O200: 0 | P200: 0 | Q200: 0 | R200: 0 | S200: 0 | T200: 0 | U200: 0
... 1092 more rows

Sheet 065-2025.
A1: Glava | B1: A/K/T | C1: IZV | D1: FP | E1: KTO | F1: NAZIV | G1: PROGRAM | H1: Plan 2025. (NN 149/2024) | I1: Preraspodjela I | J1: Preraspodjela II | K1: Preraspodjela III | L1: Preraspodjela IV | M1: Preraspodjela VI | N1: Preraspodjela V | O1: Preraspodjela VII | P1: Preraspodjela VIII | Q1: Rebalans 2025.
B2: 065 MINISTARSTVO MORA, PROMETA I INFRASTRUKTURE | H2: =H3+H1480+H1554+H1849+H1945+H2027 -> 1735968201 | I2: 1735868201 | J2: 1735868201 | K2: 1735968201 | L2: 1735968201 | M2: 1736857295 | N2: 1736857295 | O2: 1736857295 | P2: 1767880073 | Q2: 1776651982
A3: 06505 | B3: Glava 06505 Ministarstvo mora, prometa i infrastrukture | H3: =H4+H156+H717+H1134 -> 1436784998 | I3: 1436784998 | J3: 1436784998 | K3: 1436784998 | L3: 1436784998 | M3: 1437674092 | N3: 1437674092 | O3: 1437674092 | P3: 1468696870 | Q3: 1480499049
A4: 06505 | B4: Glavno tajništvo i zajednički rashodi | H4: =H5+H67+H80+H99+H120+H140+H145+H152 -> 24289176 | I4: 24289176 | J4: 24307926 | K4: 24307926 | L4: 24307926 | M4: 24307926 | N4: 24307926 | O4: 24307926 | P4: 24307926 | Q4: 22367537
A5: 06505 | B5: A570000 | F5: Administracija i upravljanje | G5: 3101 - UPRAVLJANJE NA PODRUČJU PROMETNE POLITIKE - 31 PROMET, PROMETNA INFRASTRUKTURA I KOMUNIKACIJE | H5: =H6+H15+H45+H50+H57+H64+H54 -> 17970428 | I5: =I6+I15+I45+I50+I57+I64+I54 -> 17970428 | J5: 17970428 | K5: 17970428 | L5: 17970428 | M5: 17970428 | N5: 17970428 | O5: 17970428 | P5: 17970428 | Q5: 16945853
A6: 06505 | B6: A570000 | C6: 11 | E6: 31 | H6: =H7+H10+H12 -> 13692700 | I6: 13692700 | J6: 13692700 | K6: 13692700 | L6: 13692700 | M6: =M7+M10+M12 -> 13692700 | N6: 13692700 | O6: =O7+O10+O12 -> 13692700 | P6: 13692700 | Q6: =Q7+Q10+Q12 -> 13342700
A7: 06505 | B7: A570000 | C7: 11 | E7: 311 | H7: =SUM(H8:H9) -> 11422100 | I7: 11422100 | J7: 11422100 | K7: 11422100 | L7: 11422100 | M7: =SUM(M8:M9) -> 11422100 | N7: 11422100 | O7: =SUM(O8:O9) -> 11422100 | P7: 11422100 | Q7: =SUM(Q8:Q9) -> 11192100
A8: 06505 | B8: A570000 | C8: 11 | D8: 0490 | E8: 3111 | F8: Plaće za redovan rad | H8: 11242100 | I8: 11242100 | J8: 11242100 | K8: 11242100 | L8: 11242100 | M8: 11242100 | N8: 11242100 | O8: 11242100 | P8: 11242100 | Q8: 10942100
A9: 06505 | B9: A570000 | C9: 11 | D9: 0490 | E9: 3113 | F9: Plaće za prekovremeni rad | H9: 180000 | I9: 180000 | J9: 180000 | K9: 180000 | L9: 180000 | M9: 180000 | N9: 180000 | O9: 180000 | P9: 180000 | Q9: 250000
A10: 06505 | B10: A570000 | C10: 11 | E10: 312 | H10: =SUM(H11) -> 433500 | I10: 433500 | J10: 433500 | K10: 433500 | L10: 433500 | M10: 433500 | N10: 433500 | O10: 433500 | P10: 433500 | Q10: 383500
A11: 06505 | B11: A570000 | C11: 11 | D11: 0490 | E11: 3121 | F11: Ostali rashodi za zaposlene | H11: 433500 | I11: 433500 | J11: 433500 | K11: 433500 | L11: 433500 | M11: 433500 | N11: 433500 | O11: 433500 | P11: 433500 | Q11: 383500
A12: 06505 | B12: A570000 | C12: 11 | E12: 313 | H12: =SUM(H13:H14) -> 1837100 | I12: 1837100 | J12: 1837100 | K12: 1837100 | L12: 1837100 | M12: =SUM(M13:M14) -> 1837100 | N12: 1837100 | O12: =SUM(O13:O14) -> 1837100 | P12: 1837100 | Q12: =SUM(Q13:Q14) -> 1767100
A13: 06505 | B13: A570000 | C13: 11 | D13: 0490 | E13: 3131 | F13: Doprinosi za mirovinsko osiguranje za staž s povećanim trajanjem | H13: 100 | I13: 100 | J13: 100 | K13: 100 | L13: 100 | M13: 100 | N13: 100 | O13: 100 | P13: 100 | Q13: 100
A14: 06505 | B14: A570000 | C14: 11 | D14: 0490 | E14: 3132 | F14: Doprinosi za obvezno zdravstveno osiguranje | H14: 1837000 | I14: 1837000 | J14: 1837000 | K14: 1837000 | L14: 1837000 | M14: 1837000 | N14: 1837000 | O14: 1837000 | P14: 1837000 | Q14: 1767000
A15: 06505 | B15: A570000 | C15: 11 | E15: 32 | H15: =H16+H21+H27+H36+H38 -> 4015228 | I15: 4015228 | J15: 4015228 | K15: 4015228 | L15: 4015228 | M15: =M16+M21+M27+M36+M38 -> 4015228 | N15: 4015228 | O15: =O16+O21+O27+O36+O38 -> 4015228 | P15: 4015228 | Q15: 3427228
A16: 06505 | B16: A570000 | C16: 11 | E16: 321 | H16: =SUM(H17:H20) -> 830089 | I16: 830089 | J16: 830089 | K16: 830089 | L16: 830089 | M16: =SUM(M17:M20) -> 830089 | N16: 830089 | O16: =SUM(O17:O20) -> 830089 | P16: 830089 | Q16: =SUM(Q17:Q20) -> 795089
A17: 06505 | B17: A570000 | C17: 11 | D17: 0490 | E17: 3211 | F17: Službena putovanja | H17: 410000 | I17: 410000 | J17: 410000 | K17: 410000 | L17: 410000 | M17: 410000 | N17: 410000 | O17: 410000 | P17: 410000 | Q17: 380000
A18: 06505 | B18: A570000 | C18: 11 | D18: 0490 | E18: 3212 | F18: Naknade za prijevoz, za rad na terenu i odvojeni život | H18: 372000 | I18: 372000 | J18: 372000 | K18: 372000 | L18: 372000 | M18: 372000 | N18: 372000 | O18: 372000 | P18: 372000 | Q18: 372000
A19: 06505 | B19: A570000 | C19: 11 | D19: 0490 | E19: 3213 | F19: Stručno usavršavanje zaposlenika | H19: 33089 | I19: 33089 | J19: 33089 | K19: 33089 | L19: 33089 | M19: 33089 | N19: 33089 | O19: 33089 | P19: 33089 | Q19: 28089
A20: 06505 | B20: A570000 | C20: 11 | D20: 0490 | E20: 3214 | F20: Ostale naknade troškova zaposlenima | H20: 15000 | I20: 15000 | J20: 15000 | K20: 15000 | L20: 15000 | M20: 15000 | N20: 15000 | O20: 15000 | P20: 15000 | Q20: 15000
A21: 06505 | B21: A570000 | C21: 11 | E21: 322 | H21: =SUM(H22:H26) -> 1484725 | I21: 1484725 | J21: 1484725 | K21: 1484725 | L21: 1484725 | M21: =SUM(M22:M26) -> 1484725 | N21: 1484725 | O21: =SUM(O22:O26) -> 1484725 | P21: 1484725 | Q21: 905725
A22: 06505 | B22: A570000 | C22: 11 | D22: 0490 | E22: 3221 | F22: Uredski materijal i ostali materijalni rashodi | H22: 155000 | I22: 155000 | J22: 155000 | K22: 155000 | L22: 155000 | M22: 155000 | N22: 155000 | O22: 155000 | P22: 155000 | Q22: 95000
A23: 06505 | B23: A570000 | C23: 11 | D23: 0490 | E23: 3223 | F23: Energija | H23: 1250000 | I23: 1250000 | J23: 1250000 | K23: 1250000 | L23: 1250000 | M23: 1250000 | N23: 1250000 | O23: 1250000 | P23: 1250000 | Q23: 750000
A24: 06505 | B24: A570000 | C24: 11 | D24: 0490 | E24: 3224 | F24: Materijal i dijelovi za tekuće i investicijsko održavanje | H24: 59725 | I24: 59725 | J24: 59725 | K24: 59725 | L24: 59725 | M24: 59725 | N24: 59725 | O24: 59725 | P24: 59725 | Q24: 49725
A25: 06505 | B25: A570000 | C25: 11 | D25: 0490 | E25: 3225 | F25: Sitni inventar i autogume | H25: 14000 | I25: 14000 | J25: 14000 | K25: 14000 | L25: 14000 | M25: 14000 | N25: 14000 | O25: 14000 | P25: 14000 | Q25: 9000
A26: 06505 | B26: A570000 | C26: 11 | D26: 0490 | E26: 3227 | F26: Službena, radna i zaštitna odjeća i obuća | H26: 6000 | I26: 6000 | J26: 6000 | K26: 6000 | L26: 6000 | M26: 6000 | N26: 6000 | O26: 6000 | P26: 6000 | Q26: 2000
A27: 06505 | B27: A570000 | C27: 11 | E27: 323 | H27: =SUM(H28:H35) -> 1400347 | I27: 1400347 | J27: 1400347 | K27: 1400347 | L27: 1400347 | M27: =SUM(M28:M35) -> 1400347 | N27: 1400347 | O27: =SUM(O28:O35) -> 1400347 | P27: 1400347 | Q27: 1490347
A28: 06505 | B28: A570000 | C28: 11 | D28: 0490 | E28: 3231 | F28: Usluge telefona, interneta, pošte i prijevoza | H28: 270000 | I28: 270000 | J28: 270000 | K28: 270000 | L28: 270000 | M28: 270000 | N28: 270000 | O28: 270000 | P28: 270000 | Q28: 265000
A29: 06505 | B29: A570000 | C29: 11 | D29: 0490 | E29: 3232 | F29: Usluge tekućeg i investicijskog održavanja | H29: 50000 | I29: 50000 | J29: 50000 | K29: 50000 | L29: 50000 | M29: 50000 | N29: 50000 | O29: 50000 | P29: 50000 | Q29: 45000
A30: 06505 | B30: A570000 | C30: 11 | D30: 0490 | E30: 3233 | F30: Usluge promidžbe i informiranja | H30: 103723 | I30: 103723 | J30: 103723 | K30: 103723 | L30: 103723 | M30: 103723 | N30: 103723 | O30: 103723 | P30: 103723 | Q30: 93723
A31: 06505 | B31: A570000 | C31: 11 | D31: 0490 | E31: 3234 | F31: Komunalne usluge | H31: 99542 | I31: 99542 | J31: 99542 | K31: 99542 | L31: 99542 | M31: 99542 | N31: 99542 | O31: 99542 | P31: 99542 | Q31: 89542
A32: 06505 | B32: A570000 | C32: 11 | D32: 0490 | E32: 3235 | F32: Zakupnine i najamnine | H32: 125000 | I32: 125000 | J32: 125000 | K32: 125000 | L32: 125000 | M32: 125000 | N32: 125000 | O32: 125000 | P32: 125000 | Q32: 125000
A33: 06505 | B33: A570000 | C33: 11 | D33: 0490 | E33: 3236 | F33: Zdravstvene i veterinarske usluge | H33: 72998 | I33: 72998 | J33: 72998 | K33: 72998 | L33: 72998 | M33: 72998 | N33: 72998 | O33: 72998 | P33: 72998 | Q33: 32998
A34: 06505 | B34: A570000 | C34: 11 | D34: 0490 | E34: 3237 | F34: Intelektualne i osobne usluge | H34: 199084 | I34: 199084 | J34: 199084 | K34: 199084 | L34: 199084 | M34: 199084 | N34: 199084 | O34: 199084 | P34: 199084 | Q34: 199084
A35: 06505 | B35: A570000 | C35: 11 | D35: 0490 | E35: 3239 | F35: Ostale usluge | H35: 480000 | I35: 480000 | J35: 480000 | K35: 480000 | L35: 480000 | M35: 480000 | N35: 480000 | O35: 480000 | P35: 480000 | Q35: 640000
A36: 06505 | B36: A570000 | C36: 11 | E36: 324 | H36: =SUM(H37) -> 10000 | I36: 10000 | J36: 10000 | K36: 10000 | L36: 10000 | M36: 10000 | N36: 10000 | O36: 10000 | P36: 10000 | Q36: 5000
A37: 06505 | B37: A570000 | C37: 11 | D37: 0490 | E37: 3241 | F37: Naknade troškova osobama izvan radnog odnosa | H37: 10000 | I37: 10000 | J37: 10000 | K37: 10000 | L37: 10000 | M37: 10000 | N37: 10000 | O37: 10000 | P37: 10000 | Q37: 5000
A38: 06505 | B38: A570000 | C38: 11 | E38: 329 | H38: =SUM(H39:H44) -> 290067 | I38: 290067 | J38: 290067 | K38: 290067 | L38: 290067 | M38: =SUM(M39:M44) -> 290067 | N38: 290067 | O38: =SUM(O39:O44) -> 290067 | P38: 290067 | Q38: 231067
A39: 06505 | B39: A570000 | C39: 11 | D39: 0490 | E39: 3291 | F39: Naknade za rad predstavničkih i izvršnih tijela, povjerenstava i slično | H39: 15000 | I39: 15000 | J39: 15000 | K39: 15000 | L39: 15000 | M39: 15000 | N39: 15000 | O39: 15000 | P39: 15000 | Q39: 1000
A40: 06505 | B40: A570000 | C40: 11 | D40: 0490 | E40: 3292 | F40: Premije osiguranja | H40: 13272 | I40: 13272 | J40: 13272 | K40: 13272 | L40: 13272 | M40: 13272 | N40: 13272 | O40: 13272 | P40: 13272 | Q40: 8272
A41: 06505 | B41: A570000 | C41: 11 | D41: 0490 | E41: 3293 | F41: Reprezentacija | H41: 66361 | I41: 66361 | J41: 66361 | K41: 66361 | L41: 66361 | M41: 66361 | N41: 66361 | O41: 66361 | P41: 66361 | Q41: 46361
A42: 06505 | B42: A570000 | C42: 11 | D42: 0490 | E42: 3294 | F42: Članarine i norme | H42: 113345 | I42: 113345 | J42: 113345 | K42: 113345 | L42: 113345 | M42: 113345 | N42: 113345 | O42: 113345 | P42: 113345 | Q42: 113345
A43: 06505 | B43: A570000 | C43: 11 | D43: 0490 | E43: 3295 | F43: Pristojbe i naknade | H43: 68817 | I43: 68817 | J43: 68817 | K43: 68817 | L43: 68817 | M43: 68817 | N43: 68817 | O43: 68817 | P43: 68817 | Q43: 58817
A44: 06505 | B44: A570000 | C44: 11 | D44: 0490 | E44: 3299 | F44: Ostali nespomenuti rashodi poslovanja | H44: 13272 | I44: 13272 | J44: 13272 | K44: 13272 | L44: 13272 | M44: 13272 | N44: 13272 | O44: 13272 | P44: 13272 | Q44: 3272
A45: 06505 | B45: A570000 | C45: 11 | E45: 34 | H45: =H46 -> 9500 | I45: 9500 | J45: 9500 | K45: 9500 | L45: 9500 | M45: 9500 | N45: 9500 | O45: 9500 | P45: 9500 | Q45: 7500
A46: 06505 | B46: A570000 | C46: 11 | E46: 343 | H46: =SUM(H47:H49) -> 9500 | I46: 9500 | J46: 9500 | K46: 9500 | L46: 9500 | M46: =SUM(M47:M49) -> 9500 | N46: 9500 | O46: =SUM(O47:O49) -> 9500 | P46: 9500 | Q46: =SUM(Q47:Q49) -> 7500
A47: 06505 | B47: A570000 | C47: 11 | D47: 0490 | E47: 3431 | F47: Bankarske usluge i usluge platnog prometa | H47: 4000 | I47: 4000 | J47: 4000 | K47: 4000 | L47: 4000 | M47: 4000 | N47: 4000 | O47: 4000 | P47: 4000 | Q47: 2000
A48: 06505 | B48: A570000 | C48: 11 | D48: 0490 | E48: 3433 | F48: Zatezne kamate | H48: 3000 | I48: 3000 | J48: 3000 | K48: 3000 | L48: 3000 | M48: 3000 | N48: 3000 | O48: 3000 | P48: 3000 | Q48: 3000
A49: 06505 | B49: A570000 | C49: 11 | D49: 0490 | E49: 3434 | F49: Ostali nespomenuti financijski rashodi | H49: 2500 | I49: 2500 | J49: 2500 | K49: 2500 | L49: 2500 | M49: 2500 | N49: 2500 | O49: 2500 | P49: 2500 | Q49: 2500
A50: 06505 | B50: A570000 | C50: 11 | E50: 37 | H50: =H51 -> 85000 | I50: 85000 | J50: 85000 | K50: 85000 | L50: 85000 | M50: 85000 | N50: 85000 | O50: 85000 | P50: 85000 | Q50: 80000
A51: 06505 | B51: A570000 | C51: 11 | E51: 372 | H51: =SUM(H52:H53) -> 85000 | I51: 85000 | J51: 85000 | K51: 85000 | L51: 85000 | M51: =SUM(M52:M53) -> 85000 | N51: 85000 | O51: =SUM(O52:O53) -> 85000 | P51: 85000 | Q51: =SUM(Q52:Q53) -> 80000
A52: 06505 | B52: A570000 | C52: 11 | D52: 0490 | E52: 3721 | F52: Naknade građanima i kućanstvima u novcu | H52: 35000 | I52: 35000 | J52: 35000 | K52: 35000 | L52: 35000 | M52: 35000 | N52: 35000 | O52: 35000 | P52: 35000 | Q52: 35000
A53: 06505 | B53: A570000 | C53: 11 | D53: 0490 | E53: 3722 | F53: Naknade građanima i kućanstvima u naravi | H53: 50000 | I53: 50000 | J53: 50000 | K53: 50000 | L53: 50000 | M53: 50000 | N53: 50000 | O53: 50000 | P53: 50000 | Q53: 45000
A54: 06505 | B54: A570000 | C54: 11 | E54: 38 | H54: =H55 -> 0 | I54: =I55 -> 0 | J54: 0 | K54: 0 | L54: 0 | M54: 0 | N54: 0 | O54: 0 | P54: 0 | Q54: 425
A55: 06505 | B55: A570000 | C55: 11 | E55: 383 | H55: =H56 -> 0 | I55: 0 | J55: 0 | K55: 0 | L55: 0 | M55: 0 | N55: 0 | O55: 0 | P55: 0 | Q55: 425
A56: 06505 | B56: A570000 | C56: 11 | D56: 0490 | E56: 3831 | F56: Naknade šteta pravnim i fizičkim osobama | H56: 0 | I56: 0 | J56: 0 | K56: 0 | L56: 0 | M56: 0 | N56: 0 | O56: 0 | P56: 0 | Q56: 425
A57: 06505 | B57: A570000 | C57: 11 | E57: 42 | H57: =H58 -> 148000 | I57: 148000 | J57: 148000 | K57: 148000 | L57: 148000 | M57: 148000 | N57: 148000 | O57: 148000 | P57: 148000 | Q57: 68000
A58: 06505 | B58: A570000 | C58: 11 | E58: 422 | H58: =SUM(H59:H63) -> 148000 | I58: 148000 | J58: 148000 | K58: 148000 | L58: 148000 | M58: =SUM(M59:M63) -> 148000 | N58: 148000 | O58: =SUM(O59:O63) -> 148000 | P58: 148000 | Q58: =SUM(Q59:Q63) -> 68000
A59: 06505 | B59: A570000 | C59: 11 | D59: 0490 | E59: 4221 | F59: Uredska oprema i namještaj | H59: 50000 | I59: 50000 | J59: 50000 | K59: 50000 | L59: 50000 | M59: 50000 | N59: 50000 | O59: 50000 | P59: 50000 | Q59: 13000
A60: 06505 | B60: A570000 | C60: 11 | D60: 0490 | E60: 4222 | F60: Komunikacijska oprema | H60: 30000 | I60: 30000 | J60: 30000 | K60: 30000 | L60: 30000 | M60: 30000 | N60: 30000 | O60: 30000 | P60: 30000 | Q60: 20000
A61: 06505 | B61: A570000 | C61: 11 | D61: 0490 | E61: 4223 | F61: Oprema za održavanje i zaštitu | H61: 40000 | I61: 40000 | J61: 40000 | K61: 40000 | L61: 40000 | M61: 40000 | N61: 40000 | O61: 40000 | P61: 40000 | Q61: 10000
A62: 06505 | B62: A570000 | C62: 11 | D62: 0490 | E62: 4225 | F62: Instrumenti i uređaji | H62: 3000 | I62: 3000 | J62: 3000 | K62: 3000 | L62: 3000 | M62: 3000 | N62: 3000 | O62: 3000 | P62: 3000 | Q62: 0
A63: 06505 | B63: A570000 | C63: 11 | D63: 0490 | E63: 4227 | F63: Uređaji, strojevi i oprema za ostale namjene | H63: 25000 | I63: 25000 | J63: 25000 | K63: 25000 | L63: 25000 | M63: 25000 | N63: 25000 | O63: 25000 | P63: 25000 | Q63: 25000
A64: 06505 | B64: A570000 | C64: 51 | E64: 32 | H64: =H65 -> 20000 | I64: 20000 | J64: 20000 | K64: 20000 | L64: 20000 | M64: 20000 | N64: 20000 | O64: 20000 | P64: 20000 | Q64: 20000
A65: 06505 | B65: A570000 | C65: 51 | E65: 321 | H65: 20000 | I65: 20000 | J65: 20000 | K65: 20000 | L65: 20000 | M65: 20000 | N65: 20000 | O65: 20000 | P65: 20000 | Q65: 20000
A66: 06505 | B66: A570000 | C66: 51 | D66: 0490 | E66: 3211 | F66: Službena putovanja | H66: 20000 | I66: 20000 | J66: 20000 | K66: 20000 | L66: 20000 | M66: 20000 | N66: 20000 | O66: 20000 | P66: 20000 | Q66: 20000
A67: 06505 | B67: K570319 | F67: Obnova voznog parka | G67: 3101 - UPRAVLJANJE NA PODRUČJU PROMETNE POLITIKE - 31 PROMET, PROMETNA INFRASTRUKTURA I KOMUNIKACIJE | H67: =H68+H77 -> 640000 | I67: 640000 | J67: 640000 | K67: 640000 | L67: 640000 | M67: =M68+M77 -> 640000 | N67: 640000 | O67: =O68+O77 -> 640000 | P67: 640000 | Q67: =Q68+Q77 -> 600000
A68: 06505 | B68: K570319 | C68: 11 | E68: 32 | H68: =H69+H71+H75 -> 420000 | I68: 420000 | J68: 420000 | K68: 420000 | L68: 420000 | M68: =M69+M71+M75 -> 420000 | N68: 420000 | O68: =O69+O71+O75 -> 420000 | P68: 420000 | Q68: =Q69+Q71+Q75 -> 380000
A69: 06505 | B69: K570319 | C69: 11 | E69: 322 | H69: =SUM(H70) -> 35000 | I69: 35000 | J69: 35000 | K69: 35000 | L69: 35000 | M69: 35000 | N69: 35000 | O69: 35000 | P69: 35000 | Q69: 35000
A70: 06505 | B70: K570319 | C70: 11 | D70: 0490 | E70: 3225 | F70: Sitni inventar i autogume | H70: 35000 | I70: 35000 | J70: 35000 | K70: 35000 | L70: 35000 | M70: 35000 | N70: 35000 | O70: 35000 | P70: 35000 | Q70: 35000
A71: 06505 | B71: K570319 | C71: 11 | E71: 323 | H71: =SUM(H72:H74) -> 270000 | I71: 270000 | J71: 270000 | K71: 270000 | L71: 270000 | M71: =SUM(M72:M74) -> 270000 | N71: 270000 | O71: =SUM(O72:O74) -> 270000 | P71: 270000 | Q71: 230000
A72: 06505 | B72: K570319 | C72: 11 | D72: 0490 | E72: 3232 | F72: Usluge tekućeg i investicijskog održavanja | H72: 120000 | I72: 120000 | J72: 120000 | K72: 120000 | L72: 120000 | M72: 120000 | N72: 120000 | O72: 120000 | P72: 120000 | Q72: 99000
A73: 06505 | B73: K570319 | C73: 11 | D73: 0490 | E73: 3235 | F73: Zakupnine i najamnine | H73: 70000 | I73: 70000 | J73: 70000 | K73: 70000 | L73: 70000 | M73: 70000 | N73: 70000 | O73: 70000 | P73: 70000 | Q73: 51000
A74: 06505 | B74: K570319 | C74: 11 | D74: 0490 | E74: 3239 | F74: Ostale usluge | H74: 80000 | I74: 80000 | J74: 80000 | K74: 80000 | L74: 80000 | M74: 80000 | N74: 80000 | O74: 80000 | P74: 80000 | Q74: 80000
A75: 06505 | B75: K570319 | C75: 11 | E75: 329 | H75: =SUM(H76) -> 115000 | I75: 115000 | J75: 115000 | K75: 115000 | L75: 115000 | M75: 115000 | N75: 115000 | O75: 115000 | P75: 115000 | Q75: 115000
A76: 06505 | B76: K570319 | C76: 11 | D76: 0490 | E76: 3292 | F76: Premije osiguranja | H76: 115000 | I76: 115000 | J76: 115000 | K76: 115000 | L76: 115000 | M76: 115000 | N76: 115000 | O76: 115000 | P76: 115000 | Q76: 115000
A77: 06505 | B77: K570319 | C77: 11 | E77: 42 | H77: =H78 -> 220000 | I77: 220000 | J77: 220000 | K77: 220000 | L77: 220000 | M77: 220000 | N77: 220000 | O77: 220000 | P77: 220000 | Q77: 220000
A78: 06505 | B78: K570319 | C78: 11 | E78: 423 | H78: =SUM(H79) -> 220000 | I78: 220000 | J78: 220000 | K78: 220000 | L78: 220000 | M78: 220000 | N78: 220000 | O78: 220000 | P78: 220000 | Q78: 220000
A79: 06505 | B79: K570319 | C79: 11 | D79: 0490 | E79: 4231 | F79: Prijevozna sredstva u cestovnom prometu | H79: 220000 | I79: 220000 | J79: 220000 | K79: 220000 | L79: 220000 | M79: 220000 | N79: 220000 | O79: 220000 | P79: 220000 | Q79: 220000
A80: 06505 | B80: K570321 | F80: Informatizacija | G80: 3101 - UPRAVLJANJE NA PODRUČJU PROMETNE POLITIKE - 31 PROMET, PROMETNA INFRASTRUKTURA I KOMUNIKACIJE | H80: =H81+H89+H93 -> 2769072 | I80: 2769072 | J80: 2769072 | K80: 2769072 | L80: 2769072 | M80: =M81+M89+M93 -> 2769072 | N80: 2769072 | O80: =O81+O89+O93 -> 2769072 | P80: 2769072 | Q80: =Q81+Q89+Q93 -> 2669072
A81: 06505 | B81: K570321 | C81: 11 | E81: 32 | H81: =H82+H84 -> 2001533 | I81: 2001533 | J81: 2001533 | K81: 2001533 | L81: 2001533 | M81: =M82+M84 -> 2001533 | N81: 2001533 | O81: =O82+O84 -> 2001533 | P81: 2001533 | Q81: =Q82+Q84 -> 2001533
A82: 06505 | B82: K570321 | C82: 11 | E82: 322 | H82: =SUM(H83) -> 8627 | I82: 8627 | J82: 8627 | K82: 8627 | L82: 8627 | M82: 8627 | N82: 8627 | O82: 8627 | P82: 8627 | Q82: 8627
A83: 06505 | B83: K570321 | C83: 11 | D83: 0490 | E83: 3224 | F83: Materijal i dijelovi za tekuće i investicijsko održavanje | H83: 8627 | I83: 8627 | J83: 8627 | K83: 8627 | L83: 8627 | M83: 8627 | N83: 8627 | O83: 8627 | P83: 8627 | Q83: 8627
A84: 06505 | B84: K570321 | C84: 11 | E84: 323 | H84: =SUM(H85:H88) -> 1992906 | I84: 1992906 | J84: 1992906 | K84: 1992906 | L84: 1992906 | M84: =SUM(M85:M88) -> 1992906 | N84: 1992906 | O84: =SUM(O85:O88) -> 1992906 | P84: 1992906 | Q84: 1992906
A85: 06505 | B85: K570321 | C85: 11 | D85: 0490 | E85: 3232 | F85: Usluge tekućeg i investicijskog održavanja | H85: 59725 | I85: 59725 | J85: 59725 | K85: 59725 | L85: 59725 | M85: 59725 | N85: 59725 | O85: 59725 | P85: 59725 | Q85: 59725
A86: 06505 | B86: K570321 | C86: 11 | D86: 0490 | E86: 3235 | F86: Zakupnine i najamnine | H86: 950000 | I86: 950000 | J86: 950000 | K86: 950000 | L86: 950000 | M86: 950000 | N86: 950000 | O86: 950000 | P86: 950000 | Q86: 950000
A87: 06505 | B87: K570321 | C87: 11 | D87: 0490 | E87: 3237 | F87: Intelektualne i osobne usluge | H87: 33181 | I87: 33181 | J87: 33181 | K87: 33181 | L87: 33181 | M87: 33181 | N87: 33181 | O87: 33181 | P87: 33181 | Q87: 33181
A88: 06505 | B88: K570321 | C88: 11 | D88: 0490 | E88: 3238 | F88: Računalne usluge | H88: 950000 | I88: 950000 | J88: 950000 | K88: 950000 | L88: 950000 | M88: 950000 | N88: 950000 | O88: 950000 | P88: 950000 | Q88: 950000
A89: 06505 | B89: K570321 | C89: 11 | E89: 41 | H89: =H90 -> 172539 | I89: 172539 | J89: 172539 | K89: 172539 | L89: 172539 | M89: 172539 | N89: 172539 | O89: 172539 | P89: 172539 | Q89: 172539
A90: 06505 | B90: K570321 | C90: 11 | E90: 412 | H90: =SUM(H91:H92) -> 172539 | I90: 172539 | J90: 172539 | K90: 172539 | L90: 172539 | M90: =SUM(M91:M92) -> 172539 | N90: 172539 | O90: =SUM(O91:O92) -> 172539 | P90: 172539 | Q90: =SUM(Q91:Q92) -> 172539
A91: 06505 | B91: K570321 | C91: 11 | D91: 0490 | E91: 4123 | F91: Licence | H91: 152631 | I91: 152631 | J91: 152631 | K91: 152631 | L91: 152631 | M91: 152631 | N91: 152631 | O91: 152631 | P91: 152631 | Q91: 167631
A92: 06505 | B92: K570321 | C92: 11 | D92: 0490 | E92: 4126 | F92: Ostala nematerijalna imovina | H92: 19908 | I92: 19908 | J92: 19908 | K92: 19908 | L92: 19908 | M92: 19908 | N92: 19908 | O92: 19908 | P92: 19908 | Q92: 4908
A93: 06505 | B93: K570321 | C93: 11 | E93: 42 | H93: =H94+H97 -> 595000 | I93: 595000 | J93: 595000 | K93: 595000 | L93: 595000 | M93: =M94+M97 -> 595000 | N93: 595000 | O93: =O94+O97 -> 595000 | P93: 595000 | Q93: =Q94+Q97 -> 495000
A94: 06505 | B94: K570321 | C94: 11 | E94: 422 | H94: =SUM(H95:H96) -> 450000 | I94: 450000 | J94: 450000 | K94: 450000 | L94: 450000 | M94: =SUM(M95:M96) -> 450000 | N94: 450000 | O94: =SUM(O95:O96) -> 450000 | P94: 450000 | Q94: =SUM(Q95:Q96) -> 450000
A95: 06505 | B95: K570321 | C95: 11 | D95: 0490 | E95: 4221 | F95: Uredska oprema i namještaj | H95: 250000 | I95: 250000 | J95: 250000 | K95: 250000 | L95: 250000 | M95: 250000 | N95: 250000 | O95: 250000 | P95: 250000 | Q95: 250000
A96: 06505 | B96: K570321 | C96: 11 | D96: 0490 | E96: 4222 | F96: Komunikacijska oprema | H96: 200000 | I96: 200000 | J96: 200000 | K96: 200000 | L96: 200000 | M96: 200000 | N96: 200000 | O96: 200000 | P96: 200000 | Q96: 200000
A97: 06505 | B97: K570321 | C97: 11 | E97: 426 | H97: =SUM(H98) -> 145000 | I97: 145000 | J97: 145000 | K97: 145000 | L97: 145000 | M97: 145000 | N97: 145000 | O97: 145000 | P97: 145000 | Q97: 45000
A98: 06505 | B98: K570321 | C98: 11 | D98: 0490 | E98: 4262 | F98: Ulaganja u računalne programe | H98: 145000 | I98: 145000 | J98: 145000 | K98: 145000 | L98: 145000 | M98: 145000 | N98: 145000 | O98: 145000 | P98: 145000 | Q98: 45000
A99: 06505 | B99: A250997 | F99: Obveze po sudskim sporovima | G99: 3101 - UPRAVLJANJE NA PODRUČJU PROMETNE POLITIKE - 31 PROMET, PROMETNA INFRASTRUKTURA I KOMUNIKACIJE | H99: =H100+H107+H113+H116 -> 880500 | I99: 880500 | J99: 880500 | K99: 880500 | L99: 880500 | M99: =M100+M107+M113+M116 -> 880500 | N99: 880500 | O99: =O100+O107+O113+O116 -> 880500 | P99: 880500 | Q99: =Q100+Q107+Q113+Q116 -> 435500
A100: 06505 | B100: A250997 | C100: 11 | E100: 31 | H100: =H101+H104 -> 61500 | I100: 61500 | J100: 61500 | K100: 61500 | L100: 61500 | M100: =M101+M104 -> 61500 | N100: 61500 | O100: =O101+O104 -> 61500 | P100: 61500 | Q100: =Q101+Q104 -> 31500
A101: 06505 | B101: A250997 | C101: 11 | E101: 311 | H101: =SUM(H102:H103) -> 54000 | I101: 54000 | J101: 54000 | K101: 54000 | L101: 54000 | M101: =SUM(M102:M103) -> 54000 | N101: 54000 | O101: =SUM(O102:O103) -> 54000 | P101: 54000 | Q101: =SUM(Q102:Q103) -> 24000
A102: 06505 | B102: A250997 | C102: 11 | D102: 0490 | E102: 3111 | F102: Plaće za redovan rad | H102: 14000 | I102: 14000 | J102: 14000 | K102: 14000 | L102: 14000 | M102: 14000 | N102: 14000 | O102: 14000 | P102: 14000 | Q102: 4000
A103: 06505 | B103: A250997 | C103: 11 | D103: 0490 | E103: 3113 | F103: Plaće za prekovremeni rad | H103: 40000 | I103: 40000 | J103: 40000 | K103: 40000 | L103: 40000 | M103: 40000 | N103: 40000 | O103: 40000 | P103: 40000 | Q103: 20000
A104: 06505 | B104: A250997 | C104: 11 | E104: 313 | H104: =SUM(H105:H106) -> 7500 | I104: 7500 | J104: 7500 | K104: 7500 | L104: 7500 | M104: =SUM(M105:M106) -> 7500 | N104: 7500 | O104: =SUM(O105:O106) -> 7500 | P104: 7500 | Q104: 7500
A105: 06505 | B105: A250997 | C105: 11 | D105: 0490 | E105: 3132 | F105: Doprinosi za obvezno zdravstveno osiguranje | H105: 6500 | I105: 6500 | J105: 6500 | K105: 6500 | L105: 6500 | M105: 6500 | N105: 6500 | O105: 6500 | P105: 6500 | Q105: 6500
A106: 06505 | B106: A250997 | C106: 11 | D106: 0490 | E106: 3133 | F106: Doprinosi za obvezno osiguranje u slučaju nezaposlenosti | H106: 1000 | I106: 1000 | J106: 1000 | K106: 1000 | L106: 1000 | M106: 1000 | N106: 1000 | O106: 1000 | P106: 1000 | Q106: 1000
A107: 06505 | B107: A250997 | C107: 11 | E107: 32 | H107: =H108+H110 -> 307000 | I107: 307000 | J107: 307000 | K107: 307000 | L107: 307000 | M107: =M108+M110 -> 307000 | N107: 307000 | O107: =O108+O110 -> 307000 | P107: 307000 | Q107: =Q108+Q110 -> 147000
A108: 06505 | B108: A250997 | C108: 11 | E108: 323 | H108: =H109 -> 67000 | I108: 67000 | J108: 67000 | K108: 67000 | L108: 67000 | M108: 67000 | N108: 67000 | O108: 67000 | P108: 67000 | Q108: 7000
A109: 06505 | B109: A250997 | C109: 11 | D109: 0490 | E109: 3235 | F109: Zakupnine i najamnine | H109: 67000 | I109: 67000 | J109: 67000 | K109: 67000 | L109: 67000 | M109: 67000 | N109: 67000 | O109: 67000 | P109: 67000 | Q109: 7000
A110: 06505 | B110: A250997 | C110: 11 | E110: 329 | H110: =SUM(H111:H112) -> 240000 | I110: 240000 | J110: 240000 | K110: 240000 | L110: 240000 | M110: =SUM(M111:M112) -> 240000 | N110: 240000 | O110: =SUM(O111:O112) -> 240000 | P110: 240000 | Q110: 140000
A111: 06505 | B111: A250997 | C111: 11 | D111: 0490 | E111: 3296 | F111: Troškovi sudskih postupaka | H111: 200000 | I111: 200000 | J111: 200000 | K111: 200000 | L111: 200000 | M111: 200000 | N111: 200000 | O111: 200000 | P111: 200000 | Q111: 100000
A112: 06505 | B112: A250997 | C112: 11 | D112: 0490 | E112: 3299 | F112: Ostali nespomenuti rashodi poslovanja | H112: 40000 | I112: 40000 | J112: 40000 | K112: 40000 | L112: 40000 | M112: 40000 | N112: 40000 | O112: 40000 | P112: 40000 | Q112: 40000
A113: 06505 | B113: A250997 | C113: 11 | E113: 34 | H113: =H114 -> 305000 | I113: 305000 | J113: 305000 | K113: 305000 | L113: 305000 | M113: 305000 | N113: 305000 | O113: 305000 | P113: 305000 | Q113: 155000
A114: 06505 | B114: A250997 | C114: 11 | E114: 343 | H114: =SUM(H115) -> 305000 | I114: 305000 | J114: 305000 | K114: 305000 | L114: 305000 | M114: 305000 | N114: 305000 | O114: 305000 | P114: 305000 | Q114: 155000
A115: 06505 | B115: A250997 | C115: 11 | D115: 0490 | E115: 3433 | F115: Zatezne kamate | H115: 305000 | I115: 305000 | J115: 305000 | K115: 305000 | L115: 305000 | M115: 305000 | N115: 305000 | O115: 305000 | P115: 305000 | Q115: 155000
A116: 06505 | B116: A250997 | C116: 11 | E116: 38 | H116: =H117 -> 207000 | I116: 207000 | J116: 207000 | K116: 207000 | L116: 207000 | M116: 207000 | N116: 207000 | O116: 207000 | P116: 207000 | Q116: 102000
A117: 06505 | B117: A250997 | C117: 11 | E117: 383 | H117: =H118+H119 -> 207000 | I117: 207000 | J117: 207000 | K117: 207000 | L117: 207000 | M117: =M118+M119 -> 207000 | N117: 207000 | O117: =O118+O119 -> 207000 | P117: 207000 | Q117: =Q118+Q119 -> 102000
A118: 06505 | B118: A250997 | C118: 11 | D118: 0490 | E118: 3831 | F118: Naknade šteta pravnim i fizičkim osobama | H118: 200000 | I118: 200000 | J118: 200000 | K118: 200000 | L118: 200000 | M118: 200000 | N118: 200000 | O118: 200000 | P118: 200000 | Q118: 100000
A119: 06505 | B119: A250997 | C119: 11 | D119: 0490 | E119: 3835 | F119: Ostale kazne | H119: 7000 | I119: 7000 | J119: 7000 | K119: 7000 | L119: 7000 | M119: 7000 | N119: 7000 | O119: 7000 | P119: 7000 | Q119: 2000
A120: 06505 | B120: K810016 | F120: Rekonstrukcija, obnova i održavanje poslovnih zgrada Ministarstva | G120: 3101 - UPRAVLJANJE NA PODRUČJU PROMETNE POLITIKE - 31 PROMET, PROMETNA INFRASTRUKTURA I KOMUNIKACIJE | H120: =H121+H125+H128+H131+H134+H137 -> 1036270 | I120: =I121+I125+I128+I131+I134+I137 -> 1036270 | J120: 1036270 | K120: 1036270 | L120: 1036270 | M120: 1036270 | N120: 1036270 | O120: 1036270 | P120: =P121+P125+P128+P131+P134+P137 -> 1036270 | Q120: =Q121+Q125+Q128+Q131+Q134+Q137 -> 796362
A121: 06505 | B121: K810016 | C121: 11 | E121: 32 | H121: =H122 -> 703181 | I121: 703181 | J121: 703181 | K121: 703181 | L121: 703181 | M121: 703181 | N121: 703181 | O121: 703181 | P121: 703181 | Q121: 483181
A122: 06505 | B122: K810016 | C122: 11 | E122: 323 | H122: =SUM(H123:H124) -> 703181 | I122: 703181 | J122: 703181 | K122: 703181 | L122: 703181 | M122: =SUM(M123:M124) -> 703181 | N122: 703181 | O122: =SUM(O123:O124) -> 703181 | P122: 703181 | Q122: =SUM(Q123:Q124) -> 483181
A123: 06505 | B123: K810016 | C123: 11 | D123: 0490 | E123: 3232 | F123: Usluge tekućeg i investicijskog održavanja | H123: 670000 | I123: 670000 | J123: 670000 | K123: 670000 | L123: 670000 | M123: 670000 | N123: 670000 | O123: 670000 | P123: 670000 | Q123: 470000
A124: 06505 | B124: K810016 | C124: 11 | D124: 0490 | E124: 3237 | F124: Intelektualne i osobne usluge | H124: 33181 | I124: 33181 | J124: 33181 | K124: 33181 | L124: 33181 | M124: 33181 | N124: 33181 | O124: 33181 | P124: 33181 | Q124: 13181
A125: 06505 | B125: K810016 | C125: 11 | E125: 36 | H125: =H126 -> 250000 | I125: 250000 | J125: 250000 | K125: 250000 | L125: 250000 | M125: 250000 | N125: 250000 | O125: 250000 | P125: 250000 | Q125: 250000
A126: 06505 | B126: K810016 | C126: 11 | E126: 363 | H126: =SUM(H127:H127) -> 250000 | I126: 250000 | J126: 250000 | K126: 250000 | L126: 250000 | M126: 250000 | N126: 250000 | O126: 250000 | P126: 250000 | Q126: 250000
A127: 06505 | B127: K810016 | C127: 11 | D127: 0490 | E127: 3632 | F127: Kapitalne pomoći unutar općeg proračuna | H127: 250000 | I127: 250000 | J127: 250000 | K127: 250000 | L127: 250000 | M127: 250000 | N127: 250000 | O127: 250000 | P127: 250000 | Q127: 250000
A128: 06505 | B128: K810016 | C128: 11 | E128: 41 | H128: =H129 -> 19908 | I128: 19908 | J128: 19908 | K128: 19908 | L128: 19908 | M128: 19908 | N128: 19908 | O128: 19908 | P128: 19908 | Q128: 0
A129: 06505 | B129: K810016 | C129: 11 | E129: 412 | H129: =SUM(H130:H130) -> 19908 | I129: 19908 | J129: 19908 | K129: 19908 | L129: 19908 | M129: 19908 | N129: 19908 | O129: 19908 | P129: 19908 | Q129: 0
A130: 06505 | B130: K810016 | C130: 11 | D130: 0490 | E130: 4126 | F130: Ostala nematerijalna imovina | H130: 19908 | I130: 19908 | J130: 19908 | K130: 19908 | L130: 19908 | M130: 19908 | N130: 19908 | O130: 19908 | P130: 19908 | Q130: 0
A131: 06505 | B131: K810016 | C131: 11 | E131: 45 | H131: =H132 -> 30000 | I131: 30000 | J131: 30000 | K131: 30000 | L131: 30000 | M131: 30000 | N131: 30000 | O131: 30000 | P131: 30000 | Q131: 30000
A132: 06505 | B132: K810016 | C132: 11 | E132: 451 | H132: 30000 | I132: 30000 | J132: 30000 | K132: 30000 | L132: 30000 | M132: 30000 | N132: 30000 | O132: 30000 | P132: 30000 | Q132: 30000
A133: 06505 | B133: K810016 | C133: 11 | D133: 0490 | E133: 4511 | F133: Dodatna ulaganja na građevinskim objektima | H133: 30000 | I133: 30000 | J133: 30000 | K133: 30000 | L133: 30000 | M133: 30000 | N133: 30000 | O133: 30000 | P133: 30000 | Q133: 30000
A134: 06505 | B134: K810016 | C134: 31 | E134: 32 | H134: =H135 -> 33181 | I134: 33181 | J134: 33181 | K134: 33181 | L134: 33181 | M134: 33181 | N134: 33181 | O134: 33181 | P134: 33181 | Q134: 33043
A135: 06505 | B135: K810016 | C135: 31 | E135: 323 | H135: =SUM(H136:H136) -> 33181 | I135: 33181 | J135: 33181 | K135: 33181 | L135: 33181 | M135: 33181 | N135: 33181 | O135: 33181 | P135: 33181 | Q135: 33043
A136: 06505 | B136: K810016 | C136: 31 | D136: 0490 | E136: 3232 | F136: Usluge tekućeg i investicijskog održavanja | H136: 33181 | I136: 33181 | J136: 33181 | K136: 33181 | L136: 33181 | M136: 33181 | N136: 33181 | O136: 33181 | P136: 33181 | Q136: 33043
A137: 06505 | B137: K810016 | C137: 31 | E137: 45 | H137: =H138 -> 0 | I137: 0 | J137: 0 | K137: 0 | L137: 0 | M137: 0 | N137: 0 | O137: 0 | P137: 0 | Q137: 138
A138: 06505 | B138: K810016 | C138: 31 | E138: 451 | H138: 0 | I138: 0 | J138: 0 | K138: 0 | L138: 0 | M138: 0 | N138: 0 | O138: 0 | P138: 0 | Q138: 138
A139: 06505 | B139: K810016 | C139: 31 | D139: 0490 | E139: 4511 | F139: Dodatna ulaganja na građevinskim objektima | H139: 0 | I139: 0 | J139: 0 | K139: 0 | L139: 0 | M139: 0 | N139: 0 | O139: 0 | P139: 0 | Q139: 138
A140: 06505 | B140: K754026 | F140: Provedba Projekta e-građani | G140: 3101 - UPRAVLJANJE NA PODRUČJU PROMETNE POLITIKE - 31 PROMET, PROMETNA INFRASTRUKTURA I KOMUNIKACIJE | H140: =H141 -> 92906 | I140: 92906 | J140: 92906 | K140: 92906 | L140: 92906 | M140: 92906 | N140: 92906 | O140: 92906 | P140: 92906 | Q140: 0
A141: 06505 | B141: K754026 | C141: 11 | E141: 32 | H141: 92906 | I141: 92906 | J141: 92906 | K141: 92906 | L141: 92906 | M141: 92906 | N141: 92906 | O141: 92906 | P141: 92906 | Q141: 0
A142: 06505 | B142: K754026 | C142: 11 | E142: 323 | H142: =H144+H143 -> 92906 | I142: 92906 | J142: 92906 | K142: 92906 | L142: 92906 | M142: =M144+M143 -> 92906 | N142: 92906 | O142: =O144+O143 -> 92906 | P142: 92906 | Q142: =Q144+Q143 -> 0
A143: 06505 | B143: K754026 | C143: 11 | D143: 0490 | E143: 3237 | F143: Intelektualne i osobne usluge | H143: 6636 | I143: 6636 | J143: 6636 | K143: 6636 | L143: 6636 | M143: 6636 | N143: 6636 | O143: 6636 | P143: 6636 | Q143: 0
A144: 06505 | B144: K754026 | C144: 11 | D144: 0490 | E144: 3238 | F144: Računalne usluge | H144: 86270 | I144: 86270 | J144: 86270 | K144: 86270 | L144: 86270 | M144: 86270 | N144: 86270 | O144: 86270 | P144: 86270 | Q144: 0
A145: 06505 | B145: T754069 | F145: Program dodjele državnih potpora sektoru mora, prometa, prometne infrastrukture i povezanim djelatnostima u aktualnoj pandemiji COVID-a 19 | G145: 3101 - UPRAVLJANJE NA PODRUČJU PROMETNE POLITIKE - 31 PROMET, PROMETNA INFRASTRUKTURA I KOMUNIKACIJE | H145: =H149+H146 -> 900000 | I145: 900000 | J145: 918750 | K145: 918750 | L145: 918750 | M145: =M149+M146 -> 918750 | N145: 918750 | O145: =O149+O146 -> 918750 | P145: 918750 | Q145: =Q149+Q146 -> 918750
A146: 06505 | B146: T754069 | C146: 11 | E146: 32 | H146: =H147 -> 0 | I146: =I147 -> 0 | J146: =J147 -> 18750 | K146: 18750 | L146: 18750 | M146: 18750 | N146: 18750 | O146: 18750 | P146: 18750 | Q146: 18750
A147: 06505 | B147: T754069 | C147: 11 | E147: 323 | H147: =H148 -> 0 | I147: =I148 -> 0 | J147: 18750 | K147: 18750 | L147: 18750 | M147: 18750 | N147: 18750 | O147: 18750 | P147: 18750 | Q147: 18750
A148: 06505 | B148: T754069 | C148: 11 | D148: 0490 | E148: 3237 | F148: Intelektualne i osobne usluge | H148: 0 | I148: 0 | J148: 18750 | K148: 18750 | L148: 18750 | M148: 18750 | N148: 18750 | O148: 18750 | P148: 18750 | Q148: 18750
A149: 06505 | B149: T754069 | C149: 11 | E149: 38 | H149: =H150 -> 900000 | I149: 900000 | J149: 900000 | K149: 900000 | L149: 900000 | M149: 900000 | N149: 900000 | O149: 900000 | P149: 900000 | Q149: 900000
A150: 06505 | B150: T754069 | C150: 11 | E150: 386 | H150: 900000 | I150: 900000 | J150: 900000 | K150: 900000 | L150: 900000 | M150: 900000 | N150: 900000 | O150: 900000 | P150: 900000 | Q150: 900000
A151: 06505 | B151: T754069 | C151: 11 | D151: 0490 | E151: 3865 | F151: Kapitalne pomoći trgovačkim društvima i obrtnicima po protestiranim jamstvima u tuzemstvu i inozemstvu | H151: 900000 | I151: 900000 | J151: 900000 | K151: 900000 | L151: 900000 | M151: 900000 | N151: 900000 | O151: 900000 | P151: 900000 | Q151: 900000
A152: 06505 | B152: A754081 | F152: Povrat neprihvatljivih troškova financiranih iz EU sredstava | G152: 3111 - PRIPREMA I PROVEDBA PROJEKATA SUFINANCIRANIH SREDSTVIMA FONDOVA EU - 31 PROMET, PROMETNA INFRASTRUKTURA I KOMUNIKACIJE | H152: =H153 -> 0 | I152: 0 | J152: 0 | K152: 0 | L152: =L153 -> 0 | M152: 0 | N152: 0 | O152: 0 | P152: 0 | Q152: 2000
A153: 06505 | B153: A754081 | C153: 31 | E153: 38 | H153: 0 | I153: 0 | J153: 0 | K153: 0 | L153: 0 | M153: 0 | N153: 0 | O153: 0 | P153: 0 | Q153: 2000
A154: 06505 | B154: A754081 | C154: 31 | E154: 383 | H154: 0 | I154: 0 | J154: 0 | K154: 0 | L154: 0 | M154: 0 | N154: 0 | O154: 0 | P154: 0 | Q154: =Q155 -> 2000
A155: 06505 | B155: A754081 | C155: 31 | D155: 0451 | E155: 3835 | F155: Ostale kazne | H155: 0 | I155: 0 | J155: 0 | K155: 0 | L155: 0 | M155: 0 | N155: 0 | O155: 0 | P155: 0 | Q155: 2000
A156: 06505 | B156: POMORSTVO, UNUTARNJA PLOVIDBA I SIGURNOST PLOVIDBE | H156: =H157+H230+H547 -> 85488956 | I156: 85488956 | J156: 85488956 | K156: 86033956 | L156: 86033956 | M156: =M157+M230+M547 -> 86033956 | N156: 86033956 | O156: =O157+O230+O547 -> 86033956 | P156: 86033956 | Q156: =Q157+Q230+Q547 -> 73660565
A157: 06505 | B157: Uprava pomorstva | H157: =H158+H165+H183+H190+H198+H209+H213+H220+H226 -> 17232131 | I157: 17232131 | J157: 17232131 | K157: 17997131 | L157: 17997131 | M157: =M158+M165+M183+M190+M198+M209+M213+M220+M226 -> 17997131 | N157: 17997131 | O157: =O158+O165+O183+O190+O198+O209+O213+O220+O226 -> 17997131 | P157: 17997131 | Q157: =Q158+Q165+Q183+Q190+Q198+Q209+Q213+Q220+Q226 -> 17403931
A158: 06505 | B158: A570219 | F158: Izgradnja, sanacija i rekonstrukcija objekata podgradnje u lukama otvorenim za javni promet od županijskog i lokalnog značaja te modernizacija, obnova i izgradnja ribarske infrastrukture | G158: 3116 - RAZVOJ SUSTAVA POMORSKOG PROMETA, POMORSKOG DOBRA I LUKA, TE ZAŠTITA OKOLIŠA OD ONEČIŠĆENJA S POMORSKIH OBJEKATA - 31 PROMET, PROMETNA INFRASTRUKTURA I KOMUNIKACIJE | H158: =H162+H159 -> 14686550 | I158: 14686550 | J158: 14686550 | K158: 15451550 | L158: 15451550 | M158: =M162+M159 -> 15451550 | N158: 15451550 | O158: =O162+O159 -> 15451550 | P158: 15451550 | Q158: =Q162+Q159 -> 15451550
A159: 06505 | B159: A570219 | C159: 11 | E159: 36 | H159: =H160 -> 3936550 | I159: 3936550 | J159: 3936550 | K159: 4101550 | L159: 4101550 | M159: 4101550 | N159: 4101550 | O159: 4101550 | P159: 4101550 | Q159: 4101550
A160: 06505 | B160: A570219 | C160: 11 | E160: 363 | H160: 3936550 | I160: 3936550 | J160: 3936550 | K160: 4101550 | L160: 4101550 | M160: 4101550 | N160: 4101550 | O160: 4101550 | P160: 4101550 | Q160: 4101550
A161: 06505 | B161: A570219 | C161: 11 | D161: 0452 | E161: 3632 | F161: Kapitalne pomoći unutar općeg proračuna | H161: 3936550 | I161: 3936550 | J161: 3936550 | K161: 4101550 | L161: 4101550 | M161: 4101550 | N161: 4101550 | O161: 4101550 | P161: 4101550 | Q161: 4101550
A162: 06505 | B162: A570219 | C162: 11 | E162: 38 | H162: =H163 -> 10750000 | I162: 10750000 | J162: 10750000 | K162: 11350000 | L162: 11350000 | M162: 11350000 | N162: 11350000 | O162: 11350000 | P162: 11350000 | Q162: 11350000
A163: 06505 | B163: A570219 | C163: 11 | E163: 382 | H163: =SUM(H164) -> 10750000 | I163: 10750000 | J163: 10750000 | K163: 11350000 | L163: 11350000 | M163: 11350000 | N163: 11350000 | O163: 11350000 | P163: 11350000 | Q163: 11350000
A164: 06505 | B164: A570219 | C164: 11 | D164: 0452 | E164: 3821 | F164: Kapitalne donacije neprofitnim organizacijama | H164: 10750000 | I164: 10750000 | J164: 10750000 | K164: 11350000 | L164: 11350000 | M164: 11350000 | N164: 11350000 | O164: 11350000 | P164: 11350000 | Q164: 11350000
A165: 06505 | B165: A570348 | F165: Utvrđivanje i provedba granica pomorskog dobra s izvlaštenjem | G165: 3116 - RAZVOJ SUSTAVA POMORSKOG PROMETA, POMORSKOG DOBRA I LUKA, TE ZAŠTITA OKOLIŠA OD ONEČIŠĆENJA S POMORSKIH OBJEKATA - 31 PROMET, PROMETNA INFRASTRUKTURA I KOMUNIKACIJE | H165: =H166+H171+H174+H177+H180 -> 692560 | I165: 692560 | J165: 692560 | K165: 692560 | L165: 692560 | M165: =M166+M171+M174+M177+M180 -> 692560 | N165: 692560 | O165: =O166+O171+O174+O177+O180 -> 692560 | P165: 692560 | Q165: =Q166+Q171+Q174+Q177+Q180 -> 322560
A166: 06505 | B166: A570348 | C166: 11 | E166: 32 | H166: =H167 -> 189960 | I166: 189960 | J166: 189960 | K166: 189960 | L166: 189960 | M166: 189960 | N166: 189960 | O166: 189960 | P166: 189960 | Q166: 169960
A167: 06505 | B167: A570348 | C167: 11 | E167: 323 | H167: =SUM(H168:H170) -> 189960 | I167: 189960 | J167: 189960 | K167: 189960 | L167: 189960 | M167: =SUM(M168:M170) -> 189960 | N167: 189960 | O167: =SUM(O168:O170) -> 189960 | P167: 189960 | Q167: =SUM(Q168:Q170) -> 169960
A168: 06505 | B168: A570348 | C168: 11 | D168: 0452 | E168: 3233 | F168: Usluge promidžbe i informiranja | H168: 1330 | I168: 1330 | J168: 1330 | K168: 1330 | L168: 1330 | M168: 1330 | N168: 1330 | O168: 1330 | P168: 1330 | Q168: 1330
A169: 06505 | B169: A570348 | C169: 11 | D169: 0452 | E169: 3237 | F169: Intelektualne i osobne usluge | H169: 35630 | I169: 35630 | J169: 35630 | K169: 35630 | L169: 35630 | M169: 35630 | N169: 35630 | O169: 35630 | P169: 35630 | Q169: 15630
A170: 06505 | B170: A570348 | C170: 11 | D170: 0452 | E170: 3238 | F170: Računalne usluge | H170: 153000 | I170: 153000 | J170: 153000 | K170: 153000 | L170: 153000 | M170: 153000 | N170: 153000 | O170: 153000 | P170: 153000 | Q170: 153000
A171: 06505 | B171: A570348 | C171: 11 | E171: 36 | H171: =H172 -> 100000 | I171: 100000 | J171: 100000 | K171: 100000 | L171: 100000 | M171: 100000 | N171: 100000 | O171: 100000 | P171: 100000 | Q171: 100000
A172: 06505 | B172: A570348 | C172: 11 | E172: 363 | H172: =SUM(H173) -> 100000 | I172: 100000 | J172: 100000 | K172: 100000 | L172: 100000 | M172: 100000 | N172: 100000 | O172: 100000 | P172: 100000 | Q172: 100000
A173: 06505 | B173: A570348 | C173: 11 | D173: 0452 | E173: 3631 | F173: Tekuće pomoći drugom proračunu i izvanproračunskim korisnicima | H173: 100000 | I173: 100000 | J173: 100000 | K173: 100000 | L173: 100000 | M173: 100000 | N173: 100000 | O173: 100000 | P173: 100000 | Q173: 100000
A174: 06505 | B174: A570348 | C174: 11 | E174: 38 | H174: =H175 -> 200000 | I174: 200000 | J174: 200000 | K174: 200000 | L174: 200000 | M174: 200000 | N174: 200000 | O174: 200000 | P174: 200000 | Q174: 50000
A175: 06505 | B175: A570348 | C175: 11 | E175: 383 | H175: =SUM(H176) -> 200000 | I175: 200000 | J175: 200000 | K175: 200000 | L175: 200000 | M175: 200000 | N175: 200000 | O175: 200000 | P175: 200000 | Q175: 50000
A176: 06505 | B176: A570348 | C176: 11 | D176: 0452 | E176: 3831 | F176: Naknade šteta pravnim i fizičkim osobama | H176: 200000 | I176: 200000 | J176: 200000 | K176: 200000 | L176: 200000 | M176: 200000 | N176: 200000 | O176: 200000 | P176: 200000 | Q176: 50000
A177: 06505 | B177: A570348 | C177: 11 | E177: 41 | H177: =H178 -> 2600 | I177: 2600 | J177: 2600 | K177: 2600 | L177: 2600 | M177: 2600 | N177: 2600 | O177: 2600 | P177: 2600 | Q177: 2600
A178: 06505 | B178: A570348 | C178: 11 | E178: 412 | H178: =SUM(H179) -> 2600 | I178: 2600 | J178: 2600 | K178: 2600 | L178: 2600 | M178: 2600 | N178: 2600 | O178: 2600 | P178: 2600 | Q178: 2600
A179: 06505 | B179: A570348 | C179: 11 | D179: 0452 | E179: 4126 | F179: Ostala nematerijalna imovina | H179: 2600 | I179: 2600 | J179: 2600 | K179: 2600 | L179: 2600 | M179: 2600 | N179: 2600 | O179: 2600 | P179: 2600 | Q179: 2600
A180: 06505 | B180: A570348 | C180: 11 | E180: 42 | H180: =H181 -> 200000 | I180: 200000 | J180: 200000 | K180: 200000 | L180: 200000 | M180: 200000 | N180: 200000 | O180: 200000 | P180: 200000 | Q180: 0
A181: 06505 | B181: A570348 | C181: 11 | E181: 426 | H181: 200000 | I181: 200000 | J181: 200000 | K181: 200000 | L181: 200000 | M181: 200000 | N181: 200000 | O181: 200000 | P181: 200000 | Q181: 0
A182: 06505 | B182: A570348 | C182: 11 | D182: 0452 | E182: 4262 | F182: Ulaganja u računalne programe | H182: 200000 | I182: 200000 | J182: 200000 | K182: 200000 | L182: 200000 | M182: 200000 | N182: 200000 | O182: 200000 | P182: 200000 | Q182: 0
A183: 06505 | B183: A570350 | F183: Dodjela koncesija na pomorskom dobru | G183: 3116 - RAZVOJ SUSTAVA POMORSKOG PROMETA, POMORSKOG DOBRA I LUKA, TE ZAŠTITA OKOLIŠA OD ONEČIŠĆENJA S POMORSKIH OBJEKATA - 31 PROMET, PROMETNA INFRASTRUKTURA I KOMUNIKACIJE | H183: =H184+H187 -> 125000 | I183: 125000 | J183: 125000 | K183: 125000 | L183: 125000 | M183: =M184+M187 -> 125000 | N183: 125000 | O183: =O184+O187 -> 125000 | P183: 125000 | Q183: =Q184+Q187 -> 35000
A184: 06505 | B184: A570350 | C184: 11 | E184: 32 | H184: =H185 -> 35000 | I184: 35000 | J184: 35000 | K184: 35000 | L184: 35000 | M184: 35000 | N184: 35000 | O184: 35000 | P184: 35000 | Q184: 35000
A185: 06505 | B185: A570350 | C185: 11 | E185: 323 | H185: =SUM(H186) -> 35000 | I185: 35000 | J185: 35000 | K185: 35000 | L185: 35000 | M185: 35000 | N185: 35000 | O185: 35000 | P185: 35000 | Q185: 35000
A186: 06505 | B186: A570350 | C186: 11 | D186: 0452 | E186: 3237 | F186: Intelektualne i osobne usluge | H186: 35000 | I186: 35000 | J186: 35000 | K186: 35000 | L186: 35000 | M186: 35000 | N186: 35000 | O186: 35000 | P186: 35000 | Q186: 35000
A187: 06505 | B187: A570350 | C187: 11 | E187: 41 | H187: =H188 -> 90000 | I187: 90000 | J187: 90000 | K187: 90000 | L187: 90000 | M187: 90000 | N187: 90000 | O187: 90000 | P187: 90000 | Q187: 0
A188: 06505 | B188: A570350 | C188: 11 | E188: 412 | H188: 90000 | I188: 90000 | J188: 90000 | K188: 90000 | L188: 90000 | M188: 90000 | N188: 90000 | O188: 90000 | P188: 90000 | Q188: 0
A189: 06505 | B189: A570350 | C189: 11 | D189: 0452 | E189: 4126 | F189: Ostala nematerijalna imovina | H189: 90000 | I189: 90000 | J189: 90000 | K189: 90000 | L189: 90000 | M189: 90000 | N189: 90000 | O189: 90000 | P189: 90000 | Q189: 0
A190: 06505 | B190: A810040 | F190: Priprema i provedba projekata u pomorstvu | G190: 3116 - RAZVOJ SUSTAVA POMORSKOG PROMETA, POMORSKOG DOBRA I LUKA, TE ZAŠTITA OKOLIŠA OD ONEČIŠĆENJA S POMORSKIH OBJEKATA - 31 PROMET, PROMETNA INFRASTRUKTURA I KOMUNIKACIJE | H190: =H191+H195 -> 160000 | I190: 160000 | J190: 160000 | K190: 160000 | L190: 160000 | M190: =M191+M195 -> 160000 | N190: 160000 | O190: =O191+O195 -> 160000 | P190: 160000 | Q190: =Q191+Q195 -> 140000
A191: 06505 | B191: A810040 | C191: 11 | E191: 32 | H191: =H192 -> 135000 | I191: 135000 | J191: 135000 | K191: 135000 | L191: 135000 | M191: 135000 | N191: 135000 | O191: 135000 | P191: 135000 | Q191: 135000
A192: 06505 | B192: A810040 | C192: 11 | E192: 323 | H192: =SUM(H193:H194) -> 135000 | I192: 135000 | J192: 135000 | K192: 135000 | L192: 135000 | M192: =SUM(M193:M194) -> 135000 | N192: 135000 | O192: =SUM(O193:O194) -> 135000 | P192: 135000 | Q192: =SUM(Q193:Q194) -> 135000
A193: 06505 | B193: A810040 | C193: 11 | D193: 0452 | E193: 3237 | F193: Intelektualne i osobne usluge | H193: 65000 | I193: 65000 | J193: 65000 | K193: 65000 | L193: 65000 | M193: 65000 | N193: 65000 | O193: 65000 | P193: 65000 | Q193: 65000
A194: 06505 | B194: A810040 | C194: 11 | D194: 0452 | E194: 3238 | F194: Računalne usluge | H194: 70000 | I194: 70000 | J194: 70000 | K194: 70000 | L194: 70000 | M194: 70000 | N194: 70000 | O194: 70000 | P194: 70000 | Q194: 70000
A195: 06505 | B195: A810040 | C195: 11 | E195: 41 | H195: =H196 -> 25000 | I195: 25000 | J195: 25000 | K195: 25000 | L195: 25000 | M195: 25000 | N195: 25000 | O195: 25000 | P195: 25000 | Q195: 5000
A196: 06505 | B196: A810040 | C196: 11 | E196: 412 | H196: 25000 | I196: 25000 | J196: 25000 | K196: 25000 | L196: 25000 | M196: 25000 | N196: 25000 | O196: 25000 | P196: 25000 | Q196: 5000
A197: 06505 | B197: A810040 | C197: 11 | D197: 0452 | E197: 4126 | F197: Ostala nematerijalna imovina | H197: 25000 | I197: 25000 | J197: 25000 | K197: 25000 | L197: 25000 | M197: 25000 | N197: 25000 | O197: 25000 | P197: 25000 | Q197: 5000
A198: 06505 | B198: A754044 | F198: Promidžba pomorstva Republike Hrvatske | G198: 3116 - RAZVOJ SUSTAVA POMORSKOG PROMETA, POMORSKOG DOBRA I LUKA, TE ZAŠTITA OKOLIŠA OD ONEČIŠĆENJA S POMORSKIH OBJEKATA - 31 PROMET, PROMETNA INFRASTRUKTURA I KOMUNIKACIJE | H198: =H199 -> 66000 | I198: 66000 | J198: 66000 | K198: 66000 | L198: 66000 | M198: 66000 | N198: 66000 | O198: 66000 | P198: 66000 | Q198: 66000
A199: 06505 | B199: A754044 | C199: 11 | E199: 32 | H199: =H200+H207+H205 -> 66000 | I199: 66000 | J199: 66000 | K199: 66000 | L199: 66000 | M199: =M200+M207+M205 -> 66000 | N199: 66000 | O199: =O200+O207+O205 -> 66000 | P199: 66000 | Q199: =Q200+Q207+Q205 -> 66000
A200: 06505 | B200: A754044 | C200: 11 | E200: 323 | H200: =SUM(H201:H204) -> 43500 | I200: 43500 | J200: 43500 | K200: 43500 | L200: 43500 | M200: =SUM(M201:M204) -> 43500 | N200: 43500 | O200: =SUM(O201:O204) -> 43500 | P200: 43500 | Q200: =SUM(Q201:Q204) -> 43500
... 4432 more rows

Sheet LUS
A1: Glava | B1: A/K/T | C1: IZV | D1: FP | E1: KTO | F1: NAZIV | G1: PROGRAM | H1: Plan 2025. (NN 149/2024) | I1: Preraspodjela I | J1: Preraspodjela II | K1: Preraspodjela III | L1: Preraspodjela IV | M1: Preraspodjela VI | N1: Preraspodjela V | O1: Preraspodjela VII | P1: Preraspodjela VIII | Q1: Rebalans 2025.
A3: 51327 | B3: RKP 51327 | F3: Lučka uprava Split | H3: =H4+H70+H99+H109+H129+H119+H153+H202+H245+H266+H277+H294+H315+H322 -> 22705550 | I3: 22705550 | J3: 22705550 | K3: 22705550 | L3: 22705550 | M3: 22705550 | N3: 22705550 | O3: 22705550 | P3: 22705550 | Q3: 26290059
A4: 51327 | B4: A754070 | F4: Administracija i upravljanje | G4: 3116 - RAZVOJ SUSTAVA POMORSKOG PROMETA, POMORSKOG DOBRA I LUKA, TE ZAŠTITA OKOLIŠA OD ONEČIŠĆENJA S POMORSKIH OBJEKATA - 31 PROMET, PROMETNA INFRASTRUKTURA I KOMUNIKACIJE | H4: =H8+H18+H49+H59+H5+H53+H56+H67 -> 3988899 | I4: 3988899 | J4: 3988899 | K4: 3988899 | L4: 3988899 | M4: 3988899 | N4: 3988899 | O4: 3988899 | P4: 3988899 | Q4: 4385661
A5: 51327 | B5: A754070 | C5: 31 | E5: 32 | H5: =H6 -> 60000 | I5: 60000 | J5: 60000 | K5: 60000 | L5: 60000 | M5: 60000 | N5: 60000 | O5: 60000 | P5: 60000 | Q5: 60000
A6: 51327 | B6: A754070 | C6: 31 | E6: 322 | H6: 60000 | I6: 60000 | J6: 60000 | K6: 60000 | L6: 60000 | M6: 60000 | N6: 60000 | O6: 60000 | P6: 60000 | Q6: 60000
A7: 51327 | B7: A754070 | C7: 31 | D7: 0452 | E7: 3223 | F7: Energija | H7: 60000 | I7: 60000 | J7: 60000 | K7: 60000 | L7: 60000 | M7: 60000 | N7: 60000 | O7: 60000 | P7: 60000 | Q7: 60000
A8: 51327 | B8: A754070 | C8: 43 | E8: 31 | H8: =H9+H14+H16 -> 1990399 | I8: 1990399 | J8: 1990399 | K8: 1990399 | L8: 1990399 | M8: 1990399 | N8: 1990399 | O8: 1990399 | P8: 1990399 | Q8: 2098399
A9: 51327 | B9: A754070 | C9: 43 | E9: 311 | H9: =H10+H11+H12+H13 -> 1550399 | I9: 1550399 | J9: 1550399 | K9: 1550399 | L9: 1550399 | M9: 1550399 | N9: 1550399 | O9: 1550399 | P9: 1550399 | Q9: 1620399
A10: 51327 | B10: A754070 | C10: 43 | D10: 0452 | E10: 3111 | F10: Plaće za redovan rad | H10: 1550000 | I10: 1550000 | J10: 1550000 | K10: 1550000 | L10: 1550000 | M10: 1550000 | N10: 1550000 | O10: 1550000 | P10: 1550000 | Q10: 1620000
A11: 51327 | B11: A754070 | C11: 43 | D11: 0452 | E11: 3112 | F11: Plaće u naravi | H11: 133 | I11: 133 | J11: 133 | K11: 133 | L11: 133 | M11: 133 | N11: 133 | O11: 133 | P11: 133 | Q11: 133
A12: 51327 | B12: A754070 | C12: 43 | D12: 0452 | E12: 3113 | F12: Plaće za prekovremeni rad | H12: 133 | I12: 133 | J12: 133 | K12: 133 | L12: 133 | M12: 133 | N12: 133 | O12: 133 | P12: 133 | Q12: 133
A13: 51327 | B13: A754070 | C13: 43 | D13: 0452 | E13: 3114 | F13: Plaće za posebne uvjete rada | H13: 133 | I13: 133 | J13: 133 | K13: 133 | L13: 133 | M13: 133 | N13: 133 | O13: 133 | P13: 133 | Q13: 133
A14: 51327 | B14: A754070 | C14: 43 | E14: 312 | H14: =H15 -> 180000 | I14: 180000 | J14: 180000 | K14: 180000 | L14: 180000 | M14: 180000 | N14: 180000 | O14: 180000 | P14: 180000 | Q14: 205000
A15: 51327 | B15: A754070 | C15: 43 | D15: 0452 | E15: 3121 | F15: Ostali rashodi za zaposlene | H15: 180000 | I15: 180000 | J15: 180000 | K15: 180000 | L15: 180000 | M15: 180000 | N15: 180000 | O15: 180000 | P15: 180000 | Q15: 205000
A16: 51327 | B16: A754070 | C16: 43 | E16: 313 | H16: =H17 -> 260000 | I16: 260000 | J16: 260000 | K16: 260000 | L16: 260000 | M16: 260000 | N16: 260000 | O16: 260000 | P16: 260000 | Q16: 273000
A17: 51327 | B17: A754070 | C17: 43 | D17: 0452 | E17: 3132 | F17: Doprinosi za obvezno zdravstveno osiguranje | H17: 260000 | I17: 260000 | J17: 260000 | K17: 260000 | L17: 260000 | M17: 260000 | N17: 260000 | O17: 260000 | P17: 260000 | Q17: 273000
A18: 51327 | B18: A754070 | C18: 43 | E18: 32 | H18: =H19+H24+H31+H40+H42 -> 1728000 | I18: 1728000 | J18: 1728000 | K18: 1728000 | L18: 1728000 | M18: 1728000 | N18: 1728000 | O18: 1728000 | P18: 1728000 | Q18: 1936000
A19: 51327 | B19: A754070 | C19: 43 | E19: 321 | H19: =H20+H21+H22+H23 -> 88000 | I19: 88000 | J19: 88000 | K19: 88000 | L19: 88000 | M19: 88000 | N19: 88000 | O19: 88000 | P19: 88000 | Q19: 111000
A20: 51327 | B20: A754070 | C20: 43 | D20: 0452 | E20: 3211 | F20: Službena putovanja | H20: 35000 | I20: 35000 | J20: 35000 | K20: 35000 | L20: 35000 | M20: 35000 | N20: 35000 | O20: 35000 | P20: 35000 | Q20: 55000
A21: 51327 | B21: A754070 | C21: 43 | D21: 0452 | E21: 3212 | F21: Naknade za prijevoz, za rad na terenu i odvojeni život | H21: 40000 | I21: 40000 | J21: 40000 | K21: 40000 | L21: 40000 | M21: 40000 | N21: 40000 | O21: 40000 | P21: 40000 | Q21: 43000
A22: 51327 | B22: A754070 | C22: 43 | D22: 0452 | E22: 3213 | F22: Stručno usavršavanje zaposlenika | H22: 10000 | I22: 10000 | J22: 10000 | K22: 10000 | L22: 10000 | M22: 10000 | N22: 10000 | O22: 10000 | P22: 10000 | Q22: 10000
A23: 51327 | B23: A754070 | C23: 43 | D23: 0452 | E23: 3214 | F23: Ostale naknade troškova zaposlenima | H23: 3000 | I23: 3000 | J23: 3000 | K23: 3000 | L23: 3000 | M23: 3000 | N23: 3000 | O23: 3000 | P23: 3000 | Q23: 3000
A24: 51327 | B24: A754070 | C24: 43 | E24: 322 | H24: =H25+H26+H27+H28+H29+H30 -> 146000 | I24: 146000 | J24: 146000 | K24: 146000 | L24: 146000 | M24: 146000 | N24: 146000 | O24: 146000 | P24: 146000 | Q24: 146000
A25: 51327 | B25: A754070 | C25: 43 | D25: 0452 | E25: 3221 | F25: Uredski materijal i ostali materijalni rashodi | H25: 40000 | I25: 40000 | J25: 40000 | K25: 40000 | L25: 40000 | M25: 40000 | N25: 40000 | O25: 40000 | P25: 40000 | Q25: 40000
A26: 51327 | B26: A754070 | C26: 43 | D26: 0452 | E26: 3222 | F26: Materijal i sirovine | H26: 2000 | I26: 2000 | J26: 2000 | K26: 2000 | L26: 2000 | M26: 2000 | N26: 2000 | O26: 2000 | P26: 2000 | Q26: 2000
A27: 51327 | B27: A754070 | C27: 43 | D27: 0452 | E27: 3223 | F27: Energija | H27: 80000 | I27: 80000 | J27: 80000 | K27: 80000 | L27: 80000 | M27: 80000 | N27: 80000 | O27: 80000 | P27: 80000 | Q27: 80000
A28: 51327 | B28: A754070 | C28: 43 | D28: 0452 | E28: 3224 | F28: Materijal i dijelovi za tekuće i investicijsko održavanje | H28: 4000 | I28: 4000 | J28: 4000 | K28: 4000 | L28: 4000 | M28: 4000 | N28: 4000 | O28: 4000 | P28: 4000 | Q28: 4000
A29: 51327 | B29: A754070 | C29: 43 | D29: 0452 | E29: 3225 | F29: Sitni inventar i autogume | H29: 15000 | I29: 15000 | J29: 15000 | K29: 15000 | L29: 15000 | M29: 15000 | N29: 15000 | O29: 15000 | P29: 15000 | Q29: 15000
A30: 51327 | B30: A754070 | C30: 43 | D30: 0452 | E30: 3227 | F30: Službena, radna i zaštitna odjeća i obuća | H30: 5000 | I30: 5000 | J30: 5000 | K30: 5000 | L30: 5000 | M30: 5000 | N30: 5000 | O30: 5000 | P30: 5000 | Q30: 5000
A31: 51327 | B31: A754070 | C31: 43 | E31: 323 | H31: =H32+H33+H34+H35+H36+H37+H38+H39 -> 1294000 | I31: 1294000 | J31: 1294000 | K31: 1294000 | L31: 1294000 | M31: 1294000 | N31: 1294000 | O31: 1294000 | P31: 1294000 | Q31: 1449000
A32: 51327 | B32: A754070 | C32: 43 | D32: 0452 | E32: 3231 | F32: Usluge telefona, interneta, pošte i prijevoza | H32: 45000 | I32: 45000 | J32: 45000 | K32: 45000 | L32: 45000 | M32: 45000 | N32: 45000 | O32: 45000 | P32: 45000 | Q32: 70000
A33: 51327 | B33: A754070 | C33: 43 | D33: 0452 | E33: 3232 | F33: Usluge tekućeg i investicijskog održavanja | H33: 291000 | I33: 291000 | J33: 291000 | K33: 291000 | L33: 291000 | M33: 291000 | N33: 291000 | O33: 291000 | P33: 291000 | Q33: 311000
A34: 51327 | B34: A754070 | C34: 43 | D34: 0452 | E34: 3233 | F34: Usluge promidžbe i informiranja | H34: 80000 | I34: 80000 | J34: 80000 | K34: 80000 | L34: 80000 | M34: 80000 | N34: 80000 | O34: 80000 | P34: 80000 | Q34: 80000
A35: 51327 | B35: A754070 | C35: 43 | D35: 0452 | E35: 3234 | F35: Komunalne usluge | H35: 130000 | I35: 130000 | J35: 130000 | K35: 130000 | L35: 130000 | M35: 130000 | N35: 130000 | O35: 130000 | P35: 130000 | Q35: 130000
A36: 51327 | B36: A754070 | C36: 43 | D36: 0452 | E36: 3236 | F36: Zdravstvene i veterinarske usluge | H36: 3000 | I36: 3000 | J36: 3000 | K36: 3000 | L36: 3000 | M36: 3000 | N36: 3000 | O36: 3000 | P36: 3000 | Q36: 43000
A37: 51327 | B37: A754070 | C37: 43 | D37: 0452 | E37: 3237 | F37: Intelektualne i osobne usluge | H37: 150000 | I37: 150000 | J37: 150000 | K37: 150000 | L37: 150000 | M37: 150000 | N37: 150000 | O37: 150000 | P37: 150000 | Q37: 220000
A38: 51327 | B38: A754070 | C38: 43 | D38: 0452 | E38: 3238 | F38: Računalne usluge | H38: 45000 | I38: 45000 | J38: 45000 | K38: 45000 | L38: 45000 | M38: 45000 | N38: 45000 | O38: 45000 | P38: 45000 | Q38: 45000
A39: 51327 | B39: A754070 | C39: 43 | D39: 0452 | E39: 3239 | F39: Ostale usluge | H39: 550000 | I39: 550000 | J39: 550000 | K39: 550000 | L39: 550000 | M39: 550000 | N39: 550000 | O39: 550000 | P39: 550000 | Q39: 550000
A40: 51327 | B40: A754070 | C40: 43 | E40: 324 | H40: =H41 -> 2000 | I40: 2000 | J40: 2000 | K40: 2000 | L40: 2000 | M40: 2000 | N40: 2000 | O40: 2000 | P40: 2000 | Q40: 2000
A41: 51327 | B41: A754070 | C41: 43 | D41: 0452 | E41: 3241 | F41: Naknade troškova osobama izvan radnog odnosa | H41: 2000 | I41: 2000 | J41: 2000 | K41: 2000 | L41: 2000 | M41: 2000 | N41: 2000 | O41: 2000 | P41: 2000 | Q41: 2000
A42: 51327 | B42: A754070 | C42: 43 | E42: 329 | H42: =H43+H44+H45+H46+H47+H48 -> 198000 | I42: 198000 | J42: 198000 | K42: 198000 | L42: 198000 | M42: 198000 | N42: 198000 | O42: 198000 | P42: 198000 | Q42: 228000
A43: 51327 | B43: A754070 | C43: 43 | D43: 0452 | E43: 3291 | F43: Naknade za rad predstavničkih i izvršnih tijela, povjerenstava i slično | H43: 35000 | I43: 35000 | J43: 35000 | K43: 35000 | L43: 35000 | M43: 35000 | N43: 35000 | O43: 35000 | P43: 35000 | Q43: 35000
A44: 51327 | B44: A754070 | C44: 43 | D44: 0452 | E44: 3292 | F44: Premije osiguranja | H44: 40000 | I44: 40000 | J44: 40000 | K44: 40000 | L44: 40000 | M44: 40000 | N44: 40000 | O44: 40000 | P44: 40000 | Q44: 40000
A45: 51327 | B45: A754070 | C45: 43 | D45: 0452 | E45: 3293 | F45: Reprezentacija | H45: 50000 | I45: 50000 | J45: 50000 | K45: 50000 | L45: 50000 | M45: 50000 | N45: 50000 | O45: 50000 | P45: 50000 | Q45: 80000
A46: 51327 | B46: A754070 | C46: 43 | D46: 0452 | E46: 3294 | F46: Članarine i norme | H46: 60000 | I46: 60000 | J46: 60000 | K46: 60000 | L46: 60000 | M46: 60000 | N46: 60000 | O46: 60000 | P46: 60000 | Q46: 60000
A47: 51327 | B47: A754070 | C47: 43 | D47: 0452 | E47: 3295 | F47: Pristojbe i naknade | H47: 8000 | I47: 8000 | J47: 8000 | K47: 8000 | L47: 8000 | M47: 8000 | N47: 8000 | O47: 8000 | P47: 8000 | Q47: 8000
A48: 51327 | B48: A754070 | C48: 43 | D48: 0452 | E48: 3296 | F48: Troškovi sudskih postupaka | H48: 5000 | I48: 5000 | J48: 5000 | K48: 5000 | L48: 5000 | M48: 5000 | N48: 5000 | O48: 5000 | P48: 5000 | Q48: 5000
A49: 51327 | B49: A754070 | C49: 43 | E49: 34 | H49: =H50 -> 3300 | I49: 3300 | J49: 3300 | K49: 3300 | L49: 3300 | M49: 3300 | N49: 3300 | O49: 3300 | P49: 3300 | Q49: 4500
A50: 51327 | B50: A754070 | C50: 43 | E50: 343 | H50: =SUM(H51:H52) -> 3300 | I50: 3300 | J50: 3300 | K50: 3300 | L50: 3300 | M50: =SUM(M51:M52) -> 3300 | N50: 3300 | O50: 3300 | P50: 3300 | Q50: 4500
A51: 51327 | B51: A754070 | C51: 43 | D51: 0452 | E51: 3431 | F51: Bankarske usluge i usluge platnog prometa | H51: 3000 | I51: 3000 | J51: 3000 | K51: 3000 | L51: 3000 | M51: 3000 | N51: 3000 | O51: 3000 | P51: 3000 | Q51: 3000
A52: 51327 | B52: A754070 | C52: 43 | D52: 0452 | E52: 3433 | F52: Zatezne kamate | H52: 300 | I52: 300 | J52: 300 | K52: 300 | L52: 300 | M52: 300 | N52: 300 | O52: 300 | P52: 300 | Q52: 1500
A53: 51327 | B53: A754070 | C53: 43 | E53: 38 | H53: =H54 -> 100 | I53: 100 | J53: 100 | K53: 100 | L53: 100 | M53: 100 | N53: 100 | O53: 100 | P53: 100 | Q53: 100
A54: 51327 | B54: A754070 | C54: 43 | E54: 381 | H54: 100 | I54: 100 | J54: 100 | K54: 100 | L54: 100 | M54: 100 | N54: 100 | O54: 100 | P54: 100 | Q54: 100
A55: 51327 | B55: A754070 | C55: 43 | D55: 0452 | E55: 3811 | F55: Tekuće donacije u novcu | H55: 100 | I55: 100 | J55: 100 | K55: 100 | L55: 100 | M55: 100 | N55: 100 | O55: 100 | P55: 100 | Q55: 100
A56: 51327 | B56: A754070 | C56: 43 | E56: 41 | H56: =H57 -> 100 | I56: 100 | J56: 100 | K56: 100 | L56: 100 | M56: 100 | N56: 100 | O56: 100 | P56: 100 | Q56: 100
A57: 51327 | B57: A754070 | C57: 43 | E57: 412 | H57: 100 | I57: 100 | J57: 100 | K57: 100 | L57: 100 | M57: 100 | N57: 100 | O57: 100 | P57: 100 | Q57: 100
A58: 51327 | B58: A754070 | C58: 43 | D58: 0452 | E58: 4123 | F58: Licence | H58: 100 | I58: 100 | J58: 100 | K58: 100 | L58: 100 | M58: 100 | N58: 100 | O58: 100 | P58: 100 | Q58: 100
A59: 51327 | B59: A754070 | C59: 43 | E59: 42 | H59: =H60+H65+H63 -> 200000 | I59: 200000 | J59: 200000 | K59: 200000 | L59: 200000 | M59: 200000 | N59: 200000 | O59: 200000 | P59: 200000 | Q59: 265000
A60: 51327 | B60: A754070 | C60: 43 | E60: 422 | H60: =H62+H61 -> 45000 | I60: 45000 | J60: 45000 | K60: 45000 | L60: 45000 | M60: 45000 | N60: 45000 | O60: 45000 | P60: 45000 | Q60: 85000
A61: 51327 | B61: A754070 | C61: 43 | D61: 0452 | E61: 4221 | F61: Uredska oprema i namještaj | H61: 40000 | I61: 40000 | J61: 40000 | K61: 40000 | L61: 40000 | M61: 40000 | N61: 40000 | O61: 40000 | P61: 40000 | Q61: 50000
A62: 51327 | B62: A754070 | C62: 43 | D62: 0452 | E62: 4222 | F62: Komunikacijska oprema | H62: 5000 | I62: 5000 | J62: 5000 | K62: 5000 | L62: 5000 | M62: 5000 | N62: 5000 | O62: 5000 | P62: 5000 | Q62: 35000
A63: 51327 | B63: A754070 | C63: 43 | E63: 423 | H63: =H64 -> 75000 | I63: 75000 | J63: 75000 | K63: 75000 | L63: 75000 | M63: 75000 | N63: 75000 | O63: 75000 | P63: 75000 | Q63: 100000
A64: 51327 | B64: A754070 | C64: 43 | D64: 0452 | E64: 4231 | F64: Prijevozna sredstva u cestovnom prometu | H64: 75000 | I64: 75000 | J64: 75000 | K64: 75000 | L64: 75000 | M64: 75000 | N64: 75000 | O64: 75000 | P64: 75000 | Q64: 100000
A65: 51327 | B65: A754070 | C65: 43 | E65: 426 | H65: 80000 | I65: 80000 | J65: 80000 | K65: 80000 | L65: 80000 | M65: 80000 | N65: 80000 | O65: 80000 | P65: 80000 | Q65: 80000
A66: 51327 | B66: A754070 | C66: 43 | D66: 0452 | E66: 4264 | F66: Ostala nematerijalna proizvedena imovina | H66: 80000 | I66: 80000 | J66: 80000 | K66: 80000 | L66: 80000 | M66: 80000 | N66: 80000 | O66: 80000 | P66: 80000 | Q66: 80000
A67: 51327 | B67: A754070 | C67: 71 | E67: 42 | H67: =H68 -> 7000 | I67: 7000 | J67: 7000 | K67: 7000 | L67: 7000 | M67: 7000 | N67: 7000 | O67: 7000 | P67: 7000 | Q67: 21562
A68: 51327 | B68: A754070 | C68: 71 | E68: 423 | H68: 7000 | I68: 7000 | J68: 7000 | K68: 7000 | L68: 7000 | M68: 7000 | N68: 7000 | O68: 7000 | P68: 7000 | Q68: 21562
A69: 51327 | B69: A754070 | C69: 71 | D69: 0452 | E69: 4231 | F69: Prijevozna sredstva u cestovnom prometu | H69: 7000 | I69: 7000 | J69: 7000 | K69: 7000 | L69: 7000 | M69: 7000 | N69: 7000 | O69: 7000 | P69: 7000 | Q69: 21562
A70: 51327 | B70: A754071 | F70: Gradnja i održavanje | G70: 3116 - RAZVOJ SUSTAVA POMORSKOG PROMETA, POMORSKOG DOBRA I LUKA, TE ZAŠTITA OKOLIŠA OD ONEČIŠĆENJA S POMORSKIH OBJEKATA - 31 PROMET, PROMETNA INFRASTRUKTURA I KOMUNIKACIJE | H70: =H74+H71+H85 -> 3168540 | I70: 3168540 | J70: 3168540 | K70: 3168540 | L70: 3168540 | M70: 3168540 | N70: 3168540 | O70: 3168540 | P70: 3168540 | Q70: 4297540
A71: 51327 | B71: A754071 | C71: 11 | E71: 32 | H71: =H72 -> 331807 | I71: 331807 | J71: 331807 | K71: 331807 | L71: 331807 | M71: 331807 | N71: 331807 | O71: 331807 | P71: 331807 | Q71: 331807
A72: 51327 | B72: A754071 | C72: 11 | E72: 323 | H72: 331807 | I72: 331807 | J72: 331807 | K72: 331807 | L72: 331807 | M72: 331807 | N72: 331807 | O72: 331807 | P72: 331807 | Q72: 331807
A73: 51327 | B73: A754071 | C73: 11 | D73: 0452 | E73: 3232 | F73: Usluge tekućeg i investicijskog održavanja | H73: 331807 | I73: 331807 | J73: 331807 | K73: 331807 | L73: 331807 | M73: 331807 | N73: 331807 | O73: 331807 | P73: 331807 | Q73: 331807
A74: 51327 | B74: A754071 | C74: 43 | E74: 32 | H74: =H75+H79 -> 1527733 | I74: 1527733 | J74: 1527733 | K74: 1527733 | L74: 1527733 | M74: 1527733 | N74: 1527733 | O74: 1527733 | P74: 1527733 | Q74: 1927733
A75: 51327 | B75: A754071 | C75: 43 | E75: 322 | H75: =H76+H77+H78 -> 13600 | I75: 13600 | J75: 13600 | K75: 13600 | L75: 13600 | M75: 13600 | N75: 13600 | O75: 13600 | P75: 13600 | Q75: 13600
A76: 51327 | B76: A754071 | C76: 43 | D76: 0452 | E76: 3222 | F76: Materijal i sirovine | H76: 1500 | I76: 1500 | J76: 1500 | K76: 1500 | L76: 1500 | M76: 1500 | N76: 1500 | O76: 1500 | P76: 1500 | Q76: 1500
A77: 51327 | B77: A754071 | C77: 43 | D77: 0452 | E77: 3223 | F77: Energija | H77: 100 | I77: 100 | J77: 100 | K77: 100 | L77: 100 | M77: 100 | N77: 100 | O77: 100 | P77: 100 | Q77: 100
A78: 51327 | B78: A754071 | C78: 43 | D78: 0452 | E78: 3224 | F78: Materijal i dijelovi za tekuće i investicijsko održavanje | H78: 12000 | I78: 12000 | J78: 12000 | K78: 12000 | L78: 12000 | M78: 12000 | N78: 12000 | O78: 12000 | P78: 12000 | Q78: 12000
A79: 51327 | B79: A754071 | C79: 43 | E79: 323 | H79: =H80+H81+H82+H83+H84 -> 1514133 | I79: 1514133 | J79: 1514133 | K79: 1514133 | L79: 1514133 | M79: 1514133 | N79: 1514133 | O79: 1514133 | P79: 1514133 | Q79: 1914133
A80: 51327 | B80: A754071 | C80: 43 | D80: 0452 | E80: 3232 | F80: Usluge tekućeg i investicijskog održavanja | H80: 1200000 | I80: 1200000 | J80: 1200000 | K80: 1200000 | L80: 1200000 | M80: 1200000 | N80: 1200000 | O80: 1200000 | P80: 1200000 | Q80: 1600000
A81: 51327 | B81: A754071 | C81: 43 | D81: 0452 | E81: 3234 | F81: Komunalne usluge | H81: 18000 | I81: 18000 | J81: 18000 | K81: 18000 | L81: 18000 | M81: 18000 | N81: 18000 | O81: 18000 | P81: 18000 | Q81: 18000
A82: 51327 | B82: A754071 | C82: 43 | D82: 0452 | E82: 3237 | F82: Intelektualne i osobne usluge | H82: 270000 | I82: 270000 | J82: 270000 | K82: 270000 | L82: 270000 | M82: 270000 | N82: 270000 | O82: 270000 | P82: 270000 | Q82: 270000
A83: 51327 | B83: A754071 | C83: 43 | D83: 0452 | E83: 3238 | F83: Računalne usluge | H83: 133 | I83: 133 | J83: 133 | K83: 133 | L83: 133 | M83: 133 | N83: 133 | O83: 133 | P83: 133 | Q83: 133
A84: 51327 | B84: A754071 | C84: 43 | D84: 0452 | E84: 3239 | F84: Ostale usluge | H84: 26000 | I84: 26000 | J84: 26000 | K84: 26000 | L84: 26000 | M84: 26000 | N84: 26000 | O84: 26000 | P84: 26000 | Q84: 26000
A85: 51327 | B85: A754071 | C85: 43 | E85: 42 | H85: =H86+H90+H97 -> 1309000 | I85: 1309000 | J85: 1309000 | K85: 1309000 | L85: 1309000 | M85: 1309000 | N85: 1309000 | O85: 1309000 | P85: 1309000 | Q85: 2038000
A86: 51327 | B86: A754071 | C86: 43 | E86: 421 | H86: =H87+H88+H89 -> 1202000 | I86: 1202000 | J86: 1202000 | K86: 1202000 | L86: 1202000 | M86: 1202000 | N86: 1202000 | O86: 1202000 | P86: 1202000 | Q86: 1802000
A87: 51327 | B87: A754071 | C87: 43 | D87: 0452 | E87: 4212 | F87: Poslovni objekti | H87: 1000 | I87: 1000 | J87: 1000 | K87: 1000 | L87: 1000 | M87: 1000 | N87: 1000 | O87: 1000 | P87: 1000 | Q87: 151000
A88: 51327 | B88: A754071 | C88: 43 | D88: 0452 | E88: 4213 | F88: Ceste, željeznice i ostali prometni objekti | H88: 1000 | I88: 1000 | J88: 1000 | K88: 1000 | L88: 1000 | M88: 1000 | N88: 1000 | O88: 1000 | P88: 1000 | Q88: 1000
A89: 51327 | B89: A754071 | C89: 43 | D89: 0452 | E89: 4214 | F89: Ostali građevinski objekti | H89: 1200000 | I89: 1200000 | J89: 1200000 | K89: 1200000 | L89: 1200000 | M89: 1200000 | N89: 1200000 | O89: 1200000 | P89: 1200000 | Q89: 1650000
A90: 51327 | B90: A754071 | C90: 43 | E90: 422 | H90: =H91+H92+H93+H94+H95+H96 -> 100400 | I90: 100400 | J90: 100400 | K90: 100400 | L90: 100400 | M90: 100400 | N90: 100400 | O90: 100400 | P90: 100400 | Q90: 229400
A91: 51327 | B91: A754071 | C91: 43 | D91: 0452 | E91: 4221 | F91: Uredska oprema i namještaj | H91: 100 | I91: 100 | J91: 100 | K91: 100 | L91: 100 | M91: 100 | N91: 100 | O91: 100 | P91: 100 | Q91: 100
A92: 51327 | B92: A754071 | C92: 43 | D92: 0452 | E92: 4222 | F92: Komunikacijska oprema | H92: 100 | I92: 100 | J92: 100 | K92: 100 | L92: 100 | M92: 100 | N92: 100 | O92: 100 | P92: 100 | Q92: 100
A93: 51327 | B93: A754071 | C93: 43 | D93: 0452 | E93: 4223 | F93: Oprema za održavanje i zaštitu | H93: 80000 | I93: 80000 | J93: 80000 | K93: 80000 | L93: 80000 | M93: 80000 | N93: 80000 | O93: 80000 | P93: 80000 | Q93: 120000
A94: 51327 | B94: A754071 | C94: 43 | D94: 0452 | E94: 4224 | F94: Medicinska i laboratorijska oprema | H94: 100 | I94: 100 | J94: 100 | K94: 100 | L94: 100 | M94: 100 | N94: 100 | O94: 100 | P94: 100 | Q94: 100
A95: 51327 | B95: A754071 | C95: 43 | D95: 0452 | E95: 4225 | F95: Instrumenti i uređaji | H95: 100 | I95: 100 | J95: 100 | K95: 100 | L95: 100 | M95: 100 | N95: 100 | O95: 100 | P95: 100 | Q95: 89100
A96: 51327 | B96: A754071 | C96: 43 | D96: 0452 | E96: 4227 | F96: Uređaji, strojevi i oprema za ostale namjene | H96: 20000 | I96: 20000 | J96: 20000 | K96: 20000 | L96: 20000 | M96: 20000 | N96: 20000 | O96: 20000 | P96: 20000 | Q96: 20000
A97: 51327 | B97: A754071 | C97: 43 | E97: 426 | H97: =SUM(H98:H98) -> 6600 | I97: 6600 | J97: 6600 | K97: 6600 | L97: 6600 | M97: 6600 | N97: 6600 | O97: 6600 | P97: 6600 | Q97: 6600
A98: 51327 | B98: A754071 | C98: 43 | D98: 0452 | E98: 4262 | F98: Ulaganja u računalne programe | H98: 6600 | I98: 6600 | J98: 6600 | K98: 6600 | L98: 6600 | M98: 6600 | N98: 6600 | O98: 6600 | P98: 6600 | Q98: 6600
A99: 51327 | B99: T754028 | F99: Projekt izgradnje vanjskih vezova na glavnom lukobranu u Gradskoj luci Split | G99: 3116 - RAZVOJ SUSTAVA POMORSKOG PROMETA, POMORSKOG DOBRA I LUKA, TE ZAŠTITA OKOLIŠA OD ONEČIŠĆENJA S POMORSKIH OBJEKATA - 31 PROMET, PROMETNA INFRASTRUKTURA I KOMUNIKACIJE | H99: =H100+H103+H106 -> 2527951 | I99: 2527951 | J99: 2527951 | K99: 2527951 | L99: 2527951 | M99: 2527951 | N99: 2527951 | O99: 2527951 | P99: 2527951 | Q99: 2387951
A100: 51327 | B100: T754028 | C100: 11 | E100: 54 | H100: =H101 -> 1459951 | I100: 1459951 | J100: 1459951 | K100: 1459951 | L100: 1459951 | M100: 1459951 | N100: 1459951 | O100: 1459951 | P100: 1459951 | Q100: 1459951
A101: 51327 | B101: T754028 | C101: 11 | E101: 541 | H101: 1459951 | I101: 1459951 | J101: 1459951 | K101: 1459951 | L101: 1459951 | M101: 1459951 | N101: 1459951 | O101: 1459951 | P101: 1459951 | Q101: 1459951
A102: 51327 | B102: T754028 | C102: 11 | D102: 0452 | E102: 5413 | F102: Otplata glavnice primljenih zajmova od međunarodnih organizacija | H102: 1459951 | I102: 1459951 | J102: 1459951 | K102: 1459951 | L102: 1459951 | M102: 1459951 | N102: 1459951 | O102: 1459951 | P102: 1459951 | Q102: 1459951
A103: 51327 | B103: T754028 | C103: 43 | E103: 34 | H103: =H104 -> 500000 | I103: 500000 | J103: 500000 | K103: 500000 | L103: 500000 | M103: 500000 | N103: 500000 | O103: 500000 | P103: 500000 | Q103: 360000
A104: 51327 | B104: T754028 | C104: 43 | E104: 342 | H104: 500000 | I104: 500000 | J104: 500000 | K104: 500000 | L104: 500000 | M104: 500000 | N104: 500000 | O104: 500000 | P104: 500000 | Q104: 360000
A105: 51327 | B105: T754028 | C105: 43 | D105: 0452 | E105: 3421 | F105: Kamate za primljene kredite i zajmove od međunarodnih organizacija, institucija i tijela EU te inozemnih vlada | H105: 500000 | I105: 500000 | J105: 500000 | K105: 500000 | L105: 500000 | M105: 500000 | N105: 500000 | O105: 500000 | P105: 500000 | Q105: 360000
A106: 51327 | B106: T754028 | C106: 43 | E106: 54 | H106: =H107 -> 568000 | I106: 568000 | J106: 568000 | K106: 568000 | L106: 568000 | M106: 568000 | N106: 568000 | O106: 568000 | P106: 568000 | Q106: 568000
A107: 51327 | B107: T754028 | C107: 43 | E107: 541 | H107: 568000 | I107: 568000 | J107: 568000 | K107: 568000 | L107: 568000 | M107: 568000 | N107: 568000 | O107: 568000 | P107: 568000 | Q107: 568000
A108: 51327 | B108: T754028 | C108: 43 | D108: 0452 | E108: 5413 | F108: Otplata glavnice primljenih zajmova od međunarodnih organizacija | H108: 568000 | I108: 568000 | J108: 568000 | K108: 568000 | L108: 568000 | M108: 568000 | N108: 568000 | O108: 568000 | P108: 568000 | Q108: 568000
A109: 51327 | B109: K754078 | F109: Izgradnja ribarske luke Komiža | G109: 3116 - RAZVOJ SUSTAVA POMORSKOG PROMETA, POMORSKOG DOBRA I LUKA, TE ZAŠTITA OKOLIŠA OD ONEČIŠĆENJA S POMORSKIH OBJEKATA - 31 PROMET, PROMETNA INFRASTRUKTURA I KOMUNIKACIJE | H109: =+H116+H110+H113 -> 3947000 | I109: 3947000 | J109: 3947000 | K109: 3947000 | L109: 3947000 | M109: 3947000 | N109: 3947000 | O109: 3947000 | P109: 3947000 | Q109: 4047000
A110: 51327 | B110: K754078 | C110: 11 | E110: 42 | H110: =H111 -> 2947000 | I110: 2947000 | J110: 2947000 | K110: 2947000 | L110: 2947000 | M110: 2947000 | N110: 2947000 | O110: 2947000 | P110: 2947000 | Q110: 2947000
A111: 51327 | B111: K754078 | C111: 11 | E111: 421 | H111: 2947000 | I111: 2947000 | J111: 2947000 | K111: 2947000 | L111: 2947000 | M111: 2947000 | N111: 2947000 | O111: 2947000 | P111: 2947000 | Q111: 2947000
A112: 51327 | B112: K754078 | C112: 11 | D112: 0452 | E112: 4214 | F112: Ostali građevinski objekti | H112: 2947000 | I112: 2947000 | J112: 2947000 | K112: 2947000 | L112: 2947000 | M112: 2947000 | N112: 2947000 | O112: 2947000 | P112: 2947000 | Q112: 2947000
A113: 51327 | B113: K754078 | C113: 43 | E113: 42 | H113: =H114 -> 0 | I113: 0 | J113: 0 | K113: 0 | L113: 0 | M113: 0 | N113: 0 | O113: 0 | P113: 0 | Q113: 100000
A114: 51327 | B114: K754078 | C114: 43 | E114: 421 | H114: =H115 -> 0 | I114: 0 | J114: 0 | K114: 0 | L114: 0 | M114: 0 | N114: 0 | O114: 0 | P114: 0 | Q114: 100000
A115: 51327 | B115: K754078 | C115: 43 | D115: 0452 | E115: 4214 | F115: Ostali građevinski objekti | H115: 0 | I115: 0 | J115: 0 | K115: 0 | L115: 0 | M115: 0 | N115: 0 | O115: 0 | P115: 0 | Q115: 100000
A116: 51327 | B116: K754078 | C116: 52 | E116: 42 | H116: =H117 -> 1000000 | I116: 1000000 | J116: 1000000 | K116: 1000000 | L116: 1000000 | M116: 1000000 | N116: 1000000 | O116: 1000000 | P116: 1000000 | Q116: 1000000
A117: 51327 | B117: K754078 | C117: 52 | E117: 421 | H117: 1000000 | I117: 1000000 | J117: 1000000 | K117: 1000000 | L117: 1000000 | M117: 1000000 | N117: 1000000 | O117: 1000000 | P117: 1000000 | Q117: 1000000
A118: 51327 | B118: K754078 | C118: 52 | D118: 0452 | E118: 4214 | F118: Ostali građevinski objekti | H118: 1000000 | I118: 1000000 | J118: 1000000 | K118: 1000000 | L118: 1000000 | M118: 1000000 | N118: 1000000 | O118: 1000000 | P118: 1000000 | Q118: 1000000
A119: 51327 | B119: K754079 | F119: Novi putnički terminal u Gradskoj luci Split-NPOO-C1.4.R311.01.0001 | G119: 3111-PRIPREMA I PROVEDBA PROJEKATA SUFINANCIRANIH SREDSTVIMA FONDOVA EU - PROMET, PROMETNA INFRASTRUKTURA I KOMUNIKACIJE | H119: =H126+H120 -> 7671425 | I119: 7671425 | J119: 7671425 | K119: 7671425 | L119: 7671425 | M119: 7671425 | N119: 7671425 | O119: 7671425 | P119: 7671425 | Q119: 7671425
A120: 51327 | B120: K754079 | C120: 11 | E120: 42 | H120: =H121+H123 -> 3971425 | I120: 3971425 | J120: 3971425 | K120: 3971425 | L120: 3971425 | M120: 3971425 | N120: 3971425 | O120: 3971425 | P120: 3971425 | Q120: 3971425
A121: 51327 | B121: K754079 | C121: 11 | E121: 421 | H121: =H122 -> 3460000 | I121: 3460000 | J121: 3460000 | K121: 3460000 | L121: 3460000 | M121: 3460000 | N121: 3460000 | O121: 3460000 | P121: 3460000 | Q121: 3971425
A122: 51327 | B122: K754079 | C122: 11 | D122: 0452 | E122: 4214 | F122: Ostali građevinski objekti | H122: 3460000 | I122: 3460000 | J122: 3460000 | K122: 3460000 | L122: 3460000 | M122: 3460000 | N122: 3460000 | O122: 3460000 | P122: 3460000 | Q122: 3971425
A123: 51327 | B123: K754079 | C123: 11 | E123: 422 | H123: =H124+H125 -> 511425 | I123: 511425 | J123: 511425 | K123: 511425 | L123: 511425 | M123: 511425 | N123: 511425 | O123: 511425 | P123: 511425 | Q123: 0
A124: 51327 | B124: K754079 | C124: 11 | D124: 0452 | E124: 4223 | F124: Oprema za održavanje i zaštitu | H124: 34207 | I124: 34207 | J124: 34207 | K124: 34207 | L124: 34207 | M124: 34207 | N124: 34207 | O124: 34207 | P124: 34207 | Q124: 0
A125: 51327 | B125: K754079 | C125: 11 | D125: 0452 | E125: 4227 | F125: Uređaji, strojevi i oprema za ostale namjene | H125: 477218 | I125: 477218 | J125: 477218 | K125: 477218 | L125: 477218 | M125: 477218 | N125: 477218 | O125: 477218 | P125: 477218 | Q125: 0
A126: 51327 | B126: K754079 | C126: 581 | E126: 42 | H126: =H127 -> 3700000 | I126: 3700000 | J126: 3700000 | K126: 3700000 | L126: 3700000 | M126: 3700000 | N126: 3700000 | O126: 3700000 | P126: 3700000 | Q126: 3700000
A127: 51327 | B127: K754079 | C127: 581 | E127: 421 | H127: =SUM(H128) -> 3700000 | I127: 3700000 | J127: 3700000 | K127: 3700000 | L127: 3700000 | M127: 3700000 | N127: 3700000 | O127: 3700000 | P127: 3700000 | Q127: 3700000
A128: 51327 | B128: K754079 | C128: 581 | D128: 0452 | E128: 4214 | F128: Ostali građevinski objekti | H128: 3700000 | I128: 3700000 | J128: 3700000 | K128: 3700000 | L128: 3700000 | M128: 3700000 | N128: 3700000 | O128: 3700000 | P128: 3700000 | Q128: 3700000
A129: 51327 | B129: K754080 | F129: Konkurentnost i kohezija 2021.-2027. | G129: 3111-PRIPREMA I PROVEDBA PROJEKATA SUFINANCIRANIH SREDSTVIMA FONDOVA EU - PROMET, PROMETNA INFRASTRUKTURA I KOMUNIKACIJE | H129: =+H133+H143+H138+H148+H130 -> 916843 | I129: =+I133+I143+I138+I148+I130 -> 916843 | J129: 916843 | K129: 916843 | L129: 916843 | M129: 916843 | N129: 916843 | O129: 916843 | P129: 916843 | Q129: =+Q133+Q143+Q138+Q148+Q130 -> 3020390
A130: 51327 | B130: K754080 | C130: 12 | E130: 31 | H130: =H131 -> 0 | I130: 0 | J130: 0 | K130: 0 | L130: 0 | M130: 0 | N130: 0 | O130: 0 | P130: 0 | Q130: 2500
A131: 51327 | B131: K754080 | C131: 12 | E131: 311 | H131: 0 | I131: 0 | J131: 0 | K131: 0 | L131: 0 | M131: 0 | N131: 0 | O131: 0 | P131: 0 | Q131: 2500
A132: 51327 | B132: K754080 | C132: 12 | D132: 0452 | E132: 3111 | F132: plaće za zaposlene | H132: 0 | I132: 0 | J132: 0 | K132: 0 | L132: 0 | M132: 0 | N132: 0 | O132: 0 | P132: 0 | Q132: 2500
A133: 51327 | B133: K754080 | C133: 12 | E133: 42 | H133: =H134+H136 -> 111948 | I133: =I134+I136 -> 111948 | J133: 111948 | K133: 111948 | L133: 111948 | M133: 111948 | N133: 111948 | O133: 111948 | P133: 111948 | Q133: 459673
A134: 51327 | B134: K754080 | C134: 12 | E134: 421 | H134: =H135 -> 111948 | I134: 111948 | J134: 111948 | K134: 111948 | L134: 111948 | M134: 111948 | N134: 111948 | O134: 111948 | P134: 111948 | Q134: 449673
A135: 51327 | B135: K754080 | C135: 12 | D135: 0452 | E135: 4214 | F135: Ostali građevinski objekti | H135: 111948 | I135: 111948 | J135: 111948 | K135: 111948 | L135: 111948 | M135: 111948 | N135: 111948 | O135: 111948 | P135: 111948 | Q135: 449673
A136: 51327 | B136: K754080 | C136: 12 | E136: 422 | H136: =H137 -> 0 | I136: =I137 -> 0 | J136: 0 | K136: 0 | L136: 0 | M136: 0 | N136: 0 | O136: 0 | P136: 0 | Q136: 10000
A137: 51327 | B137: K754080 | C137: 12 | D137: 0452 | E137: 4225 | F137: Instrumenti i uređaji | H137: 0 | I137: 0 | J137: 0 | K137: 0 | L137: 0 | M137: 0 | N137: 0 | O137: 0 | P137: 0 | Q137: 10000
A138: 51327 | B138: K754080 | C138: 562 | E138: 31 | H138: =H139+H141 -> 0 | I138: =I139+I141 -> 0 | J138: 0 | K138: 0 | L138: 0 | M138: 0 | N138: 0 | O138: 0 | P138: 0 | Q138: 10000
A139: 51327 | B139: K754080 | C139: 562 | E139: 311 | H139: =H140 -> 0 | I139: 0 | J139: 0 | K139: 0 | L139: 0 | M139: 0 | N139: 0 | O139: 0 | P139: 0 | Q139: 10000
A140: 51327 | B140: K754080 | C140: 562 | D140: 0452 | E140: 3111 | F140: Plaće za redovan rad | H140: 0 | I140: 0 | J140: 0 | K140: 0 | L140: 0 | M140: 0 | N140: 0 | O140: 0 | P140: 0 | Q140: 10000
A141: 51327 | B141: K754080 | C141: 562 | E141: 313 | H141: =H142 -> 0 | I141: =I142 -> 0 | J141: 0 | K141: 0 | L141: 0 | M141: 0 | N141: 0 | O141: 0 | P141: 0 | Q141: 0
A142: 51327 | B142: K754080 | C142: 562 | D142: 0452 | E142: 3132 | F142: Doprinosi za obvezno zdravstveno osiguranje | H142: 0 | I142: 0 | J142: 0 | K142: 0 | L142: 0 | M142: 0 | N142: 0 | O142: 0 | P142: 0 | Q142: 0
A143: 51327 | B143: K754080 | C143: 562 | E143: 42 | H143: =H144+H146 -> 804895 | I143: =I144+I146 -> 804895 | J143: 804895 | K143: 804895 | L143: 804895 | M143: 804895 | N143: 804895 | O143: 804895 | P143: 804895 | Q143: 2524917
A144: 51327 | B144: K754080 | C144: 562 | E144: 421 | H144: =H145 -> 804895 | I144: 804895 | J144: 804895 | K144: 804895 | L144: 804895 | M144: 804895 | N144: 804895 | O144: 804895 | P144: 804895 | Q144: 2484917
A145: 51327 | B145: K754080 | C145: 562 | D145: 0452 | E145: 4214 | F145: Ostali građevinski objekti | H145: 804895 | I145: 804895 | J145: 804895 | K145: 804895 | L145: 804895 | M145: 804895 | N145: 804895 | O145: 804895 | P145: 804895 | Q145: 2484917
A146: 51327 | B146: K754080 | C146: 562 | E146: 422 | H146: =H147 -> 0 | I146: 0 | J146: 0 | K146: 0 | L146: 0 | M146: 0 | N146: 0 | O146: 0 | P146: 0 | Q146: 40000
A147: 51327 | B147: K754080 | C147: 562 | D147: 0452 | E147: 4225 | F147: Instrumenti i uređaji | H147: 0 | I147: 0 | J147: 0 | K147: 0 | L147: 0 | M147: 0 | N147: 0 | O147: 0 | P147: 0 | Q147: 40000
A148: 51327 | B148: K754080 | C148: 563 | E148: 31 | H148: =H149+H151 -> 0 | I148: =I149+I151 -> 0 | J148: 0 | K148: 0 | L148: 0 | M148: 0 | N148: 0 | O148: 0 | P148: 0 | Q148: 23300
A149: 51327 | B149: K754080 | C149: 563 | E149: 311 | H149: =H150 -> 0 | I149: 0 | J149: 0 | K149: 0 | L149: 0 | M149: 0 | N149: 0 | O149: 0 | P149: 0 | Q149: 20000
A150: 51327 | B150: K754080 | C150: 563 | D150: 0452 | E150: 3111 | F150: Plaće za redovan rad | H150: 0 | I150: 0 | J150: 0 | K150: 0 | L150: 0 | M150: 0 | N150: 0 | O150: 0 | P150: 0 | Q150: 20000
A151: 51327 | B151: K754080 | C151: 563 | E151: 313 | H151: =H152 -> 0 | I151: =I152 -> 0 | J151: 0 | K151: 0 | L151: 0 | M151: 0 | N151: 0 | O151: 0 | P151: 0 | Q151: 3300
A152: 51327 | B152: K754080 | C152: 563 | D152: 0452 | E152: 3132 | F152: Doprinosi za obvezno zdravstveno osiguranje | H152: 0 | I152: 0 | J152: 0 | K152: 0 | L152: 0 | M152: 0 | N152: 0 | O152: 0 | P152: 0 | Q152: 3300
A153: 51327 | B153: K754083 | F153: Kibernetička sigurnost u hrvatskom pomorskom prometu - CYSCROMS | G153: 3116 - RAZVOJ SUSTAVA POMORSKOG PROMETA, POMORSKOG DOBRA I LUKA, TE ZAŠTITA OKOLIŠA OD ONEČIŠĆENJA S POMORSKIH OBJEKATA - 31 PROMET, PROMETNA INFRASTRUKTURA I KOMUNIKACIJE | H153: =H154+H159+H165+H170+H175+H181+H186+H191+H197 -> 101732 | I153: 101732 | J153: 101732 | K153: 101732 | L153: 101732 | M153: 101732 | N153: 101732 | O153: 101732 | P153: 101732 | Q153: 101732
A154: 51327 | B154: K754083 | C154: 43 | E154: 31 | H154: =H155+H157 -> 23400 | I154: 23400 | J154: 23400 | K154: 23400 | L154: 23400 | M154: 23400 | N154: 23400 | O154: 23400 | P154: 23400 | Q154: 23400
A155: 51327 | B155: K754083 | C155: 43 | E155: 311 | H155: =H156 -> 20000 | I155: 20000 | J155: 20000 | K155: 20000 | L155: 20000 | M155: 20000 | N155: 20000 | O155: 20000 | P155: 20000 | Q155: 20000
A156: 51327 | B156: K754083 | C156: 43 | D156: 0452 | E156: 3111 | F156: Plaće za redovan rad | H156: 20000 | I156: 20000 | J156: 20000 | K156: 20000 | L156: 20000 | M156: 20000 | N156: 20000 | O156: 20000 | P156: 20000 | Q156: 20000
A157: 51327 | B157: K754083 | C157: 43 | E157: 313 | H157: =H158 -> 3400 | I157: 3400 | J157: 3400 | K157: 3400 | L157: 3400 | M157: 3400 | N157: 3400 | O157: 3400 | P157: 3400 | Q157: 3400
A158: 51327 | B158: K754083 | C158: 43 | D158: 0452 | E158: 3132 | F158: Doprinosi za obvezno zdravstveno osiguranje | H158: 3400 | I158: 3400 | J158: 3400 | K158: 3400 | L158: 3400 | M158: 3400 | N158: 3400 | O158: 3400 | P158: 3400 | Q158: 3400
A159: 51327 | B159: K754083 | C159: 43 | E159: 32 | H159: =H160+H163 -> 3026 | I159: 3026 | J159: 3026 | K159: 3026 | L159: 3026 | M159: 3026 | N159: 3026 | O159: 3026 | P159: 3026 | Q159: 3026
A160: 51327 | B160: K754083 | C160: 43 | E160: 321 | H160: =H161+H162 -> 620 | I160: 620 | J160: 620 | K160: 620 | L160: 620 | M160: 620 | N160: 620 | O160: 620 | P160: 620 | Q160: 620
A161: 51327 | B161: K754083 | C161: 43 | D161: 0452 | E161: 3211 | F161: Službena putovanja | H161: 400 | I161: 400 | J161: 400 | K161: 400 | L161: 400 | M161: 400 | N161: 400 | O161: 400 | P161: 400 | Q161: 400
A162: 51327 | B162: K754083 | C162: 43 | D162: 0452 | E162: 3212 | F162: Naknade za prijevoz, za rad na terenu i odvojeni život | H162: 220 | I162: 220 | J162: 220 | K162: 220 | L162: 220 | M162: 220 | N162: 220 | O162: 220 | P162: 220 | Q162: 220
A163: 51327 | B163: K754083 | C163: 43 | E163: 323 | H163: =SUM(H164:H164) -> 2406 | I163: 2406 | J163: 2406 | K163: 2406 | L163: 2406 | M163: 2406 | N163: 2406 | O163: 2406 | P163: 2406 | Q163: 2406
A164: 51327 | B164: K754083 | C164: 43 | D164: 0452 | E164: 3233 | F164: Usluge promidžbe i informiranja | H164: 2406 | I164: 2406 | J164: 2406 | K164: 2406 | L164: 2406 | M164: 2406 | N164: 2406 | O164: 2406 | P164: 2406 | Q164: 2406
A165: 51327 | B165: K754083 | C165: 43 | E165: 42 | H165: =H166+H168 -> 24440 | I165: 24440 | J165: 24440 | K165: 24440 | L165: 24440 | M165: 24440 | N165: 24440 | O165: 24440 | P165: 24440 | Q165: 24440
A166: 51327 | B166: K754083 | C166: 43 | E166: 422 | H166: =H167 -> 11740 | I166: 11740 | J166: 11740 | K166: 11740 | L166: 11740 | M166: 11740 | N166: 11740 | O166: 11740 | P166: 11740 | Q166: 11740
A167: 51327 | B167: K754083 | C167: 43 | D167: 0452 | E167: 4221 | F167: Uredska oprema I namještaj | H167: 11740 | I167: 11740 | J167: 11740 | K167: 11740 | L167: 11740 | M167: 11740 | N167: 11740 | O167: 11740 | P167: 11740 | Q167: 11740
A168: 51327 | B168: K754083 | C168: 43 | E168: 426 | H168: =SUM(H169:H169) -> 12700 | I168: 12700 | J168: 12700 | K168: 12700 | L168: 12700 | M168: 12700 | N168: 12700 | O168: 12700 | P168: 12700 | Q168: 12700
A169: 51327 | B169: K754083 | C169: 43 | D169: 0452 | E169: 4262 | F169: Ulaganje u računalne programe | H169: 12700 | I169: 12700 | J169: 12700 | K169: 12700 | L169: 12700 | M169: 12700 | N169: 12700 | O169: 12700 | P169: 12700 | Q169: 12700
A170: 51327 | B170: K754083 | C170: 51 | E170: 31 | H170: =H171+H173 -> 18720 | I170: 18720 | J170: 18720 | K170: 18720 | L170: 18720 | M170: 18720 | N170: 18720 | O170: 18720 | P170: 18720 | Q170: 15720
A171: 51327 | B171: K754083 | C171: 51 | E171: 311 | H171: =H172 -> 16000 | I171: 16000 | J171: 16000 | K171: 16000 | L171: 16000 | M171: 16000 | N171: 16000 | O171: 16000 | P171: 16000 | Q171: 13500
A172: 51327 | B172: K754083 | C172: 51 | D172: 0452 | E172: 3111 | F172: Plaće za redovan rad | H172: 16000 | I172: 16000 | J172: 16000 | K172: 16000 | L172: 16000 | M172: 16000 | N172: 16000 | O172: 16000 | P172: 16000 | Q172: 13500
A173: 51327 | B173: K754083 | C173: 51 | E173: 313 | H173: =H174 -> 2720 | I173: 2720 | J173: 2720 | K173: 2720 | L173: 2720 | M173: 2720 | N173: 2720 | O173: 2720 | P173: 2720 | Q173: 2220
A174: 51327 | B174: K754083 | C174: 51 | D174: 0452 | E174: 3132 | F174: Doprinosi za obvezno zdravstveno osiguranje | H174: 2720 | I174: 2720 | J174: 2720 | K174: 2720 | L174: 2720 | M174: 2720 | N174: 2720 | O174: 2720 | P174: 2720 | Q174: 2220
A175: 51327 | B175: K754083 | C175: 51 | E175: 32 | H175: =H176+H179 -> 2420 | I175: 2420 | J175: 2420 | K175: 2420 | L175: 2420 | M175: 2420 | N175: 2420 | O175: 2420 | P175: 2420 | Q175: 5420
A176: 51327 | B176: K754083 | C176: 51 | E176: 321 | H176: =H177+H178 -> 496 | I176: 496 | J176: 496 | K176: 496 | L176: 496 | M176: 496 | N176: 496 | O176: 496 | P176: 496 | Q176: 3496
A177: 51327 | B177: K754083 | C177: 51 | D177: 0452 | E177: 3211 | F177: Službena putovanja | H177: 320 | I177: 320 | J177: 320 | K177: 320 | L177: 320 | M177: 320 | N177: 320 | O177: 320 | P177: 320 | Q177: 3320
A178: 51327 | B178: K754083 | C178: 51 | D178: 0452 | E178: 3212 | F178: Naknade za prijevoz, za rad na terenu i odvojeni život | H178: 176 | I178: 176 | J178: 176 | K178: 176 | L178: 176 | M178: 176 | N178: 176 | O178: 176 | P178: 176 | Q178: 176
A179: 51327 | B179: K754083 | C179: 51 | E179: 323 | H179: =SUM(H180:H180) -> 1924 | I179: 1924 | J179: 1924 | K179: 1924 | L179: 1924 | M179: 1924 | N179: 1924 | O179: 1924 | P179: 1924 | Q179: 1924
A180: 51327 | B180: K754083 | C180: 51 | D180: 0452 | E180: 3233 | F180: Usluge promidžbe i informiranja | H180: 1924 | I180: 1924 | J180: 1924 | K180: 1924 | L180: 1924 | M180: 1924 | N180: 1924 | O180: 1924 | P180: 1924 | Q180: 1924
A181: 51327 | B181: K754083 | C181: 51 | E181: 42 | H181: =H182+H184 -> 19552 | I181: 19552 | J181: 19552 | K181: 19552 | L181: 19552 | M181: 19552 | N181: 19552 | O181: 19552 | P181: 19552 | Q181: 19552
A182: 51327 | B182: K754083 | C182: 51 | E182: 422 | H182: =H183 -> 9392 | I182: 9392 | J182: 9392 | K182: 9392 | L182: 9392 | M182: 9392 | N182: 9392 | O182: 9392 | P182: 9392 | Q182: 9392
A183: 51327 | B183: K754083 | C183: 51 | D183: 0452 | E183: 4221 | F183: Uredska oprema I namještaj | H183: 9392 | I183: 9392 | J183: 9392 | K183: 9392 | L183: 9392 | M183: 9392 | N183: 9392 | O183: 9392 | P183: 9392 | Q183: 9392
A184: 51327 | B184: K754083 | C184: 51 | E184: 426 | H184: =SUM(H185:H185) -> 10160 | I184: 10160 | J184: 10160 | K184: 10160 | L184: 10160 | M184: 10160 | N184: 10160 | O184: 10160 | P184: 10160 | Q184: 10160
A185: 51327 | B185: K754083 | C185: 51 | D185: 0452 | E185: 4262 | F185: Ulaganje u računalne programe | H185: 10160 | I185: 10160 | J185: 10160 | K185: 10160 | L185: 10160 | M185: 10160 | N185: 10160 | O185: 10160 | P185: 10160 | Q185: 10160
A186: 51327 | B186: K754083 | C186: 559 | E186: 31 | H186: =H187+H189 -> 4680 | I186: 4680 | J186: 4680 | K186: 4680 | L186: 4680 | M186: 4680 | N186: 4680 | O186: 4680 | P186: 4680 | Q186: 4680
A187: 51327 | B187: K754083 | C187: 559 | E187: 311 | H187: =H188 -> 4000 | I187: 4000 | J187: 4000 | K187: 4000 | L187: 4000 | M187: 4000 | N187: 4000 | O187: 4000 | P187: 4000 | Q187: 4000
A188: 51327 | B188: K754083 | C188: 559 | D188: 0452 | E188: 3111 | F188: Plaće za redovan rad | H188: 4000 | I188: 4000 | J188: 4000 | K188: 4000 | L188: 4000 | M188: 4000 | N188: 4000 | O188: 4000 | P188: 4000 | Q188: 4000
A189: 51327 | B189: K754083 | C189: 559 | E189: 313 | H189: =H190 -> 680 | I189: 680 | J189: 680 | K189: 680 | L189: 680 | M189: 680 | N189: 680 | O189: 680 | P189: 680 | Q189: 680
A190: 51327 | B190: K754083 | C190: 559 | D190: 0452 | E190: 3132 | F190: Doprinosi za obvezno zdravstveno osiguranje | H190: 680 | I190: 680 | J190: 680 | K190: 680 | L190: 680 | M190: 680 | N190: 680 | O190: 680 | P190: 680 | Q190: 680
A191: 51327 | B191: K754083 | C191: 559 | E191: 32 | H191: =H192+H195 -> 606 | I191: 606 | J191: 606 | K191: 606 | L191: 606 | M191: 606 | N191: 606 | O191: 606 | P191: 606 | Q191: 606
A192: 51327 | B192: K754083 | C192: 559 | E192: 321 | H192: =H193+H194 -> 124 | I192: 124 | J192: 124 | K192: 124 | L192: 124 | M192: 124 | N192: 124 | O192: 124 | P192: 124 | Q192: 124
A193: 51327 | B193: K754083 | C193: 559 | D193: 0452 | E193: 3211 | F193: Službena putovanja | H193: 80 | I193: 80 | J193: 80 | K193: 80 | L193: 80 | M193: 80 | N193: 80 | O193: 80 | P193: 80 | Q193: 80
A194: 51327 | B194: K754083 | C194: 559 | D194: 0452 | E194: 3212 | F194: Naknade za prijevoz, za rad na terenu i odvojeni život | H194: 44 | I194: 44 | J194: 44 | K194: 44 | L194: 44 | M194: 44 | N194: 44 | O194: 44 | P194: 44 | Q194: 44
A195: 51327 | B195: K754083 | C195: 559 | E195: 323 | H195: =SUM(H196:H196) -> 482 | I195: 482 | J195: 482 | K195: 482 | L195: 482 | M195: 482 | N195: 482 | O195: 482 | P195: 482 | Q195: 482
A196: 51327 | B196: K754083 | C196: 559 | D196: 0452 | E196: 3233 | F196: Usluge promidžbe i informiranja | H196: 482 | I196: 482 | J196: 482 | K196: 482 | L196: 482 | M196: 482 | N196: 482 | O196: 482 | P196: 482 | Q196: 482
A197: 51327 | B197: K754083 | C197: 559 | E197: 42 | H197: =H198+H200 -> 4888 | I197: 4888 | J197: 4888 | K197: 4888 | L197: 4888 | M197: 4888 | N197: 4888 | O197: 4888 | P197: 4888 | Q197: 4888
A198: 51327 | B198: K754083 | C198: 559 | E198: 422 | H198: =H199 -> 2348 | I198: 2348 | J198: 2348 | K198: 2348 | L198: 2348 | M198: 2348 | N198: 2348 | O198: 2348 | P198: 2348 | Q198: 2348
A199: 51327 | B199: K754083 | C199: 559 | D199: 0452 | E199: 4221 | F199: Uredska oprema I namještaj | H199: 2348 | I199: 2348 | J199: 2348 | K199: 2348 | L199: 2348 | M199: 2348 | N199: 2348 | O199: 2348 | P199: 2348 | Q199: 2348
A200: 51327 | B200: K754083 | C200: 559 | E200: 426 | H200: =SUM(H201:H201) -> 2540 | I200: 2540 | J200: 2540 | K200: 2540 | L200: 2540 | M200: 2540 | N200: 2540 | O200: 2540 | P200: 2540 | Q200: 2540
A201: 51327 | B201: K754083 | C201: 559 | D201: 0452 | E201: 4262 | F201: Ulaganje u računalne programe | H201: 2540 | I201: 2540 | J201: 2540 | K201: 2540 | L201: 2540 | M201: 2540 | N201: 2540 | O201: 2540 | P201: 2540 | Q201: 2540
... 127 more rows
